Organisation name,Organisation Code,Directorate,Service Category label,Service Category code,Supplier name,Payment date,Transaction number, Net Amount ,Purpose of spend,Procurement category name
Southend-on-Sea Borough Council,http://www.opendatacommunities.org/id/unitary-authority/southend,ED Neighbourhoods & Environment,Cultural And Related Services,4201,(G) Hags-Smp Ltd,01/08/2022,12072054, 752.00 ,Materials,Equipment Furniture And Materials
Southend-on-Sea Borough Council,http://www.opendatacommunities.org/id/unitary-authority/southend,ED Neighbourhoods & Environment,Cultural And Related Services,4201,(G) Hags-Smp Ltd,01/08/2022,12072054, 500.00 ,Private Contractors,Other Agencies
Southend-on-Sea Borough Council,http://www.opendatacommunities.org/id/unitary-authority/southend,ED Adults & Communities,Adult Social Care,9010,(G) Kieran Lucas Contractors Ltd,01/08/2022,12072054," 1,872.53 ",Main Contractor,Main Contractor
Southend-on-Sea Borough Council,http://www.opendatacommunities.org/id/unitary-authority/southend,ED Adults & Communities,Adult Social Care,1105,Alpha Health And Care Services Ltd,01/08/2022,12072054, 532.00 ,Private Contractors,Other Agencies
Southend-on-Sea Borough Council,http://www.opendatacommunities.org/id/unitary-authority/southend,ED Adults & Communities,Adult Social Care,1105,Alpha Health And Care Services Ltd,01/08/2022,12072054," 1,111.50 ",Private Contractors,Other Agencies
Southend-on-Sea Borough Council,http://www.opendatacommunities.org/id/unitary-authority/southend,ED Adults & Communities,Adult Social Care,1205,Alpha Health And Care Services Ltd,01/08/2022,12072054, 969.00 ,Private Contractors,Other Agencies
Southend-on-Sea Borough Council,http://www.opendatacommunities.org/id/unitary-authority/southend,ED Adults & Communities,Adult Social Care,1105,Alpha Health And Care Services Ltd,01/08/2022,12072054, 608.00 ,Private Contractors,Other Agencies
Southend-on-Sea Borough Council,http://www.opendatacommunities.org/id/unitary-authority/southend,ED Adults & Communities,Adult Social Care,1105,Alpha Health And Care Services Ltd,01/08/2022,12072054, 931.00 ,Private Contractors,Other Agencies
Southend-on-Sea Borough Council,http://www.opendatacommunities.org/id/unitary-authority/southend,ED Adults & Communities,Adult Social Care,1105,Alpha Health And Care Services Ltd,01/08/2022,12072054, 665.00 ,Private Contractors,Other Agencies
Southend-on-Sea Borough Council,http://www.opendatacommunities.org/id/unitary-authority/southend,ED Adults & Communities,Adult Social Care,1105,Alpha Health And Care Services Ltd,01/08/2022,12072054, 665.00 ,Private Contractors,Other Agencies
Southend-on-Sea Borough Council,http://www.opendatacommunities.org/id/unitary-authority/southend,ED Adults & Communities,Adult Social Care,1105,Alpha Health And Care Services Ltd,01/08/2022,12072054, 532.00 ,Private Contractors,Other Agencies
Southend-on-Sea Borough Council,http://www.opendatacommunities.org/id/unitary-authority/southend,ED Adults & Communities,Adult Social Care,1320,Badgers Den (Care) Limited T/A Badgers Den Day Opportunities,01/08/2022,12072054," 1,200.00 ",Private Contractors,Other Agencies
Southend-on-Sea Borough Council,http://www.opendatacommunities.org/id/unitary-authority/southend,ED Finance & Resources,Central Services,7165,Cbre Limited,01/08/2022,12072054," 3,000.00 ",Professional Fees,Services
Southend-on-Sea Borough Council,http://www.opendatacommunities.org/id/unitary-authority/southend,ED Children & Public Health,Children And Education Services,3492,Efga Re Southend On Sea Day Nursery T/A Elim Church Day Nursery,01/08/2022,12072054, 643.00 ,Playgroups,Services
Southend-on-Sea Borough Council,http://www.opendatacommunities.org/id/unitary-authority/southend,ED Adults & Communities,Adult Social Care,1105,Golden Keys Care Agency Limited,01/08/2022,12072054," 2,128.00 ",Private Contractors,Other Agencies
Southend-on-Sea Borough Council,http://www.opendatacommunities.org/id/unitary-authority/southend,ED Growth & Housing,Housing Services,6130,Mr D Paye T/A Paye Properties Limited,01/08/2022,12072054, 925.00 ,Loans,Services
Southend-on-Sea Borough Council,http://www.opendatacommunities.org/id/unitary-authority/southend,ED Growth & Housing,Housing Services,6010,Mr D Paye T/A Paye Properties Limited,01/08/2022,12072054," 1,850.00 ",Accomodation Payment,Services
Southend-on-Sea Borough Council,http://www.opendatacommunities.org/id/unitary-authority/southend,ED Adults & Communities,Adult Social Care,1209,Performance Health International Ltd T/A Performance Health,01/08/2022,12072054, 574.80 ,Tools And Equipment Purchase,Equipment Furniture And Materials
Southend-on-Sea Borough Council,http://www.opendatacommunities.org/id/unitary-authority/southend,ED Adults & Communities,Cultural And Related Services,4230,Pgr Timber Ltd,01/08/2022,12072054," 5,655.11 ",Cultural And Entertainment Services,Services
Southend-on-Sea Borough Council,http://www.opendatacommunities.org/id/unitary-authority/southend,ED Adults & Communities,Cultural And Related Services,4230,REDACTED PERSONAL DATA,01/08/2022,12072054," 3,500.00 ",Cultural And Entertainment Services,Services
Southend-on-Sea Borough Council,http://www.opendatacommunities.org/id/unitary-authority/southend,ED Adults & Communities,Adult Social Care,1105,Seven Day Care (Essex) Ltd T/A Surecare Southend,01/08/2022,12072054, 532.00 ,Private Contractors,Other Agencies
Southend-on-Sea Borough Council,http://www.opendatacommunities.org/id/unitary-authority/southend,ED Adults & Communities,Adult Social Care,1105,Seven Day Care (Essex) Ltd T/A Surecare Southend,01/08/2022,12072054, 555.75 ,Private Contractors,Other Agencies
Southend-on-Sea Borough Council,http://www.opendatacommunities.org/id/unitary-authority/southend,ED Adults & Communities,Adult Social Care,1105,Seven Day Care (Essex) Ltd T/A Surecare Southend,01/08/2022,12072054, 555.75 ,Private Contractors,Other Agencies
Southend-on-Sea Borough Council,http://www.opendatacommunities.org/id/unitary-authority/southend,ED Adults & Communities,Adult Social Care,1105,Seven Day Care (Essex) Ltd T/A Surecare Southend,01/08/2022,12072054, 503.50 ,Private Contractors,Other Agencies
Southend-on-Sea Borough Council,http://www.opendatacommunities.org/id/unitary-authority/southend,ED Adults & Communities,Cultural And Related Services,4230,Sixredsquares Ltd,01/08/2022,12072054," 1,090.00 ",Services Design And Photography,Services
Southend-on-Sea Borough Council,http://www.opendatacommunities.org/id/unitary-authority/southend,ED Adults & Communities,Cultural And Related Services,4230,Southend Carnival Community Interest Company,01/08/2022,12072054," 5,118.45 ",Cultural And Entertainment Services,Services
Southend-on-Sea Borough Council,http://www.opendatacommunities.org/id/unitary-authority/southend,ED Children & Public Health,Children And Education Services,3481,Stef And Philips Clients Accounts,01/08/2022,12072054," 1,740.00 ",Accomodation Payment,Services
Southend-on-Sea Borough Council,http://www.opendatacommunities.org/id/unitary-authority/southend,ED Neighbourhoods & Environment,Highways And Transport Services,5700,Steves Self Drive Limited Liability Partnership T/A Steve'S Self Drive Hire,01/08/2022,12072054, 500.00 ,Transport Management Fee,Contract Hire And Operating Leases
Southend-on-Sea Borough Council,http://www.opendatacommunities.org/id/unitary-authority/southend,ED Neighbourhoods & Environment,Highways And Transport Services,5700,Steves Self Drive Limited Liability Partnership T/A Steve'S Self Drive Hire,01/08/2022,12072054, 500.00 ,Transport Management Fee,Contract Hire And Operating Leases
Southend-on-Sea Borough Council,http://www.opendatacommunities.org/id/unitary-authority/southend,ED Adults & Communities,Adult Social Care,1105,Thorough Care Corporation Ltd,01/08/2022,12072054," 1,995.00 ",Private Contractors,Other Agencies
Southend-on-Sea Borough Council,http://www.opendatacommunities.org/id/unitary-authority/southend,ED Neighbourhoods & Environment,Cultural and Related Services,7510,Tlm Management Ltd,01/08/2022,12072054, 732.00 ,Private Contractors,Other Agencies
Southend-on-Sea Borough Council,http://www.opendatacommunities.org/id/unitary-authority/southend,ED Neighbourhoods & Environment,Cultural And Related Services,7540,Tlm Management Ltd,01/08/2022,12072054," 1,695.00 ",Private Contractors,Other Agencies
Southend-on-Sea Borough Council,http://www.opendatacommunities.org/id/unitary-authority/southend,ED Adults & Communities,Adult Social Care,9010,(G) Gracelands Cms Ltd,02/08/2022,12072079," 8,962.16 ",Grants Paid,Grants Paid
Southend-on-Sea Borough Council,http://www.opendatacommunities.org/id/unitary-authority/southend,ED Adults & Communities,Adult Social Care,9010,(G) Gracelands Cms Ltd,02/08/2022,12072079," 4,000.00 ",Grants Paid,Grants Paid
Southend-on-Sea Borough Council,http://www.opendatacommunities.org/id/unitary-authority/southend,ED Adults & Communities,Adult Social Care,1060,Access Anyone Ltd,02/08/2022,12072079, 550.00 ,Conveyance of Clients,Contract Hire And Operating Leases
Southend-on-Sea Borough Council,http://www.opendatacommunities.org/id/unitary-authority/southend,ED Adults & Communities,Adult Social Care,1108,Alpha Health And Care Services Ltd,02/08/2022,12072079," 1,083.00 ",Private Contractors,Other Agencies
Southend-on-Sea Borough Council,http://www.opendatacommunities.org/id/unitary-authority/southend,ED Adults & Communities,Adult Social Care,1105,Alpha Health And Care Services Ltd,02/08/2022,12072079, 617.50 ,Private Contractors,Other Agencies
Southend-on-Sea Borough Council,http://www.opendatacommunities.org/id/unitary-authority/southend,ED Adults & Communities,Adult Social Care,1105,Alpha Health And Care Services Ltd,02/08/2022,12072079," 1,197.00 ",Private Contractors,Other Agencies
Southend-on-Sea Borough Council,http://www.opendatacommunities.org/id/unitary-authority/southend,ED Adults & Communities,Adult Social Care,1205,Alpha Health And Care Services Ltd,02/08/2022,12072079, 665.00 ,Private Contractors,Other Agencies
Southend-on-Sea Borough Council,http://www.opendatacommunities.org/id/unitary-authority/southend,ED Adults & Communities,Adult Social Care,1105,Alpha Health And Care Services Ltd,02/08/2022,12072079, 812.25 ,Private Contractors,Other Agencies
Southend-on-Sea Borough Council,http://www.opendatacommunities.org/id/unitary-authority/southend,ED Adults & Communities,Adult Social Care,1105,Alpha Health And Care Services Ltd,02/08/2022,12072079, 598.50 ,Private Contractors,Other Agencies
Southend-on-Sea Borough Council,http://www.opendatacommunities.org/id/unitary-authority/southend,ED Adults & Communities,Adult Social Care,1105,Alpha Health And Care Services Ltd,02/08/2022,12072079, 598.50 ,Private Contractors,Other Agencies
Southend-on-Sea Borough Council,http://www.opendatacommunities.org/id/unitary-authority/southend,ED Adults & Communities,Adult Social Care,1105,Alpha Health And Care Services Ltd,02/08/2022,12072079, 674.50 ,Private Contractors,Other Agencies
Southend-on-Sea Borough Council,http://www.opendatacommunities.org/id/unitary-authority/southend,ED Adults & Communities,Adult Social Care,1260,Ashgate House Limited,02/08/2022,12072079," 5,774.44 ",Private Contractors,Other Agencies
Southend-on-Sea Borough Council,http://www.opendatacommunities.org/id/unitary-authority/southend,ED Adults & Communities,Adult Social Care,1260,Ashtead House Limited,02/08/2022,12072079," 5,931.52 ",Private Contractors,Other Agencies
Southend-on-Sea Borough Council,http://www.opendatacommunities.org/id/unitary-authority/southend,ED Children & Public Health,Children And Education Services,3290,Avance Limited T/A Avance Care Services,02/08/2022,12072079," 2,482.00 ",Accomodation Payment,Services
Southend-on-Sea Borough Council,http://www.opendatacommunities.org/id/unitary-authority/southend,ED Finance & Resources,Central Services,7140,Biffa Waste Services Ltd,02/08/2022,12072079, 919.56 ,Waste Management,Cleaning And Domestic Supplies
Southend-on-Sea Borough Council,http://www.opendatacommunities.org/id/unitary-authority/southend,ED Growth & Housing,Planning Services,5637,Burslem Memorials Limited,02/08/2022,12072079," 10,000.00 ",Grants,Grants And Subscriptions
Southend-on-Sea Borough Council,http://www.opendatacommunities.org/id/unitary-authority/southend,ED Children & Public Health,Children And Education Services,3290,Canary House Care Limited,02/08/2022,12072079,"-1,078.57 ",Accomodation Payment,Services
Southend-on-Sea Borough Council,http://www.opendatacommunities.org/id/unitary-authority/southend,ED Children & Public Health,Children And Education Services,3307,Canary House Care Limited,02/08/2022,12072079," 4,939.29 ",Accomodation Payment,Services
Southend-on-Sea Borough Council,http://www.opendatacommunities.org/id/unitary-authority/southend,ED Children & Public Health,Children And Education Services,3308,Canary House Care Limited,02/08/2022,12072079," 2,350.00 ",Accomodation Payment,Services
Southend-on-Sea Borough Council,http://www.opendatacommunities.org/id/unitary-authority/southend,ED Adults & Communities,Adult Social Care,1105,Choices Healthcare Ltd,02/08/2022,12072079," 17,029.02 ",Private Contractors,Other Agencies
Southend-on-Sea Borough Council,http://www.opendatacommunities.org/id/unitary-authority/southend,ED Adults & Communities,Adult Social Care,1108,Choices Healthcare Ltd,02/08/2022,12072079, 555.75 ,Private Contractors,Other Agencies
Southend-on-Sea Borough Council,http://www.opendatacommunities.org/id/unitary-authority/southend,ED Adults & Communities,Adult Social Care,1205,Choices Healthcare Ltd,02/08/2022,12072079," 1,396.52 ",Private Contractors,Other Agencies
Southend-on-Sea Borough Council,http://www.opendatacommunities.org/id/unitary-authority/southend,ED Adults & Communities,Adult Social Care,1105,Choices Healthcare Ltd,02/08/2022,12072079, 606.24 ,Private Contractors,Other Agencies
Southend-on-Sea Borough Council,http://www.opendatacommunities.org/id/unitary-authority/southend,"ED Strategy, Change & Governance",Central Services,7125,Close Invoice Finance T/A Innovate Healthcare,02/08/2022,12072079," 8,805.00 ",Medical And Health Services,Services
Southend-on-Sea Borough Council,http://www.opendatacommunities.org/id/unitary-authority/southend,ED Adults & Communities,Adult Social Care,1083,Crowstone Home,02/08/2022,12072079," 11,086.14 ",Private Contractors,Other Agencies
Southend-on-Sea Borough Council,http://www.opendatacommunities.org/id/unitary-authority/southend,ED Adults & Communities,Adult Social Care,9010,Design For Independence,02/08/2022,12072079," 6,006.00 ",Grants Paid,Grants Paid
Southend-on-Sea Borough Council,http://www.opendatacommunities.org/id/unitary-authority/southend,ED Finance & Resources,Central Services,7165,Ernst & Young,02/08/2022,12072079," 1,050.00 ",Professional Fees,Services
Southend-on-Sea Borough Council,http://www.opendatacommunities.org/id/unitary-authority/southend,ED Children & Public Health,Children And Education Services,3098,Focus Media Uk Ltd,02/08/2022,12072079," 5,055.00 ",Printing,Printing Stationery And General Office Expenses
Southend-on-Sea Borough Council,http://www.opendatacommunities.org/id/unitary-authority/southend,ED Adults & Communities,Adult Social Care,1320,Forget Me Not Caring Ltd,02/08/2022,12072079, 739.32 ,Private Contractors,Other Agencies
Southend-on-Sea Borough Council,http://www.opendatacommunities.org/id/unitary-authority/southend,ED Adults & Communities,Adult Social Care,1294,Forget Me Not Caring Ltd,02/08/2022,12072079," 4,163.92 ",Private Contractors,Other Agencies
Southend-on-Sea Borough Council,http://www.opendatacommunities.org/id/unitary-authority/southend,ED Adults & Communities,Adult Social Care,1294,Forget Me Not Caring Ltd,02/08/2022,12072079," 3,268.20 ",Private Contractors,Other Agencies
Southend-on-Sea Borough Council,http://www.opendatacommunities.org/id/unitary-authority/southend,ED Children & Public Health,Children And Education Services,3308,Great Future Support Ltd,02/08/2022,12072079," 2,680.00 ",Accomodation Payment,Services
Southend-on-Sea Borough Council,http://www.opendatacommunities.org/id/unitary-authority/southend,ED Children & Public Health,Children And Education Services,3290,Griha Care And Support Limited,02/08/2022,12072079," 3,452.00 ",Accomodation Payment,Services
Southend-on-Sea Borough Council,http://www.opendatacommunities.org/id/unitary-authority/southend,ED Children & Public Health,Children And Education Services,3290,Griha Care And Support Limited,02/08/2022,12072079," 1,382.12 ",Accomodation Payment,Services
Southend-on-Sea Borough Council,http://www.opendatacommunities.org/id/unitary-authority/southend,ED Children & Public Health,Children And Education Services,3307,Griha Care And Support Limited,02/08/2022,12072079," 1,595.71 ",Accomodation Payment,Services
Southend-on-Sea Borough Council,http://www.opendatacommunities.org/id/unitary-authority/southend,ED Children & Public Health,Children And Education Services,3290,Leighview House Ltd,02/08/2022,12072079," 6,916.00 ",Accomodation Payment,Services
Southend-on-Sea Borough Council,http://www.opendatacommunities.org/id/unitary-authority/southend,ED Children & Public Health,Children And Education Services,3290,Leighview House Ltd,02/08/2022,12072079, 550.00 ,Accomodation Payment,Services
Southend-on-Sea Borough Council,http://www.opendatacommunities.org/id/unitary-authority/southend,ED Children & Public Health,Children And Education Services,3307,Leighview House Ltd,02/08/2022,12072079," 3,815.00 ",Accomodation Payment,Services
Southend-on-Sea Borough Council,http://www.opendatacommunities.org/id/unitary-authority/southend,ED Children & Public Health,Children And Education Services,3308,Leighview House Ltd,02/08/2022,12072079, 550.00 ,Accomodation Payment,Services
Southend-on-Sea Borough Council,http://www.opendatacommunities.org/id/unitary-authority/southend,ED Children & Public Health,Children And Education Services,3290,Leighview House Ltd T/A Leighview House Romford Ltd,02/08/2022,12072079, 750.00 ,Accomodation Payment,Services
Southend-on-Sea Borough Council,http://www.opendatacommunities.org/id/unitary-authority/southend,ED Children & Public Health,Children And Education Services,3290,Leighview House Ltd T/A Leighview House Romford Ltd,02/08/2022,12072079," 2,278.57 ",Accomodation Payment,Services
Southend-on-Sea Borough Council,http://www.opendatacommunities.org/id/unitary-authority/southend,ED Children & Public Health,Children And Education Services,3307,Leighview House Ltd T/A Leighview House Romford Ltd,02/08/2022,12072079," 1,995.00 ",Accomodation Payment,Services
Southend-on-Sea Borough Council,http://www.opendatacommunities.org/id/unitary-authority/southend,ED Children & Public Health,Children And Education Services,3308,Leighview House Ltd T/A Leighview House Romford Ltd,02/08/2022,12072079," 2,907.14 ",Accomodation Payment,Services
Southend-on-Sea Borough Council,http://www.opendatacommunities.org/id/unitary-authority/southend,ED Neighbourhoods & Environment,Highways And Transport Services,9008,Marstan Bdb Llp,02/08/2022,12072079, 500.00 ,Main Contractor,Main Contractor
Southend-on-Sea Borough Council,http://www.opendatacommunities.org/id/unitary-authority/southend,ED Neighbourhoods & Environment,Highways And Transport Services,9008,Marstan Bdb Llp,02/08/2022,12072079, 500.00 ,Main Contractor,Main Contractor
Southend-on-Sea Borough Council,http://www.opendatacommunities.org/id/unitary-authority/southend,ED Adults & Communities,Adult Social Care,1105,Miss Tarisai Muswaburi T/A Ptsmart Care,02/08/2022,12072079," 1,567.50 ",Private Contractors,Other Agencies
Southend-on-Sea Borough Council,http://www.opendatacommunities.org/id/unitary-authority/southend,ED Neighbourhoods & Environment,Environmental And Regulatory Services,4506,Mr P G Taylor T/A Taylor & Co Memorial Benches And Garden Supplies,02/08/2022,12072079," 3,555.00 ",Crematoria And Cemetery Services,Services
Southend-on-Sea Borough Council,http://www.opendatacommunities.org/id/unitary-authority/southend,ED Children & Public Health,Children And Education Services,3010,Professional Association For Childcare And Early Years,02/08/2022,12072079," 4,689.25 ",Grants,Grants And Subscriptions
Southend-on-Sea Borough Council,http://www.opendatacommunities.org/id/unitary-authority/southend,ED Children & Public Health,Children And Education Services,3010,Professional Association For Childcare And Early Years,02/08/2022,12072079," 23,000.00 ",Grants,Grants And Subscriptions
Southend-on-Sea Borough Council,http://www.opendatacommunities.org/id/unitary-authority/southend,ED Children & Public Health,Children And Education Services,3010,Professional Association For Childcare And Early Years,02/08/2022,12072079," 2,475.87 ",Grants,Grants And Subscriptions
Southend-on-Sea Borough Council,http://www.opendatacommunities.org/id/unitary-authority/southend,ED Children & Public Health,Children And Education Services,3455,REDACTED PERSONAL DATA,02/08/2022,12072079, 514.28 ,Guardianship Orders,Other Agencies
Southend-on-Sea Borough Council,http://www.opendatacommunities.org/id/unitary-authority/southend,ED Children & Public Health,Children And Education Services,3265,REDACTED PERSONAL DATA,02/08/2022,12072079, 675.89 ,Foster Carer Allowance,Other Agencies
Southend-on-Sea Borough Council,http://www.opendatacommunities.org/id/unitary-authority/southend,ED Children & Public Health,Children And Education Services,3265,REDACTED PERSONAL DATA,02/08/2022,12072079, 558.21 ,Foster Carer Specialist,Other Agencies
Southend-on-Sea Borough Council,http://www.opendatacommunities.org/id/unitary-authority/southend,ED Children & Public Health,Children And Education Services,3265,REDACTED PERSONAL DATA,02/08/2022,12072079, 558.21 ,Foster Carer Specialist,Other Agencies
Southend-on-Sea Borough Council,http://www.opendatacommunities.org/id/unitary-authority/southend,ED Children & Public Health,Children And Education Services,3265,REDACTED PERSONAL DATA,02/08/2022,12072079, 558.21 ,Foster Carer Specialist,Other Agencies
Southend-on-Sea Borough Council,http://www.opendatacommunities.org/id/unitary-authority/southend,ED Children & Public Health,Children And Education Services,3265,REDACTED PERSONAL DATA,02/08/2022,12072079, 574.69 ,Foster Carer Allowance,Other Agencies
Southend-on-Sea Borough Council,http://www.opendatacommunities.org/id/unitary-authority/southend,ED Children & Public Health,Children And Education Services,3265,REDACTED PERSONAL DATA,02/08/2022,12072079, 558.21 ,Foster Carer Specialist,Other Agencies
Southend-on-Sea Borough Council,http://www.opendatacommunities.org/id/unitary-authority/southend,ED Children & Public Health,Children And Education Services,3265,REDACTED PERSONAL DATA,02/08/2022,12072079, 587.75 ,Foster Carer Allowance,Other Agencies
Southend-on-Sea Borough Council,http://www.opendatacommunities.org/id/unitary-authority/southend,ED Children & Public Health,Children And Education Services,3265,REDACTED PERSONAL DATA,02/08/2022,12072079, 881.22 ,Foster Carer Allowance,Other Agencies
Southend-on-Sea Borough Council,http://www.opendatacommunities.org/id/unitary-authority/southend,ED Children & Public Health,Children And Education Services,3265,REDACTED PERSONAL DATA,02/08/2022,12072079, 657.81 ,Foster Carer Allowance,Other Agencies
Southend-on-Sea Borough Council,http://www.opendatacommunities.org/id/unitary-authority/southend,ED Children & Public Health,Children And Education Services,3265,REDACTED PERSONAL DATA,02/08/2022,12072079, 616.25 ,Foster Carer Allowance,Other Agencies
Southend-on-Sea Borough Council,http://www.opendatacommunities.org/id/unitary-authority/southend,ED Children & Public Health,Children And Education Services,3265,REDACTED PERSONAL DATA,02/08/2022,12072079, 558.21 ,Foster Carer Specialist,Other Agencies
Southend-on-Sea Borough Council,http://www.opendatacommunities.org/id/unitary-authority/southend,ED Children & Public Health,Children And Education Services,3265,REDACTED PERSONAL DATA,02/08/2022,12072079, 558.21 ,Foster Carer Specialist,Other Agencies
Southend-on-Sea Borough Council,http://www.opendatacommunities.org/id/unitary-authority/southend,ED Children & Public Health,Children And Education Services,3265,REDACTED PERSONAL DATA,02/08/2022,12072079, 500.96 ,Foster Carer Allowance,Other Agencies
Southend-on-Sea Borough Council,http://www.opendatacommunities.org/id/unitary-authority/southend,ED Children & Public Health,Children And Education Services,3265,REDACTED PERSONAL DATA,02/08/2022,12072079, 951.47 ,Foster Carer Allowance,Other Agencies
Southend-on-Sea Borough Council,http://www.opendatacommunities.org/id/unitary-authority/southend,ED Children & Public Health,Children And Education Services,3265,REDACTED PERSONAL DATA,02/08/2022,12072079, 876.78 ,Foster Carer Allowance,Other Agencies
Southend-on-Sea Borough Council,http://www.opendatacommunities.org/id/unitary-authority/southend,ED Children & Public Health,Children And Education Services,3265,REDACTED PERSONAL DATA,02/08/2022,12072079, 844.57 ,Foster Carer Allowance,Other Agencies
Southend-on-Sea Borough Council,http://www.opendatacommunities.org/id/unitary-authority/southend,ED Children & Public Health,Children And Education Services,3265,REDACTED PERSONAL DATA,02/08/2022,12072079, 558.21 ,Foster Carer Specialist,Other Agencies
Southend-on-Sea Borough Council,http://www.opendatacommunities.org/id/unitary-authority/southend,ED Children & Public Health,Children And Education Services,3265,REDACTED PERSONAL DATA,02/08/2022,12072079, 558.21 ,Foster Carer Specialist,Other Agencies
Southend-on-Sea Borough Council,http://www.opendatacommunities.org/id/unitary-authority/southend,ED Children & Public Health,Children And Education Services,3265,REDACTED PERSONAL DATA,02/08/2022,12072079, 620.39 ,Foster Carer Allowance,Other Agencies
Southend-on-Sea Borough Council,http://www.opendatacommunities.org/id/unitary-authority/southend,ED Children & Public Health,Children And Education Services,3265,REDACTED PERSONAL DATA,02/08/2022,12072079, 719.27 ,Foster Carer Allowance,Other Agencies
Southend-on-Sea Borough Council,http://www.opendatacommunities.org/id/unitary-authority/southend,ED Finance & Resources,Central Services,7111,Royal Mail,02/08/2022,12072079," 2,311.21 ",Mail Services� Postage,Communications And Computing
Southend-on-Sea Borough Council,http://www.opendatacommunities.org/id/unitary-authority/southend,ED Children & Public Health,Children And Education Services,3290,Safe Haven Services Ltd,02/08/2022,12072079," 1,950.71 ",Accomodation Payment,Services
Southend-on-Sea Borough Council,http://www.opendatacommunities.org/id/unitary-authority/southend,ED Children & Public Health,Children And Education Services,3290,Safe Haven Services Ltd,02/08/2022,12072079," 3,804.40 ",Accomodation Payment,Services
Southend-on-Sea Borough Council,http://www.opendatacommunities.org/id/unitary-authority/southend,ED Children & Public Health,Children And Education Services,3307,Safe Haven Services Ltd,02/08/2022,12072079," 2,080.00 ",Accomodation Payment,Services
Southend-on-Sea Borough Council,http://www.opendatacommunities.org/id/unitary-authority/southend,ED Children & Public Health,Children And Education Services,3308,Safe Haven Services Ltd,02/08/2022,12072079, 941.54 ,Accomodation Payment,Services
Southend-on-Sea Borough Council,http://www.opendatacommunities.org/id/unitary-authority/southend,ED Finance & Resources,Housing Services,6165,The Isaiah Project T/A The Furniture Project,02/08/2022,12072079," 5,000.00 ",Materials,Equipment Furniture And Materials
Southend-on-Sea Borough Council,http://www.opendatacommunities.org/id/unitary-authority/southend,ED Adults & Communities,Adult Social Care,9010,Townsend Bowen Ltd,02/08/2022,12072079, 650.00 ,Grants Paid,Grants Paid
Southend-on-Sea Borough Council,http://www.opendatacommunities.org/id/unitary-authority/southend,ED Neighbourhoods & Environment,Cultural and Related Services,7505,Tree Fella Limited,02/08/2022,12072079," 1,132.21 ",Private Contractors,Other Agencies
Southend-on-Sea Borough Council,http://www.opendatacommunities.org/id/unitary-authority/southend,ED Neighbourhoods & Environment,Cultural and Related Services,7520,Tree Fella Limited,02/08/2022,12072079," 1,062.62 ",Private Contractors,Other Agencies
Southend-on-Sea Borough Council,http://www.opendatacommunities.org/id/unitary-authority/southend,ED Neighbourhoods & Environment,Cultural and Related Services,7515,(G) Close Brothers Rail Ltd,03/08/2022,12072083, 500.00 ,Repairs And Maintenance Contracts,"Repairs, alterations and maintenance of buildings"
Southend-on-Sea Borough Council,http://www.opendatacommunities.org/id/unitary-authority/southend,ED Neighbourhoods & Environment,Cultural And Related Services,4220,(G) Close Brothers Rail Ltd,03/08/2022,12072083, 990.00 ,Repairs And Maintenance Contracts,"Repairs, alterations and maintenance of buildings"
Southend-on-Sea Borough Council,http://www.opendatacommunities.org/id/unitary-authority/southend,ED Finance & Resources,Environmental and Regulatory Services,7535,(G) R & A Mechanical Services Ltd,03/08/2022,12072083," 1,320.00 ",Repairs And Maintenance Contracts,"Repairs, alterations and maintenance of buildings"
Southend-on-Sea Borough Council,http://www.opendatacommunities.org/id/unitary-authority/southend,ED Adults & Communities,Cultural And Related Services,4120,(G) Tes 2000 Ltd,03/08/2022,12072083," 9,332.52 ",Repairs And Maintenance Contracts,"Repairs, alterations and maintenance of buildings"
Southend-on-Sea Borough Council,http://www.opendatacommunities.org/id/unitary-authority/southend,ED Adults & Communities,Cultural And Related Services,4120,(G) Tes 2000 Ltd,03/08/2022,12072083," 9,712.52 ",Repairs And Maintenance Contracts,"Repairs, alterations and maintenance of buildings"
Southend-on-Sea Borough Council,http://www.opendatacommunities.org/id/unitary-authority/southend,ED Adults & Communities,Cultural And Related Services,4120,(G) Tes 2000 Ltd,03/08/2022,12072083,"-9,712.52 ",Repairs And Maintenance Contracts,"Repairs, alterations and maintenance of buildings"
Southend-on-Sea Borough Council,http://www.opendatacommunities.org/id/unitary-authority/southend,ED Children & Public Health,Children And Education Services,3250,A Wilderness Way Group Limited,03/08/2022,12072083," 22,452.00 ",Private Contractors,Other Agencies
Southend-on-Sea Borough Council,http://www.opendatacommunities.org/id/unitary-authority/southend,ED Children & Public Health,Children And Education Services,3250,A Wilderness Way Group Limited,03/08/2022,12072083," 56,087.10 ",Private Contractors,Other Agencies
Southend-on-Sea Borough Council,http://www.opendatacommunities.org/id/unitary-authority/southend,ED Children & Public Health,Children And Education Services,3250,Adeza Care Homes Limited,03/08/2022,12072083," 19,600.00 ",Private Contractors,Other Agencies
Southend-on-Sea Borough Council,http://www.opendatacommunities.org/id/unitary-authority/southend,ED Children & Public Health,Children And Education Services,3250,Affinity Fostering Services Ltd,03/08/2022,12072083," 3,226.16 ",Private Contractors,Other Agencies
Southend-on-Sea Borough Council,http://www.opendatacommunities.org/id/unitary-authority/southend,ED Children & Public Health,Children And Education Services,3250,Affinity Fostering Services Ltd,03/08/2022,12072083," 3,395.84 ",Private Contractors,Other Agencies
Southend-on-Sea Borough Council,http://www.opendatacommunities.org/id/unitary-authority/southend,ED Children & Public Health,Children And Education Services,3892,Ag Family Support Ltd,03/08/2022,12072083, 797.29 ,Private Contractors,Other Agencies
Southend-on-Sea Borough Council,http://www.opendatacommunities.org/id/unitary-authority/southend,ED Children & Public Health,Children And Education Services,3892,Ag Family Support Ltd,03/08/2022,12072083, 578.04 ,Private Contractors,Other Agencies
Southend-on-Sea Borough Council,http://www.opendatacommunities.org/id/unitary-authority/southend,ED Children & Public Health,Children And Education Services,3892,Ag Family Support Ltd,03/08/2022,12072083, 677.24 ,Private Contractors,Other Agencies
Southend-on-Sea Borough Council,http://www.opendatacommunities.org/id/unitary-authority/southend,ED Children & Public Health,Children And Education Services,3892,Ag Family Support Ltd,03/08/2022,12072083, 663.05 ,Private Contractors,Other Agencies
Southend-on-Sea Borough Council,http://www.opendatacommunities.org/id/unitary-authority/southend,ED Finance & Resources,Housing Services,6165,Allpay . Net Limited,03/08/2022,12072083," 1,319.80 ",Services Fees And Charges,Services
Southend-on-Sea Borough Council,http://www.opendatacommunities.org/id/unitary-authority/southend,ED Adults & Communities,Adult Social Care,1105,Alpha Health And Care Services Ltd,03/08/2022,12072083, 931.00 ,Private Contractors,Other Agencies
Southend-on-Sea Borough Council,http://www.opendatacommunities.org/id/unitary-authority/southend,ED Adults & Communities,Adult Social Care,1105,Alpha Health And Care Services Ltd,03/08/2022,12072083, 874.00 ,Private Contractors,Other Agencies
Southend-on-Sea Borough Council,http://www.opendatacommunities.org/id/unitary-authority/southend,ED Adults & Communities,Adult Social Care,1105,Alpha Health And Care Services Ltd,03/08/2022,12072083, 798.00 ,Private Contractors,Other Agencies
Southend-on-Sea Borough Council,http://www.opendatacommunities.org/id/unitary-authority/southend,ED Adults & Communities,Adult Social Care,1105,Alpha Health And Care Services Ltd,03/08/2022,12072083, 532.00 ,Private Contractors,Other Agencies
Southend-on-Sea Borough Council,http://www.opendatacommunities.org/id/unitary-authority/southend,ED Adults & Communities,Adult Social Care,1105,Alpha Health And Care Services Ltd,03/08/2022,12072083," 1,064.00 ",Private Contractors,Other Agencies
Southend-on-Sea Borough Council,http://www.opendatacommunities.org/id/unitary-authority/southend,ED Adults & Communities,Adult Social Care,1205,Alpha Health And Care Services Ltd,03/08/2022,12072083," 1,197.00 ",Private Contractors,Other Agencies
Southend-on-Sea Borough Council,http://www.opendatacommunities.org/id/unitary-authority/southend,ED Adults & Communities,Adult Social Care,1105,Alpha Health And Care Services Ltd,03/08/2022,12072083, 532.00 ,Private Contractors,Other Agencies
Southend-on-Sea Borough Council,http://www.opendatacommunities.org/id/unitary-authority/southend,ED Adults & Communities,Adult Social Care,1105,Alpha Health And Care Services Ltd,03/08/2022,12072083, 598.50 ,Private Contractors,Other Agencies
Southend-on-Sea Borough Council,http://www.opendatacommunities.org/id/unitary-authority/southend,ED Adults & Communities,Adult Social Care,1105,Alpha Health And Care Services Ltd,03/08/2022,12072083, 608.00 ,Private Contractors,Other Agencies
Southend-on-Sea Borough Council,http://www.opendatacommunities.org/id/unitary-authority/southend,ED Adults & Communities,Adult Social Care,1105,Alpha Health And Care Services Ltd,03/08/2022,12072083," 1,330.00 ",Private Contractors,Other Agencies
Southend-on-Sea Borough Council,http://www.opendatacommunities.org/id/unitary-authority/southend,ED Adults & Communities,Adult Social Care,1105,Alpha Health And Care Services Ltd,03/08/2022,12072083, 522.50 ,Private Contractors,Other Agencies
Southend-on-Sea Borough Council,http://www.opendatacommunities.org/id/unitary-authority/southend,ED Adults & Communities,Adult Social Care,1105,Alpha Health And Care Services Ltd,03/08/2022,12072083, 608.00 ,Private Contractors,Other Agencies
Southend-on-Sea Borough Council,http://www.opendatacommunities.org/id/unitary-authority/southend,ED Adults & Communities,Cultural And Related Services,4261,Askews And Holts Library Services Ltd,03/08/2022,12072083, 515.79 ,Books & education equipment,Printing Stationery And General Office Expenses
Southend-on-Sea Borough Council,http://www.opendatacommunities.org/id/unitary-authority/southend,ED Growth & Housing,Adult Social Care,1006,Bell Phillips Architects Limited,03/08/2022,12072083," 7,343.33 ",Consultancy Services,Services
Southend-on-Sea Borough Council,http://www.opendatacommunities.org/id/unitary-authority/southend,ED Children & Public Health,Children And Education Services,3250,Caldecott Fostering Ltd,03/08/2022,12072083," 5,760.00 ",Private Contractors,Other Agencies
Southend-on-Sea Borough Council,http://www.opendatacommunities.org/id/unitary-authority/southend,ED Children & Public Health,Children And Education Services,3250,Caring Hearts Fostering Ltd,03/08/2022,12072083," 3,428.70 ",Private Contractors,Other Agencies
Southend-on-Sea Borough Council,http://www.opendatacommunities.org/id/unitary-authority/southend,ED Children & Public Health,Children And Education Services,3891,Cast Communities And Sanctuary Seekers Together,03/08/2022,12072083, 808.00 ,Accomodation Payment,Services
Southend-on-Sea Borough Council,http://www.opendatacommunities.org/id/unitary-authority/southend,"ED Strategy, Change & Governance",Central Services,7125,Close Invoice Finance T/A Innovate Healthcare,03/08/2022,12072083," 1,350.00 ",Medical And Health Services,Services
Southend-on-Sea Borough Council,http://www.opendatacommunities.org/id/unitary-authority/southend,ED Finance & Resources,Central Services,8600,Corporate Travel Management (North) Limited,03/08/2022,12072083, 931.92 ,Travel Expenses,Car Allowances
Southend-on-Sea Borough Council,http://www.opendatacommunities.org/id/unitary-authority/southend,ED Growth & Housing,Housing Services,6130,Devine Treasures T/A Devine Beach Guest House,03/08/2022,12072083," 6,600.00 ",Accommodation Costs,Expenses
Southend-on-Sea Borough Council,http://www.opendatacommunities.org/id/unitary-authority/southend,ED Adults & Communities,Adult Social Care,1200,Dr Bex Harper,03/08/2022,12072083, 537.60 ,Private Contractors,Other Agencies
Southend-on-Sea Borough Council,http://www.opendatacommunities.org/id/unitary-authority/southend,ED Adults & Communities,Adult Social Care,1391,Essex County Council,03/08/2022,12072083, 614.40 ,Private Contractors,Other Agencies
Southend-on-Sea Borough Council,http://www.opendatacommunities.org/id/unitary-authority/southend,"ED Strategy, Change & Governance",Central Services,7125,Essex County Council,03/08/2022,12072083,"-6,699.00 ",Professional Fees,Services
Southend-on-Sea Borough Council,http://www.opendatacommunities.org/id/unitary-authority/southend,"ED Strategy, Change & Governance",Central Services,7125,Essex County Council,03/08/2022,12072083," 7,745.00 ",Professional Fees,Services
Southend-on-Sea Borough Council,http://www.opendatacommunities.org/id/unitary-authority/southend,ED Neighbourhoods & Environment,Environmental And Regulatory Services,4605,Euroloos Limited,03/08/2022,12072083, 510.00 ,Repairs And Maintenance Contracts,"Repairs, alterations and maintenance of buildings"
Southend-on-Sea Borough Council,http://www.opendatacommunities.org/id/unitary-authority/southend,ED Adults & Communities,Adult Social Care,1205,Fean Services Uk Ltd,03/08/2022,12072083," 1,558.00 ",Private Contractors,Other Agencies
Southend-on-Sea Borough Council,http://www.opendatacommunities.org/id/unitary-authority/southend,ED Finance & Resources,Central Services,8605,Healthy Abode Ltd,03/08/2022,12072083," 1,250.00 ",Private Contractors,Other Agencies
Southend-on-Sea Borough Council,http://www.opendatacommunities.org/id/unitary-authority/southend,ED Children & Public Health,Children And Education Services,3250,Illuminance Fostering Services,03/08/2022,12072083," 2,592.81 ",Private Contractors,Other Agencies
Southend-on-Sea Borough Council,http://www.opendatacommunities.org/id/unitary-authority/southend,ED Adults & Communities,Adult Social Care,1351,Jad Services Ltd,03/08/2022,12072083," 1,510.00 ",Cleaning And Janitorial Cleaning Service,Cleaning And Domestic Supplies
Southend-on-Sea Borough Council,http://www.opendatacommunities.org/id/unitary-authority/southend,ED Finance & Resources,Central Services,8605,Low & Low,03/08/2022,12072083, 588.00 ,Private Contractors,Other Agencies
Southend-on-Sea Borough Council,http://www.opendatacommunities.org/id/unitary-authority/southend,ED Adults & Communities,Housing Services,6210,Metropolitan Housing Trust,03/08/2022,12072083," 153,001.25 ",Social Care Services,Services
Southend-on-Sea Borough Council,http://www.opendatacommunities.org/id/unitary-authority/southend,ED Adults & Communities,Housing Services,6210,Metropolitan Housing Trust,03/08/2022,12072083,"-153,001.25 ",Social Care Services,Services
Southend-on-Sea Borough Council,http://www.opendatacommunities.org/id/unitary-authority/southend,ED Adults & Communities,Housing Services,6210,Metropolitan Housing Trust,03/08/2022,12072083," 157,911.17 ",Social Care Services,Services
Southend-on-Sea Borough Council,http://www.opendatacommunities.org/id/unitary-authority/southend,ED Growth & Housing,Housing Services,6011,Mr & Mrs G Cetnik T/A Pavilion Hotel,03/08/2022,12072083," 2,604.00 ",Accommodation Costs,Expenses
Southend-on-Sea Borough Council,http://www.opendatacommunities.org/id/unitary-authority/southend,ED Growth & Housing,Planning Services,5637,Ms Laura Gutane T/A Holy Cow Ice Cream Company,03/08/2022,12072083," 10,000.00 ",Grants,Grants And Subscriptions
Southend-on-Sea Borough Council,http://www.opendatacommunities.org/id/unitary-authority/southend,ED Finance & Resources,Central Services,7120,Phoenix Washroom Services Ltd,03/08/2022,12072083, 916.50 ,Washroom Sanitation Services,Cleaning And Domestic Supplies
Southend-on-Sea Borough Council,http://www.opendatacommunities.org/id/unitary-authority/southend,ED Neighbourhoods & Environment,Cultural and Related Services,7505,Prime Irrigation Ltd,03/08/2022,12072083, 860.00 ,Private Contractors,Other Agencies
Southend-on-Sea Borough Council,http://www.opendatacommunities.org/id/unitary-authority/southend,ED Adults & Communities,Adult Social Care,1200,REDACTED PERSONAL DATA,03/08/2022,12072083, 568.32 ,Private Contractors,Other Agencies
Southend-on-Sea Borough Council,http://www.opendatacommunities.org/id/unitary-authority/southend,ED Adults & Communities,Adult Social Care,1100,REDACTED PERSONAL DATA,03/08/2022,12072083, 967.68 ,Private Contractors,Other Agencies
Southend-on-Sea Borough Council,http://www.opendatacommunities.org/id/unitary-authority/southend,ED Adults & Communities,Adult Social Care,1305,REDACTED PERSONAL DATA,03/08/2022,12072083," 1,108.12 ",Private Contractors,Other Agencies
Southend-on-Sea Borough Council,http://www.opendatacommunities.org/id/unitary-authority/southend,ED Adults & Communities,Adult Social Care,1100,REDACTED PERSONAL DATA,03/08/2022,12072083, 798.00 ,Private Contractors,Other Agencies
Southend-on-Sea Borough Council,http://www.opendatacommunities.org/id/unitary-authority/southend,ED Adults & Communities,Adult Social Care,1100,REDACTED PERSONAL DATA,03/08/2022,12072083, 532.00 ,Private Contractors,Other Agencies
Southend-on-Sea Borough Council,http://www.opendatacommunities.org/id/unitary-authority/southend,ED Adults & Communities,Adult Social Care,1100,REDACTED PERSONAL DATA,03/08/2022,12072083," 1,577.00 ",Private Contractors,Other Agencies
Southend-on-Sea Borough Council,http://www.opendatacommunities.org/id/unitary-authority/southend,ED Adults & Communities,Adult Social Care,1100,REDACTED PERSONAL DATA,03/08/2022,12072083, 532.00 ,Private Contractors,Other Agencies
Southend-on-Sea Borough Council,http://www.opendatacommunities.org/id/unitary-authority/southend,ED Adults & Communities,Adult Social Care,1582,REDACTED PERSONAL DATA,03/08/2022,12072083, 860.16 ,Private Contractors,Other Agencies
Southend-on-Sea Borough Council,http://www.opendatacommunities.org/id/unitary-authority/southend,ED Adults & Communities,Adult Social Care,1100,REDACTED PERSONAL DATA,03/08/2022,12072083,"-2,980.80 ",Private Contractors,Other Agencies
Southend-on-Sea Borough Council,http://www.opendatacommunities.org/id/unitary-authority/southend,ED Adults & Communities,Adult Social Care,1100,REDACTED PERSONAL DATA,03/08/2022,12072083," 1,235.43 ",Private Contractors,Other Agencies
Southend-on-Sea Borough Council,http://www.opendatacommunities.org/id/unitary-authority/southend,ED Adults & Communities,Adult Social Care,1100,REDACTED PERSONAL DATA,03/08/2022,12072083," 1,197.00 ",Private Contractors,Other Agencies
Southend-on-Sea Borough Council,http://www.opendatacommunities.org/id/unitary-authority/southend,ED Adults & Communities,Adult Social Care,1100,REDACTED PERSONAL DATA,03/08/2022,12072083," 1,197.00 ",Private Contractors,Other Agencies
Southend-on-Sea Borough Council,http://www.opendatacommunities.org/id/unitary-authority/southend,ED Adults & Communities,Adult Social Care,1100,REDACTED PERSONAL DATA,03/08/2022,12072083," 1,197.00 ",Private Contractors,Other Agencies
Southend-on-Sea Borough Council,http://www.opendatacommunities.org/id/unitary-authority/southend,ED Adults & Communities,Adult Social Care,1100,REDACTED PERSONAL DATA,03/08/2022,12072083," 1,197.00 ",Private Contractors,Other Agencies
Southend-on-Sea Borough Council,http://www.opendatacommunities.org/id/unitary-authority/southend,ED Adults & Communities,Adult Social Care,1100,REDACTED PERSONAL DATA,03/08/2022,12072083," 6,792.50 ",Private Contractors,Other Agencies
Southend-on-Sea Borough Council,http://www.opendatacommunities.org/id/unitary-authority/southend,ED Growth & Housing,Housing Services,6130,REDACTED PERSONAL DATA,03/08/2022,12072083," 1,550.00 ",Loans,Services
Southend-on-Sea Borough Council,http://www.opendatacommunities.org/id/unitary-authority/southend,ED Growth & Housing,Housing Services,6010,REDACTED PERSONAL DATA,03/08/2022,12072083," 3,100.00 ",Accomodation Payment,Services
Southend-on-Sea Borough Council,http://www.opendatacommunities.org/id/unitary-authority/southend,ED Adults & Communities,Adult Social Care,1100,REDACTED PERSONAL DATA,03/08/2022,12072083," 1,197.00 ",Private Contractors,Other Agencies
Southend-on-Sea Borough Council,http://www.opendatacommunities.org/id/unitary-authority/southend,ED Adults & Communities,Adult Social Care,1100,REDACTED PERSONAL DATA,03/08/2022,12072083, 860.16 ,Private Contractors,Other Agencies
Southend-on-Sea Borough Council,http://www.opendatacommunities.org/id/unitary-authority/southend,ED Adults & Communities,Adult Social Care,1200,REDACTED PERSONAL DATA,03/08/2022,12072083," 1,228.80 ",Private Contractors,Other Agencies
Southend-on-Sea Borough Council,http://www.opendatacommunities.org/id/unitary-authority/southend,ED Adults & Communities,Adult Social Care,1100,REDACTED PERSONAL DATA,03/08/2022,12072083," 1,385.12 ",Private Contractors,Other Agencies
Southend-on-Sea Borough Council,http://www.opendatacommunities.org/id/unitary-authority/southend,ED Adults & Communities,Adult Social Care,1100,REDACTED PERSONAL DATA,03/08/2022,12072083, 836.00 ,Private Contractors,Other Agencies
Southend-on-Sea Borough Council,http://www.opendatacommunities.org/id/unitary-authority/southend,ED Adults & Communities,Adult Social Care,1100,REDACTED PERSONAL DATA,03/08/2022,12072083," 1,996.80 ",Private Contractors,Other Agencies
Southend-on-Sea Borough Council,http://www.opendatacommunities.org/id/unitary-authority/southend,ED Adults & Communities,Adult Social Care,1305,REDACTED PERSONAL DATA,03/08/2022,12072083, 621.32 ,Private Contractors,Other Agencies
Southend-on-Sea Borough Council,http://www.opendatacommunities.org/id/unitary-authority/southend,ED Adults & Communities,Adult Social Care,1305,REDACTED PERSONAL DATA,03/08/2022,12072083," 1,021.44 ",Private Contractors,Other Agencies
Southend-on-Sea Borough Council,http://www.opendatacommunities.org/id/unitary-authority/southend,ED Adults & Communities,Adult Social Care,1305,REDACTED PERSONAL DATA,03/08/2022,12072083," 1,125.88 ",Private Contractors,Other Agencies
Southend-on-Sea Borough Council,http://www.opendatacommunities.org/id/unitary-authority/southend,ED Adults & Communities,Adult Social Care,1100,REDACTED PERSONAL DATA,03/08/2022,12072083," 3,192.00 ",Private Contractors,Other Agencies
Southend-on-Sea Borough Council,http://www.opendatacommunities.org/id/unitary-authority/southend,ED Children & Public Health,Children And Education Services,3481,REDACTED PERSONAL DATA,03/08/2022,12072083," 1,735.95 ",Direct Payments,Housing Benefits
Southend-on-Sea Borough Council,http://www.opendatacommunities.org/id/unitary-authority/southend,ED Children & Public Health,Children And Education Services,3481,REDACTED PERSONAL DATA,03/08/2022,12072083," 5,460.39 ",Direct Payments,Housing Benefits
Southend-on-Sea Borough Council,http://www.opendatacommunities.org/id/unitary-authority/southend,ED Adults & Communities,Adult Social Care,1305,REDACTED PERSONAL DATA,03/08/2022,12072083," 2,192.68 ",Private Contractors,Other Agencies
Southend-on-Sea Borough Council,http://www.opendatacommunities.org/id/unitary-authority/southend,ED Adults & Communities,Adult Social Care,1200,REDACTED PERSONAL DATA,03/08/2022,12072083," 10,390.24 ",Private Contractors,Other Agencies
Southend-on-Sea Borough Council,http://www.opendatacommunities.org/id/unitary-authority/southend,ED Adults & Communities,Adult Social Care,1305,REDACTED PERSONAL DATA,03/08/2022,12072083, 856.28 ,Private Contractors,Other Agencies
Southend-on-Sea Borough Council,http://www.opendatacommunities.org/id/unitary-authority/southend,ED Adults & Communities,Adult Social Care,1305,REDACTED PERSONAL DATA,03/08/2022,12072083, 860.84 ,Private Contractors,Other Agencies
Southend-on-Sea Borough Council,http://www.opendatacommunities.org/id/unitary-authority/southend,ED Adults & Communities,Adult Social Care,1100,REDACTED PERSONAL DATA,03/08/2022,12072083," 2,128.00 ",Private Contractors,Other Agencies
Southend-on-Sea Borough Council,http://www.opendatacommunities.org/id/unitary-authority/southend,ED Adults & Communities,Adult Social Care,1100,REDACTED PERSONAL DATA,03/08/2022,12072083," 2,322.88 ",Private Contractors,Other Agencies
Southend-on-Sea Borough Council,http://www.opendatacommunities.org/id/unitary-authority/southend,ED Adults & Communities,Adult Social Care,1305,REDACTED PERSONAL DATA,03/08/2022,12072083," 1,146.60 ",Private Contractors,Other Agencies
Southend-on-Sea Borough Council,http://www.opendatacommunities.org/id/unitary-authority/southend,ED Adults & Communities,Adult Social Care,1305,REDACTED PERSONAL DATA,03/08/2022,12072083," 1,228.80 ",Private Contractors,Other Agencies
Southend-on-Sea Borough Council,http://www.opendatacommunities.org/id/unitary-authority/southend,ED Adults & Communities,Adult Social Care,1552,REDACTED PERSONAL DATA,03/08/2022,12072083, 521.36 ,Private Contractors,Other Agencies
Southend-on-Sea Borough Council,http://www.opendatacommunities.org/id/unitary-authority/southend,ED Children & Public Health,Children And Education Services,3481,REDACTED PERSONAL DATA,03/08/2022,12072083, 583.15 ,Direct Payments,Housing Benefits
Southend-on-Sea Borough Council,http://www.opendatacommunities.org/id/unitary-authority/southend,ED Adults & Communities,Adult Social Care,1305,REDACTED PERSONAL DATA,03/08/2022,12072083," 1,184.68 ",Private Contractors,Other Agencies
Southend-on-Sea Borough Council,http://www.opendatacommunities.org/id/unitary-authority/southend,ED Adults & Communities,Adult Social Care,1200,REDACTED PERSONAL DATA,03/08/2022,12072083," 1,904.64 ",Private Contractors,Other Agencies
Southend-on-Sea Borough Council,http://www.opendatacommunities.org/id/unitary-authority/southend,ED Adults & Communities,Adult Social Care,1305,REDACTED PERSONAL DATA,03/08/2022,12072083, 833.28 ,Private Contractors,Other Agencies
Southend-on-Sea Borough Council,http://www.opendatacommunities.org/id/unitary-authority/southend,ED Adults & Communities,Adult Social Care,1100,REDACTED PERSONAL DATA,03/08/2022,12072083, 741.00 ,Private Contractors,Other Agencies
Southend-on-Sea Borough Council,http://www.opendatacommunities.org/id/unitary-authority/southend,ED Adults & Communities,Adult Social Care,1305,REDACTED PERSONAL DATA,03/08/2022,12072083, 857.64 ,Private Contractors,Other Agencies
Southend-on-Sea Borough Council,http://www.opendatacommunities.org/id/unitary-authority/southend,ED Adults & Communities,Adult Social Care,1305,REDACTED PERSONAL DATA,03/08/2022,12072083, 860.16 ,Private Contractors,Other Agencies
Southend-on-Sea Borough Council,http://www.opendatacommunities.org/id/unitary-authority/southend,ED Adults & Communities,Adult Social Care,1200,REDACTED PERSONAL DATA,03/08/2022,12072083," 2,150.40 ",Private Contractors,Other Agencies
Southend-on-Sea Borough Council,http://www.opendatacommunities.org/id/unitary-authority/southend,ED Adults & Communities,Adult Social Care,1305,REDACTED PERSONAL DATA,03/08/2022,12072083," 5,480.00 ",Private Contractors,Other Agencies
Southend-on-Sea Borough Council,http://www.opendatacommunities.org/id/unitary-authority/southend,ED Adults & Communities,Adult Social Care,1305,REDACTED PERSONAL DATA,03/08/2022,12072083, 843.26 ,Private Contractors,Other Agencies
Southend-on-Sea Borough Council,http://www.opendatacommunities.org/id/unitary-authority/southend,ED Adults & Communities,Adult Social Care,1100,REDACTED PERSONAL DATA,03/08/2022,12072083," 1,482.00 ",Private Contractors,Other Agencies
Southend-on-Sea Borough Council,http://www.opendatacommunities.org/id/unitary-authority/southend,ED Adults & Communities,Adult Social Care,1305,REDACTED PERSONAL DATA,03/08/2022,12072083," 6,415.08 ",Private Contractors,Other Agencies
Southend-on-Sea Borough Council,http://www.opendatacommunities.org/id/unitary-authority/southend,ED Adults & Communities,Adult Social Care,1200,REDACTED PERSONAL DATA,03/08/2022,12072083," 3,373.16 ",Private Contractors,Other Agencies
Southend-on-Sea Borough Council,http://www.opendatacommunities.org/id/unitary-authority/southend,ED Adults & Communities,Adult Social Care,1200,REDACTED PERSONAL DATA,03/08/2022,12072083," 2,150.40 ",Private Contractors,Other Agencies
Southend-on-Sea Borough Council,http://www.opendatacommunities.org/id/unitary-authority/southend,ED Adults & Communities,Adult Social Care,1100,REDACTED PERSONAL DATA,03/08/2022,12072083," 1,505.28 ",Private Contractors,Other Agencies
Southend-on-Sea Borough Council,http://www.opendatacommunities.org/id/unitary-authority/southend,ED Children & Public Health,Children And Education Services,3481,REDACTED PERSONAL DATA,03/08/2022,12072083," 1,158.58 ",Direct Payments,Housing Benefits
Southend-on-Sea Borough Council,http://www.opendatacommunities.org/id/unitary-authority/southend,ED Adults & Communities,Adult Social Care,1100,REDACTED PERSONAL DATA,03/08/2022,12072083, 783.36 ,Private Contractors,Other Agencies
Southend-on-Sea Borough Council,http://www.opendatacommunities.org/id/unitary-authority/southend,ED Adults & Communities,Adult Social Care,1305,REDACTED PERSONAL DATA,03/08/2022,12072083," 1,854.36 ",Private Contractors,Other Agencies
Southend-on-Sea Borough Council,http://www.opendatacommunities.org/id/unitary-authority/southend,ED Adults & Communities,Adult Social Care,1111,REDACTED PERSONAL DATA,03/08/2022,12072083," 3,610.00 ",Private Contractors,Other Agencies
Southend-on-Sea Borough Council,http://www.opendatacommunities.org/id/unitary-authority/southend,ED Children & Public Health,Children And Education Services,3481,REDACTED PERSONAL DATA,03/08/2022,12072083, 930.38 ,Direct Payments,Housing Benefits
Southend-on-Sea Borough Council,http://www.opendatacommunities.org/id/unitary-authority/southend,ED Adults & Communities,Adult Social Care,1305,REDACTED PERSONAL DATA,03/08/2022,12072083," 2,030.34 ",Private Contractors,Other Agencies
Southend-on-Sea Borough Council,http://www.opendatacommunities.org/id/unitary-authority/southend,ED Adults & Communities,Adult Social Care,1305,REDACTED PERSONAL DATA,03/08/2022,12072083," 1,719.48 ",Private Contractors,Other Agencies
Southend-on-Sea Borough Council,http://www.opendatacommunities.org/id/unitary-authority/southend,ED Adults & Communities,Adult Social Care,1200,REDACTED PERSONAL DATA,03/08/2022,12072083," 1,330.00 ",Private Contractors,Other Agencies
Southend-on-Sea Borough Council,http://www.opendatacommunities.org/id/unitary-authority/southend,ED Adults & Communities,Adult Social Care,1200,REDACTED PERSONAL DATA,03/08/2022,12072083," 1,305.60 ",Private Contractors,Other Agencies
Southend-on-Sea Borough Council,http://www.opendatacommunities.org/id/unitary-authority/southend,ED Adults & Communities,Cultural And Related Services,4055,REDACTED PERSONAL DATA,03/08/2022,12072083, 600.00 ,Professional Fees,Services
Southend-on-Sea Borough Council,http://www.opendatacommunities.org/id/unitary-authority/southend,ED Adults & Communities,Adult Social Care,1200,REDACTED PERSONAL DATA,03/08/2022,12072083," 1,748.00 ",Private Contractors,Other Agencies
Southend-on-Sea Borough Council,http://www.opendatacommunities.org/id/unitary-authority/southend,ED Adults & Communities,Adult Social Care,1305,REDACTED PERSONAL DATA,03/08/2022,12072083, 654.92 ,Private Contractors,Other Agencies
Southend-on-Sea Borough Council,http://www.opendatacommunities.org/id/unitary-authority/southend,ED Adults & Communities,Adult Social Care,1305,REDACTED PERSONAL DATA,03/08/2022,12072083," 1,320.96 ",Private Contractors,Other Agencies
Southend-on-Sea Borough Council,http://www.opendatacommunities.org/id/unitary-authority/southend,ED Adults & Communities,Adult Social Care,1305,REDACTED PERSONAL DATA,03/08/2022,12072083," 1,291.92 ",Private Contractors,Other Agencies
Southend-on-Sea Borough Council,http://www.opendatacommunities.org/id/unitary-authority/southend,ED Adults & Communities,Adult Social Care,1100,REDACTED PERSONAL DATA,03/08/2022,12072083," 1,090.56 ",Private Contractors,Other Agencies
Southend-on-Sea Borough Council,http://www.opendatacommunities.org/id/unitary-authority/southend,ED Adults & Communities,Adult Social Care,1200,REDACTED PERSONAL DATA,03/08/2022,12072083," 3,846.08 ",Private Contractors,Other Agencies
Southend-on-Sea Borough Council,http://www.opendatacommunities.org/id/unitary-authority/southend,ED Adults & Communities,Adult Social Care,1305,REDACTED PERSONAL DATA,03/08/2022,12072083, 876.75 ,Private Contractors,Other Agencies
Southend-on-Sea Borough Council,http://www.opendatacommunities.org/id/unitary-authority/southend,ED Adults & Communities,Adult Social Care,1305,REDACTED PERSONAL DATA,03/08/2022,12072083," 1,336.44 ",Private Contractors,Other Agencies
Southend-on-Sea Borough Council,http://www.opendatacommunities.org/id/unitary-authority/southend,ED Adults & Communities,Adult Social Care,1305,REDACTED PERSONAL DATA,03/08/2022,12072083," 2,026.36 ",Private Contractors,Other Agencies
Southend-on-Sea Borough Council,http://www.opendatacommunities.org/id/unitary-authority/southend,ED Adults & Communities,Adult Social Care,1305,REDACTED PERSONAL DATA,03/08/2022,12072083," 2,211.84 ",Private Contractors,Other Agencies
Southend-on-Sea Borough Council,http://www.opendatacommunities.org/id/unitary-authority/southend,ED Adults & Communities,Adult Social Care,1200,REDACTED PERSONAL DATA,03/08/2022,12072083," 1,474.56 ",Private Contractors,Other Agencies
Southend-on-Sea Borough Council,http://www.opendatacommunities.org/id/unitary-authority/southend,ED Adults & Communities,Adult Social Care,1100,REDACTED PERSONAL DATA,03/08/2022,12072083," 5,026.28 ",Private Contractors,Other Agencies
Southend-on-Sea Borough Council,http://www.opendatacommunities.org/id/unitary-authority/southend,ED Adults & Communities,Adult Social Care,1305,REDACTED PERSONAL DATA,03/08/2022,12072083, 818.16 ,Private Contractors,Other Agencies
Southend-on-Sea Borough Council,http://www.opendatacommunities.org/id/unitary-authority/southend,ED Adults & Communities,Adult Social Care,1100,REDACTED PERSONAL DATA,03/08/2022,12072083," 2,580.48 ",Private Contractors,Other Agencies
Southend-on-Sea Borough Council,http://www.opendatacommunities.org/id/unitary-authority/southend,ED Children & Public Health,Children And Education Services,3481,REDACTED PERSONAL DATA,03/08/2022,12072083, 552.69 ,Direct Payments,Housing Benefits
Southend-on-Sea Borough Council,http://www.opendatacommunities.org/id/unitary-authority/southend,ED Growth & Housing,Housing Services,6130,Reed Residential,03/08/2022,12072083," 2,584.60 ",Loans,Services
Southend-on-Sea Borough Council,http://www.opendatacommunities.org/id/unitary-authority/southend,ED Children & Public Health,Children And Education Services,3892,Ruth Roberta Horton T/A Ruth Cabeza,03/08/2022,12072083, 750.00 ,Court Costs And Legal Fees,Services
Southend-on-Sea Borough Council,http://www.opendatacommunities.org/id/unitary-authority/southend,ED Finance & Resources,Housing Services,6165,Sale Appliances,03/08/2022,12072083, 641.44 ,Materials,Equipment Furniture And Materials
Southend-on-Sea Borough Council,http://www.opendatacommunities.org/id/unitary-authority/southend,ED Adults & Communities,Adult Social Care,1209,Scan Mobility Ltd,03/08/2022,12072083," 4,796.64 ",Tools And Equipment Repair And Maintenance,Equipment Furniture And Materials
Southend-on-Sea Borough Council,http://www.opendatacommunities.org/id/unitary-authority/southend,ED Adults & Communities,Adult Social Care,1209,Scan Mobility Ltd,03/08/2022,12072083," 1,098.00 ",Tools And Equipment Repair And Maintenance,Equipment Furniture And Materials
Southend-on-Sea Borough Council,http://www.opendatacommunities.org/id/unitary-authority/southend,ED Children & Public Health,Children And Education Services,3250,Shalamar Children Limited,03/08/2022,12072083," 5,401.14 ",Private Contractors,Other Agencies
Southend-on-Sea Borough Council,http://www.opendatacommunities.org/id/unitary-authority/southend,ED Children & Public Health,Children And Education Services,3250,Shalamar Children Limited,03/08/2022,12072083," 20,929.42 ",Private Contractors,Other Agencies
Southend-on-Sea Borough Council,http://www.opendatacommunities.org/id/unitary-authority/southend,ED Children & Public Health,Children And Education Services,3250,Soundly Fostering Ltd,03/08/2022,12072083," 3,985.71 ",Private Contractors,Other Agencies
Southend-on-Sea Borough Council,http://www.opendatacommunities.org/id/unitary-authority/southend,ED Children & Public Health,Children And Education Services,3250,Soundly Fostering Ltd,03/08/2022,12072083," 5,978.57 ",Private Contractors,Other Agencies
Southend-on-Sea Borough Council,http://www.opendatacommunities.org/id/unitary-authority/southend,ED Adults & Communities,Adult Social Care,1170,South Essex Homes,03/08/2022,12072083," 6,028.00 ",Social Care Services,Services
Southend-on-Sea Borough Council,http://www.opendatacommunities.org/id/unitary-authority/southend,ED Growth & Housing,Planning Services,5641,Specialist Trade Courses Limited,03/08/2022,12072083," 2,940.30 ",3rd Party training,Services
Southend-on-Sea Borough Council,http://www.opendatacommunities.org/id/unitary-authority/southend,ED Adults & Communities,Adult Social Care,1180,Your World Recruitment Ltd,03/08/2022,12072083," 1,480.00 ",Agency Staff,Direct Employee Expenses
Southend-on-Sea Borough Council,http://www.opendatacommunities.org/id/unitary-authority/southend,ED Finance & Resources,Central Services,9011,(G) Ace Demolition Services Limited,05/08/2022,12072091," 37,903.33 ",Main Contractor,Main Contractor
Southend-on-Sea Borough Council,http://www.opendatacommunities.org/id/unitary-authority/southend,ED Growth & Housing,Housing Services,9005,(G) Advanced Building & Maintenance Services Ltd,05/08/2022,12072091," 3,109.28 ",Contractors General,Contractors General
Southend-on-Sea Borough Council,http://www.opendatacommunities.org/id/unitary-authority/southend,ED Neighbourhoods & Environment,Highways And Transport Services,9008,(G) Eurovia Infrastructure Limited,05/08/2022,12072091," 27,463.26 ",Contractors General,Contractors General
Southend-on-Sea Borough Council,http://www.opendatacommunities.org/id/unitary-authority/southend,ED Neighbourhoods & Environment,Highways And Transport Services,9008,(G) Eurovia Infrastructure Limited,05/08/2022,12072091," 29,984.41 ",Contractors General,Contractors General
Southend-on-Sea Borough Council,http://www.opendatacommunities.org/id/unitary-authority/southend,ED Neighbourhoods & Environment,Highways And Transport Services,9008,(G) Eurovia Infrastructure Limited,05/08/2022,12072091," 34,366.71 ",Contractors General,Contractors General
Southend-on-Sea Borough Council,http://www.opendatacommunities.org/id/unitary-authority/southend,ED Neighbourhoods & Environment,Highways And Transport Services,9008,(G) Eurovia Infrastructure Limited,05/08/2022,12072091," 55,073.62 ",Contractors General,Contractors General
Southend-on-Sea Borough Council,http://www.opendatacommunities.org/id/unitary-authority/southend,ED Neighbourhoods & Environment,Highways And Transport Services,9008,(G) Eurovia Infrastructure Limited,05/08/2022,12072091," 34,366.71 ",Contractors General,Contractors General
Southend-on-Sea Borough Council,http://www.opendatacommunities.org/id/unitary-authority/southend,ED Neighbourhoods & Environment,Highways And Transport Services,9008,(G) Eurovia Infrastructure Limited,05/08/2022,12072091,"-34,366.71 ",Contractors General,Contractors General
Southend-on-Sea Borough Council,http://www.opendatacommunities.org/id/unitary-authority/southend,ED Neighbourhoods & Environment,Highways And Transport Services,9008,(G) Eurovia Infrastructure Limited,05/08/2022,12072091," 29,086.53 ",Contractors General,Contractors General
Southend-on-Sea Borough Council,http://www.opendatacommunities.org/id/unitary-authority/southend,ED Growth & Housing,Housing Services,9005,(G) Gracelands Cms Ltd,05/08/2022,12072091," 6,936.08 ",Contractors General,Contractors General
Southend-on-Sea Borough Council,http://www.opendatacommunities.org/id/unitary-authority/southend,ED Growth & Housing,Housing Services,9005,(G) Gracelands Cms Ltd,05/08/2022,12072091," 2,520.00 ",Contractors General,Contractors General
Southend-on-Sea Borough Council,http://www.opendatacommunities.org/id/unitary-authority/southend,ED Finance & Resources,Environmental and Regulatory Services,7110,(G) H2O Nationwide Limited,05/08/2022,12072091, 576.00 ,Repairs And Maintenance Contracts,"Repairs, alterations and maintenance of buildings"
Southend-on-Sea Borough Council,http://www.opendatacommunities.org/id/unitary-authority/southend,ED Finance & Resources,Central Services,9011,(G) Kieran Lucas Contractors Ltd,05/08/2022,12072091," 2,336.00 ",Main Contractor,Main Contractor
Southend-on-Sea Borough Council,http://www.opendatacommunities.org/id/unitary-authority/southend,ED Adults & Communities,Adult Social Care,9010,(G) Mansard Roofing Ltd,05/08/2022,12072091," 6,974.00 ",Main Contractor,Main Contractor
Southend-on-Sea Borough Council,http://www.opendatacommunities.org/id/unitary-authority/southend,ED Adults & Communities,Cultural And Related Services,4120,(G) Mde Power Ltd,05/08/2022,12072091," 3,063.53 ",Materials,Equipment Furniture And Materials
Southend-on-Sea Borough Council,http://www.opendatacommunities.org/id/unitary-authority/southend,ED Finance & Resources,Central Services,8605,(G) Millane Contract Services Ltd,05/08/2022,12072091," 1,288.00 ",Private Contractors,Other Agencies
Southend-on-Sea Borough Council,http://www.opendatacommunities.org/id/unitary-authority/southend,ED Children & Public Health,Children And Education Services,3030,(G) Millane Contract Services Ltd,05/08/2022,12072091, 618.83 ,Repairs And Maintenance Contracts,"Repairs, alterations and maintenance of buildings"
Southend-on-Sea Borough Council,http://www.opendatacommunities.org/id/unitary-authority/southend,ED Children & Public Health,Children And Education Services,9009,(G) R & A Mechanical Services Ltd,05/08/2022,12072091," 52,250.00 ",Main Contractor,Main Contractor
Southend-on-Sea Borough Council,http://www.opendatacommunities.org/id/unitary-authority/southend,ED Neighbourhoods & Environment,Cultural And Related Services,4201,(G) W.B Lemon Fencing,05/08/2022,12072091, 614.80 ,Materials,Equipment Furniture And Materials
Southend-on-Sea Borough Council,http://www.opendatacommunities.org/id/unitary-authority/southend,ED Growth & Housing,Housing Services,9005,(N) Ghyllside Ltd,05/08/2022,12072091," 9,549.00 ",Contractors General,Contractors General
Southend-on-Sea Borough Council,http://www.opendatacommunities.org/id/unitary-authority/southend,ED Children & Public Health,Children And Education Services,3250,A Wilderness Way Group Limited,05/08/2022,12072091," 55,299.35 ",Private Contractors,Other Agencies
Southend-on-Sea Borough Council,http://www.opendatacommunities.org/id/unitary-authority/southend,ED Children & Public Health,Children And Education Services,3250,A Wilderness Way Group Limited,05/08/2022,12072091," 55,299.35 ",Private Contractors,Other Agencies
Southend-on-Sea Borough Council,http://www.opendatacommunities.org/id/unitary-authority/southend,ED Adults & Communities,Adult Social Care,1209,Accora Ltd,05/08/2022,12072091," 1,095.00 ",Tools And Equipment Repair And Maintenance,Equipment Furniture And Materials
Southend-on-Sea Borough Council,http://www.opendatacommunities.org/id/unitary-authority/southend,ED Adults & Communities,Adult Social Care,1209,Accora Ltd,05/08/2022,12072091," 1,738.00 ",Tools And Equipment Repair And Maintenance,Equipment Furniture And Materials
Southend-on-Sea Borough Council,http://www.opendatacommunities.org/id/unitary-authority/southend,ED Growth & Housing,Housing Services,6130,Acme Developments (Uk) Ltd,05/08/2022,12072091," 1,300.00 ",Loans,Services
Southend-on-Sea Borough Council,http://www.opendatacommunities.org/id/unitary-authority/southend,ED Neighbourhoods & Environment,Cultural And Related Services,7540,Agrovista Uk Ltd,05/08/2022,12072091," 1,081.08 ",Materials,Equipment Furniture And Materials
Southend-on-Sea Borough Council,http://www.opendatacommunities.org/id/unitary-authority/southend,ED Adults & Communities,Adult Social Care,1105,Alpha Health And Care Services Ltd,05/08/2022,12072091," 1,197.00 ",Private Contractors,Other Agencies
Southend-on-Sea Borough Council,http://www.opendatacommunities.org/id/unitary-authority/southend,ED Adults & Communities,Adult Social Care,1205,Alpha Health And Care Services Ltd,05/08/2022,12072091, 969.00 ,Private Contractors,Other Agencies
Southend-on-Sea Borough Council,http://www.opendatacommunities.org/id/unitary-authority/southend,ED Adults & Communities,Adult Social Care,1105,Alpha Health And Care Services Ltd,05/08/2022,12072091," 1,330.00 ",Private Contractors,Other Agencies
Southend-on-Sea Borough Council,http://www.opendatacommunities.org/id/unitary-authority/southend,ED Adults & Communities,Adult Social Care,1105,Alpha Health And Care Services Ltd,05/08/2022,12072091," 1,197.00 ",Private Contractors,Other Agencies
Southend-on-Sea Borough Council,http://www.opendatacommunities.org/id/unitary-authority/southend,ED Adults & Communities,Adult Social Care,1105,Alpha Health And Care Services Ltd,05/08/2022,12072091, 608.00 ,Private Contractors,Other Agencies
Southend-on-Sea Borough Council,http://www.opendatacommunities.org/id/unitary-authority/southend,ED Adults & Communities,Adult Social Care,1105,Alpha Health And Care Services Ltd,05/08/2022,12072091, 598.50 ,Private Contractors,Other Agencies
Southend-on-Sea Borough Council,http://www.opendatacommunities.org/id/unitary-authority/southend,ED Adults & Communities,Adult Social Care,1105,Alpha Health And Care Services Ltd,05/08/2022,12072091," 1,197.00 ",Private Contractors,Other Agencies
Southend-on-Sea Borough Council,http://www.opendatacommunities.org/id/unitary-authority/southend,ED Adults & Communities,Adult Social Care,1205,Alpha Health And Care Services Ltd,05/08/2022,12072091," 1,197.00 ",Private Contractors,Other Agencies
Southend-on-Sea Borough Council,http://www.opendatacommunities.org/id/unitary-authority/southend,ED Adults & Communities,Adult Social Care,1105,Alpha Health And Care Services Ltd,05/08/2022,12072091," 1,197.00 ",Private Contractors,Other Agencies
Southend-on-Sea Borough Council,http://www.opendatacommunities.org/id/unitary-authority/southend,ED Adults & Communities,Cultural And Related Services,4122,Angel Human Resources Ltd T/A Angel Recruitment Group,05/08/2022,12072091, 599.60 ,Agency Staff,Direct Employee Expenses
Southend-on-Sea Borough Council,http://www.opendatacommunities.org/id/unitary-authority/southend,ED Neighbourhoods & Environment,Environmental And Regulatory Services,4505,Anglia Sign Casting Limited,05/08/2022,12072091, 846.30 ,Crematoria And Cemetery Services,Services
Southend-on-Sea Borough Council,http://www.opendatacommunities.org/id/unitary-authority/southend,ED Adults & Communities,Adult Social Care,1130,Ashley Community Care Services Ltd T/A Ashley Care,05/08/2022,12072091, 606.66 ,Grants,Grants And Subscriptions
Southend-on-Sea Borough Council,http://www.opendatacommunities.org/id/unitary-authority/southend,ED Adults & Communities,Adult Social Care,1105,Ashley Community Care Services Ltd T/A Ashley Care,05/08/2022,12072091," 13,481.45 ",Private Contractors,Other Agencies
Southend-on-Sea Borough Council,http://www.opendatacommunities.org/id/unitary-authority/southend,ED Adults & Communities,Adult Social Care,1205,Ashley Community Care Services Ltd T/A Ashley Care,05/08/2022,12072091, 988.00 ,Private Contractors,Other Agencies
Southend-on-Sea Borough Council,http://www.opendatacommunities.org/id/unitary-authority/southend,ED Children & Public Health,Children And Education Services,3250,Aspirations Fostering Limited,05/08/2022,12072091," 3,503.64 ",Private Contractors,Other Agencies
Southend-on-Sea Borough Council,http://www.opendatacommunities.org/id/unitary-authority/southend,ED Children & Public Health,Children And Education Services,3250,Aspirations Fostering Limited,05/08/2022,12072091," 3,243.52 ",Private Contractors,Other Agencies
Southend-on-Sea Borough Council,http://www.opendatacommunities.org/id/unitary-authority/southend,ED Children & Public Health,Children And Education Services,3250,Aspirations Fostering Limited,05/08/2022,12072091," 3,355.52 ",Private Contractors,Other Agencies
Southend-on-Sea Borough Council,http://www.opendatacommunities.org/id/unitary-authority/southend,ED Children & Public Health,Children And Education Services,3250,Aspirations Fostering Limited,05/08/2022,12072091," 4,620.00 ",Private Contractors,Other Agencies
Southend-on-Sea Borough Council,http://www.opendatacommunities.org/id/unitary-authority/southend,ED Children & Public Health,Children And Education Services,3250,Aspirations Fostering Limited,05/08/2022,12072091," 3,503.64 ",Private Contractors,Other Agencies
Southend-on-Sea Borough Council,http://www.opendatacommunities.org/id/unitary-authority/southend,ED Children & Public Health,Children And Education Services,3250,Aspirations Fostering Limited,05/08/2022,12072091," 3,503.64 ",Private Contractors,Other Agencies
Southend-on-Sea Borough Council,http://www.opendatacommunities.org/id/unitary-authority/southend,ED Children & Public Health,Children And Education Services,3250,Aspirations Fostering Limited,05/08/2022,12072091," 3,345.44 ",Private Contractors,Other Agencies
Southend-on-Sea Borough Council,http://www.opendatacommunities.org/id/unitary-authority/southend,ED Children & Public Health,Children And Education Services,3250,Aspirations Fostering Limited,05/08/2022,12072091," 3,979.92 ",Private Contractors,Other Agencies
Southend-on-Sea Borough Council,http://www.opendatacommunities.org/id/unitary-authority/southend,ED Children & Public Health,Children And Education Services,3250,Aspirations Fostering Limited,05/08/2022,12072091," 3,503.64 ",Private Contractors,Other Agencies
Southend-on-Sea Borough Council,http://www.opendatacommunities.org/id/unitary-authority/southend,ED Children & Public Health,Children And Education Services,3250,Aspirations Fostering Limited,05/08/2022,12072091," 3,345.44 ",Private Contractors,Other Agencies
Southend-on-Sea Borough Council,http://www.opendatacommunities.org/id/unitary-authority/southend,ED Adults & Communities,Adult Social Care,1209,Barclay & Mathieson Ltd T/A Ims,05/08/2022,12072091," 1,177.00 ",Alterations And Adaptations,"Repairs, alterations and maintenance of buildings"
Southend-on-Sea Borough Council,http://www.opendatacommunities.org/id/unitary-authority/southend,ED Adults & Communities,Adult Social Care,1209,Barclay & Mathieson Ltd T/A Ims,05/08/2022,12072091, 711.50 ,Alterations And Adaptations,"Repairs, alterations and maintenance of buildings"
Southend-on-Sea Borough Council,http://www.opendatacommunities.org/id/unitary-authority/southend,ED Adults & Communities,Cultural And Related Services,4121,Brake Bros Foodservice Ltd,05/08/2022,12072091, 573.49 ,Catering Food And Beverages,Catering
Southend-on-Sea Borough Council,http://www.opendatacommunities.org/id/unitary-authority/southend,ED Growth & Housing,Housing Services,9005,Brights Locksmiths Limited,05/08/2022,12072091," 1,722.54 ",Contractors General,Contractors General
Southend-on-Sea Borough Council,http://www.opendatacommunities.org/id/unitary-authority/southend,ED Adults & Communities,Adult Social Care,1105,Brooks Care & Nursing Services Ltd,05/08/2022,12072091," 3,393.72 ",Private Contractors,Other Agencies
Southend-on-Sea Borough Council,http://www.opendatacommunities.org/id/unitary-authority/southend,ED Children & Public Health,Children And Education Services,3250,By The Bridge Ltd,05/08/2022,12072091," 4,284.00 ",Private Contractors,Other Agencies
Southend-on-Sea Borough Council,http://www.opendatacommunities.org/id/unitary-authority/southend,ED Children & Public Health,Children And Education Services,3307,By The Bridge Ltd,05/08/2022,12072091," 4,284.00 ",Private Contractors,Other Agencies
Southend-on-Sea Borough Council,http://www.opendatacommunities.org/id/unitary-authority/southend,ED Children & Public Health,Children And Education Services,3250,By The Bridge Ltd,05/08/2022,12072091," 3,400.04 ",Private Contractors,Other Agencies
Southend-on-Sea Borough Council,http://www.opendatacommunities.org/id/unitary-authority/southend,ED Children & Public Health,Children And Education Services,3250,By The Bridge Ltd,05/08/2022,12072091," 3,400.04 ",Private Contractors,Other Agencies
Southend-on-Sea Borough Council,http://www.opendatacommunities.org/id/unitary-authority/southend,ED Children & Public Health,Children And Education Services,3250,Cambian Childcare Limited,05/08/2022,12072091," 26,274.67 ",Private Contractors,Other Agencies
Southend-on-Sea Borough Council,http://www.opendatacommunities.org/id/unitary-authority/southend,ED Adults & Communities,Adult Social Care,1079,Catherine Miller House Ltd,05/08/2022,12072091," 5,535.00 ",Private Contractors,Other Agencies
Southend-on-Sea Borough Council,http://www.opendatacommunities.org/id/unitary-authority/southend,ED Adults & Communities,Adult Social Care,1083,Catherine Miller House Ltd,05/08/2022,12072091," 3,510.00 ",Private Contractors,Other Agencies
Southend-on-Sea Borough Council,http://www.opendatacommunities.org/id/unitary-authority/southend,ED Children & Public Health,Children And Education Services,3105,Charanga Ltd,05/08/2022,12072091," 8,235.00 ",Subscriptions,Grants And Subscriptions
Southend-on-Sea Borough Council,http://www.opendatacommunities.org/id/unitary-authority/southend,ED Growth & Housing,Planning Services,5637,Chelmer Living Limited T/A Mark James Collection,05/08/2022,12072091," 7,659.00 ",Grants,Grants And Subscriptions
Southend-on-Sea Borough Council,http://www.opendatacommunities.org/id/unitary-authority/southend,ED Adults & Communities,Adult Social Care,1105,Choices Healthcare Ltd,05/08/2022,12072091," 16,595.19 ",Private Contractors,Other Agencies
Southend-on-Sea Borough Council,http://www.opendatacommunities.org/id/unitary-authority/southend,ED Adults & Communities,Adult Social Care,1108,Choices Healthcare Ltd,05/08/2022,12072091, 565.25 ,Private Contractors,Other Agencies
Southend-on-Sea Borough Council,http://www.opendatacommunities.org/id/unitary-authority/southend,ED Adults & Communities,Adult Social Care,1205,Choices Healthcare Ltd,05/08/2022,12072091," 1,781.27 ",Private Contractors,Other Agencies
Southend-on-Sea Borough Council,http://www.opendatacommunities.org/id/unitary-authority/southend,"ED Strategy, Change & Governance",Central Services,9012,Daniel Halls T/A Drh365 Solutions,05/08/2022,12072091, 968.00 ,Other Expenses,Other Expenses
Southend-on-Sea Borough Council,http://www.opendatacommunities.org/id/unitary-authority/southend,ED Growth & Housing,Housing Services,6130,Devine Treasures T/A Devine Beach Guest House,05/08/2022,12072091," 2,400.00 ",Accommodation Costs,Expenses
Southend-on-Sea Borough Council,http://www.opendatacommunities.org/id/unitary-authority/southend,ED Growth & Housing,Housing Services,6130,Devine Treasures T/A Devine Beach Guest House,05/08/2022,12072091," 1,600.00 ",Accommodation Costs,Expenses
Southend-on-Sea Borough Council,http://www.opendatacommunities.org/id/unitary-authority/southend,ED Growth & Housing,Housing Services,6130,Devine Treasures T/A Devine Beach Guest House,05/08/2022,12072091," 4,480.00 ",Accommodation Costs,Expenses
Southend-on-Sea Borough Council,http://www.opendatacommunities.org/id/unitary-authority/southend,ED Children & Public Health,Children And Education Services,3152,Dr G Horrigan,05/08/2022,12072091," 3,960.00 ",Private Contractors,Other Agencies
Southend-on-Sea Borough Council,http://www.opendatacommunities.org/id/unitary-authority/southend,"ED Strategy, Change & Governance",Central Services,7105,East Anglian Chambers T/A Jonathan Taylor,05/08/2022,12072091, 650.00 ,Barristers fees,Services
Southend-on-Sea Borough Council,http://www.opendatacommunities.org/id/unitary-authority/southend,"ED Strategy, Change & Governance",Central Services,7105,East Anglian Chambers T/A Miss Alison Underhill,05/08/2022,12072091," 1,000.00 ",Barristers fees,Services
Southend-on-Sea Borough Council,http://www.opendatacommunities.org/id/unitary-authority/southend,ED Children & Public Health,Children And Education Services,3250,Eastern Family Services T/A Eastern Fostering Services Ltd,05/08/2022,12072091," 3,399.76 ",Private Contractors,Other Agencies
Southend-on-Sea Borough Council,http://www.opendatacommunities.org/id/unitary-authority/southend,ED Children & Public Health,Children And Education Services,3250,Eastern Family Services T/A Eastern Fostering Services Ltd,05/08/2022,12072091," 3,416.00 ",Private Contractors,Other Agencies
Southend-on-Sea Borough Council,http://www.opendatacommunities.org/id/unitary-authority/southend,ED Children & Public Health,Children And Education Services,3250,Eastern Family Services T/A Eastern Fostering Services Ltd,05/08/2022,12072091," 3,500.00 ",Private Contractors,Other Agencies
Southend-on-Sea Borough Council,http://www.opendatacommunities.org/id/unitary-authority/southend,ED Adults & Communities,Adult Social Care,1391,Encircle Housing,05/08/2022,12072091," 1,671.92 ",Private Contractors,Other Agencies
Southend-on-Sea Borough Council,http://www.opendatacommunities.org/id/unitary-authority/southend,"ED Strategy, Change & Governance",Adult Social Care,3201,Englemere Limited,05/08/2022,12072091," 1,550.00 ",Commissioned Training,Services
Southend-on-Sea Borough Council,http://www.opendatacommunities.org/id/unitary-authority/southend,ED Neighbourhoods & Environment,Cultural and Related Services,7505,Ernest Doe And Sons Ltd,05/08/2022,12072091," 2,434.48 ",Tools And Equipment Repair And Maintenance,Equipment Furniture And Materials
Southend-on-Sea Borough Council,http://www.opendatacommunities.org/id/unitary-authority/southend,ED Children & Public Health,Children And Education Services,3250,Foster Care Associates Ltd,05/08/2022,12072091,"-8,255.36 ",Private Contractors,Other Agencies
Southend-on-Sea Borough Council,http://www.opendatacommunities.org/id/unitary-authority/southend,ED Children & Public Health,Children And Education Services,3250,Foster Care Associates Ltd,05/08/2022,12072091,"-3,611.72 ",Private Contractors,Other Agencies
Southend-on-Sea Borough Council,http://www.opendatacommunities.org/id/unitary-authority/southend,ED Children & Public Health,Children And Education Services,3250,Foster Care Associates Ltd,05/08/2022,12072091," 3,806.60 ",Private Contractors,Other Agencies
Southend-on-Sea Borough Council,http://www.opendatacommunities.org/id/unitary-authority/southend,ED Children & Public Health,Children And Education Services,3250,Foster Care Associates Ltd,05/08/2022,12072091," 8,700.80 ",Private Contractors,Other Agencies
Southend-on-Sea Borough Council,http://www.opendatacommunities.org/id/unitary-authority/southend,"ED Strategy, Change & Governance",Central Services,8602,Gamma Business Communication Limited,05/08/2022,12072091, 715.20 ,Telephone - Mobile,Communications And Computing
Southend-on-Sea Borough Council,http://www.opendatacommunities.org/id/unitary-authority/southend,ED Adults & Communities,Adult Social Care,1105,Hales Group Ltd,05/08/2022,12072091, 508.25 ,Private Contractors,Other Agencies
Southend-on-Sea Borough Council,http://www.opendatacommunities.org/id/unitary-authority/southend,ED Finance & Resources,Housing Services,6165,Harp,05/08/2022,12072091, 692.00 ,Materials,Equipment Furniture And Materials
Southend-on-Sea Borough Council,http://www.opendatacommunities.org/id/unitary-authority/southend,ED Adults & Communities,Adult Social Care,1025,Hays Specialist Recruitment Ltd Receipts Recruitment File Only,05/08/2022,12072091," 3,900.00 ",Recruitment,Indirect Employee Expenses
Southend-on-Sea Borough Council,http://www.opendatacommunities.org/id/unitary-authority/southend,ED Adults & Communities,Adult Social Care,1365,Hays Specialist Recruitment Ltd Receipts Recruitment File Only,05/08/2022,12072091," 1,071.60 ",Agency Staff,Direct Employee Expenses
Southend-on-Sea Borough Council,http://www.opendatacommunities.org/id/unitary-authority/southend,ED Adults & Communities,Adult Social Care,1365,Hays Specialist Recruitment Ltd Receipts Recruitment File Only,05/08/2022,12072091," 1,408.68 ",Agency Staff,Direct Employee Expenses
Southend-on-Sea Borough Council,http://www.opendatacommunities.org/id/unitary-authority/southend,ED Adults & Communities,Adult Social Care,1490,Hays Specialist Recruitment Ltd Receipts Recruitment File Only,05/08/2022,12072091, 735.62 ,Agency Staff,Direct Employee Expenses
Southend-on-Sea Borough Council,http://www.opendatacommunities.org/id/unitary-authority/southend,ED Adults & Communities,Adult Social Care,1490,Hays Specialist Recruitment Ltd Receipts Recruitment File Only,05/08/2022,12072091," 1,103.43 ",Agency Staff,Direct Employee Expenses
Southend-on-Sea Borough Council,http://www.opendatacommunities.org/id/unitary-authority/southend,ED Adults & Communities,Adult Social Care,1180,Hays Specialist Recruitment Ltd Receipts Recruitment File Only,05/08/2022,12072091," 1,448.92 ",Agency Staff,Direct Employee Expenses
Southend-on-Sea Borough Council,http://www.opendatacommunities.org/id/unitary-authority/southend,ED Adults & Communities,Adult Social Care,1051,Hays Specialist Recruitment Ltd Receipts Recruitment File Only,05/08/2022,12072091," 1,300.32 ",Agency Staff,Direct Employee Expenses
Southend-on-Sea Borough Council,http://www.opendatacommunities.org/id/unitary-authority/southend,ED Adults & Communities,Adult Social Care,1365,Hays Specialist Recruitment Ltd Receipts Recruitment File Only,05/08/2022,12072091," 1,336.44 ",Agency Staff,Direct Employee Expenses
Southend-on-Sea Borough Council,http://www.opendatacommunities.org/id/unitary-authority/southend,ED Adults & Communities,Adult Social Care,1350,Hays Specialist Recruitment Ltd Receipts Recruitment File Only,05/08/2022,12072091," 1,336.44 ",Agency Staff,Direct Employee Expenses
Southend-on-Sea Borough Council,http://www.opendatacommunities.org/id/unitary-authority/southend,ED Adults & Communities,Adult Social Care,1051,Hays Specialist Recruitment Ltd Receipts Recruitment File Only,05/08/2022,12072091," 1,336.44 ",Agency Staff,Direct Employee Expenses
Southend-on-Sea Borough Council,http://www.opendatacommunities.org/id/unitary-authority/southend,ED Adults & Communities,Adult Social Care,1461,Hays Specialist Recruitment Ltd Receipts Recruitment File Only,05/08/2022,12072091," 2,605.20 ",Agency Staff,Direct Employee Expenses
Southend-on-Sea Borough Council,http://www.opendatacommunities.org/id/unitary-authority/southend,ED Adults & Communities,Adult Social Care,1365,Hays Specialist Recruitment Ltd Receipts Recruitment File Only,05/08/2022,12072091, 794.64 ,Agency Staff,Direct Employee Expenses
Southend-on-Sea Borough Council,http://www.opendatacommunities.org/id/unitary-authority/southend,ED Adults & Communities,Adult Social Care,1365,Hays Specialist Recruitment Ltd Receipts Recruitment File Only,05/08/2022,12072091," 1,336.44 ",Agency Staff,Direct Employee Expenses
Southend-on-Sea Borough Council,http://www.opendatacommunities.org/id/unitary-authority/southend,ED Adults & Communities,Adult Social Care,1365,Hays Specialist Recruitment Ltd Receipts Recruitment File Only,05/08/2022,12072091," 1,336.44 ",Agency Staff,Direct Employee Expenses
Southend-on-Sea Borough Council,http://www.opendatacommunities.org/id/unitary-authority/southend,ED Adults & Communities,Adult Social Care,1365,Hays Specialist Recruitment Ltd Receipts Recruitment File Only,05/08/2022,12072091," 1,336.44 ",Agency Staff,Direct Employee Expenses
Southend-on-Sea Borough Council,http://www.opendatacommunities.org/id/unitary-authority/southend,ED Adults & Communities,Adult Social Care,1365,Hays Specialist Recruitment Ltd Receipts Recruitment File Only,05/08/2022,12072091," 1,565.90 ",Agency Staff,Direct Employee Expenses
Southend-on-Sea Borough Council,http://www.opendatacommunities.org/id/unitary-authority/southend,ED Adults & Communities,Adult Social Care,1351,Hays Specialist Recruitment Ltd Receipts Recruitment File Only,05/08/2022,12072091," 1,336.44 ",Agency Staff,Direct Employee Expenses
Southend-on-Sea Borough Council,http://www.opendatacommunities.org/id/unitary-authority/southend,ED Adults & Communities,Adult Social Care,1352,Hays Specialist Recruitment Ltd Receipts Recruitment File Only,05/08/2022,12072091," 1,336.44 ",Agency Staff,Direct Employee Expenses
Southend-on-Sea Borough Council,http://www.opendatacommunities.org/id/unitary-authority/southend,ED Adults & Communities,Adult Social Care,1365,Hays Specialist Recruitment Ltd Receipts Recruitment File Only,05/08/2022,12072091," 1,336.44 ",Agency Staff,Direct Employee Expenses
Southend-on-Sea Borough Council,http://www.opendatacommunities.org/id/unitary-authority/southend,ED Adults & Communities,Adult Social Care,1461,Hays Specialist Recruitment Ltd Receipts Recruitment File Only,05/08/2022,12072091," 1,563.12 ",Agency Staff,Direct Employee Expenses
Southend-on-Sea Borough Council,http://www.opendatacommunities.org/id/unitary-authority/southend,ED Adults & Communities,Adult Social Care,1461,Hays Specialist Recruitment Ltd Receipts Recruitment File Only,05/08/2022,12072091," 1,563.12 ",Agency Staff,Direct Employee Expenses
Southend-on-Sea Borough Council,http://www.opendatacommunities.org/id/unitary-authority/southend,ED Adults & Communities,Adult Social Care,1461,Hays Specialist Recruitment Ltd Receipts Recruitment File Only,05/08/2022,12072091," 2,605.20 ",Agency Staff,Direct Employee Expenses
Southend-on-Sea Borough Council,http://www.opendatacommunities.org/id/unitary-authority/southend,ED Adults & Communities,Adult Social Care,1461,Hays Specialist Recruitment Ltd Receipts Recruitment File Only,05/08/2022,12072091, 521.04 ,Agency Staff,Direct Employee Expenses
Southend-on-Sea Borough Council,http://www.opendatacommunities.org/id/unitary-authority/southend,ED Adults & Communities,Adult Social Care,1350,Hays Specialist Recruitment Ltd Receipts Recruitment File Only,05/08/2022,12072091, 523.74 ,Agency Staff,Direct Employee Expenses
Southend-on-Sea Borough Council,http://www.opendatacommunities.org/id/unitary-authority/southend,ED Adults & Communities,Adult Social Care,1350,Hays Specialist Recruitment Ltd Receipts Recruitment File Only,05/08/2022,12072091," 1,336.44 ",Agency Staff,Direct Employee Expenses
Southend-on-Sea Borough Council,http://www.opendatacommunities.org/id/unitary-authority/southend,ED Adults & Communities,Adult Social Care,1350,Hays Specialist Recruitment Ltd Receipts Recruitment File Only,05/08/2022,12072091," 1,336.44 ",Agency Staff,Direct Employee Expenses
Southend-on-Sea Borough Council,http://www.opendatacommunities.org/id/unitary-authority/southend,ED Adults & Communities,Cultural And Related Services,4120,Hays Specialist Recruitment Ltd Receipts Recruitment File Only,05/08/2022,12072091, 573.15 ,Agency Staff,Direct Employee Expenses
Southend-on-Sea Borough Council,http://www.opendatacommunities.org/id/unitary-authority/southend,ED Adults & Communities,Cultural And Related Services,4120,Hays Specialist Recruitment Ltd Receipts Recruitment File Only,05/08/2022,12072091, 805.51 ,Agency Staff,Direct Employee Expenses
Southend-on-Sea Borough Council,http://www.opendatacommunities.org/id/unitary-authority/southend,ED Adults & Communities,Cultural And Related Services,4120,Hays Specialist Recruitment Ltd Receipts Recruitment File Only,05/08/2022,12072091," 1,042.80 ",Agency Staff,Direct Employee Expenses
Southend-on-Sea Borough Council,http://www.opendatacommunities.org/id/unitary-authority/southend,ED Adults & Communities,Cultural And Related Services,4120,Hays Specialist Recruitment Ltd Receipts Recruitment File Only,05/08/2022,12072091, 644.99 ,Agency Staff,Direct Employee Expenses
Southend-on-Sea Borough Council,http://www.opendatacommunities.org/id/unitary-authority/southend,ED Adults & Communities,Cultural And Related Services,4120,Hays Specialist Recruitment Ltd Receipts Recruitment File Only,05/08/2022,12072091, 573.40 ,Agency Staff,Direct Employee Expenses
Southend-on-Sea Borough Council,http://www.opendatacommunities.org/id/unitary-authority/southend,ED Adults & Communities,Cultural And Related Services,4120,Hays Specialist Recruitment Ltd Receipts Recruitment File Only,05/08/2022,12072091, 862.46 ,Agency Staff,Direct Employee Expenses
Southend-on-Sea Borough Council,http://www.opendatacommunities.org/id/unitary-authority/southend,ED Adults & Communities,Cultural And Related Services,4120,Hays Specialist Recruitment Ltd Receipts Recruitment File Only,05/08/2022,12072091, 565.75 ,Agency Staff,Direct Employee Expenses
Southend-on-Sea Borough Council,http://www.opendatacommunities.org/id/unitary-authority/southend,ED Adults & Communities,Cultural And Related Services,4120,Hays Specialist Recruitment Ltd Receipts Recruitment File Only,05/08/2022,12072091, 522.12 ,Agency Staff,Direct Employee Expenses
Southend-on-Sea Borough Council,http://www.opendatacommunities.org/id/unitary-authority/southend,ED Adults & Communities,Cultural And Related Services,4120,Hays Specialist Recruitment Ltd Receipts Recruitment File Only,05/08/2022,12072091, 573.15 ,Agency Staff,Direct Employee Expenses
Southend-on-Sea Borough Council,http://www.opendatacommunities.org/id/unitary-authority/southend,ED Adults & Communities,Cultural And Related Services,4120,Hays Specialist Recruitment Ltd Receipts Recruitment File Only,05/08/2022,12072091, 813.26 ,Agency Staff,Direct Employee Expenses
Southend-on-Sea Borough Council,http://www.opendatacommunities.org/id/unitary-authority/southend,ED Adults & Communities,Cultural And Related Services,4120,Hays Specialist Recruitment Ltd Receipts Recruitment File Only,05/08/2022,12072091, 580.90 ,Agency Staff,Direct Employee Expenses
Southend-on-Sea Borough Council,http://www.opendatacommunities.org/id/unitary-authority/southend,ED Adults & Communities,Cultural And Related Services,4120,Hays Specialist Recruitment Ltd Receipts Recruitment File Only,05/08/2022,12072091, 683.23 ,Agency Staff,Direct Employee Expenses
Southend-on-Sea Borough Council,http://www.opendatacommunities.org/id/unitary-authority/southend,ED Adults & Communities,Cultural And Related Services,4120,Hays Specialist Recruitment Ltd Receipts Recruitment File Only,05/08/2022,12072091, 573.15 ,Agency Staff,Direct Employee Expenses
Southend-on-Sea Borough Council,http://www.opendatacommunities.org/id/unitary-authority/southend,ED Adults & Communities,Cultural And Related Services,4120,Hays Specialist Recruitment Ltd Receipts Recruitment File Only,05/08/2022,12072091, 580.88 ,Agency Staff,Direct Employee Expenses
Southend-on-Sea Borough Council,http://www.opendatacommunities.org/id/unitary-authority/southend,ED Adults & Communities,Cultural And Related Services,4120,Hays Specialist Recruitment Ltd Receipts Recruitment File Only,05/08/2022,12072091, 795.11 ,Agency Staff,Direct Employee Expenses
Southend-on-Sea Borough Council,http://www.opendatacommunities.org/id/unitary-authority/southend,ED Adults & Communities,Cultural And Related Services,4120,Hays Specialist Recruitment Ltd Receipts Recruitment File Only,05/08/2022,12072091, 573.15 ,Agency Staff,Direct Employee Expenses
Southend-on-Sea Borough Council,http://www.opendatacommunities.org/id/unitary-authority/southend,ED Adults & Communities,Cultural And Related Services,4120,Hays Specialist Recruitment Ltd Receipts Recruitment File Only,05/08/2022,12072091, 573.15 ,Agency Staff,Direct Employee Expenses
Southend-on-Sea Borough Council,http://www.opendatacommunities.org/id/unitary-authority/southend,ED Adults & Communities,Cultural And Related Services,4120,Hays Specialist Recruitment Ltd Receipts Recruitment File Only,05/08/2022,12072091, 684.14 ,Agency Staff,Direct Employee Expenses
Southend-on-Sea Borough Council,http://www.opendatacommunities.org/id/unitary-authority/southend,ED Adults & Communities,Cultural And Related Services,4120,Hays Specialist Recruitment Ltd Receipts Recruitment File Only,05/08/2022,12072091," 1,784.22 ",Agency Staff,Direct Employee Expenses
Southend-on-Sea Borough Council,http://www.opendatacommunities.org/id/unitary-authority/southend,ED Adults & Communities,Cultural And Related Services,4120,Hays Specialist Recruitment Ltd Receipts Recruitment File Only,05/08/2022,12072091, 677.84 ,Agency Staff,Direct Employee Expenses
Southend-on-Sea Borough Council,http://www.opendatacommunities.org/id/unitary-authority/southend,ED Adults & Communities,Housing Services,1011,Hays Specialist Recruitment Ltd Receipts Recruitment File Only,05/08/2022,12072091," 2,316.60 ",Agency Staff,Direct Employee Expenses
Southend-on-Sea Borough Council,http://www.opendatacommunities.org/id/unitary-authority/southend,ED Adults & Communities,Housing Services,1011,Hays Specialist Recruitment Ltd Receipts Recruitment File Only,05/08/2022,12072091," 1,710.00 ",Agency Staff,Direct Employee Expenses
Southend-on-Sea Borough Council,http://www.opendatacommunities.org/id/unitary-authority/southend,ED Adults & Communities,Housing Services,1011,Hays Specialist Recruitment Ltd Receipts Recruitment File Only,05/08/2022,12072091," 2,362.82 ",Agency Staff,Direct Employee Expenses
Southend-on-Sea Borough Council,http://www.opendatacommunities.org/id/unitary-authority/southend,ED Children & Public Health,Adult Social Care,1035,Hays Specialist Recruitment Ltd Receipts Recruitment File Only,05/08/2022,12072091," 2,052.00 ",Agency Staff,Direct Employee Expenses
Southend-on-Sea Borough Council,http://www.opendatacommunities.org/id/unitary-authority/southend,ED Children & Public Health,Adult Social Care,1035,Hays Specialist Recruitment Ltd Receipts Recruitment File Only,05/08/2022,12072091, 704.20 ,Agency Staff,Direct Employee Expenses
Southend-on-Sea Borough Council,http://www.opendatacommunities.org/id/unitary-authority/southend,ED Children & Public Health,Adult Social Care,1035,Hays Specialist Recruitment Ltd Receipts Recruitment File Only,05/08/2022,12072091, 774.76 ,Agency Staff,Direct Employee Expenses
Southend-on-Sea Borough Council,http://www.opendatacommunities.org/id/unitary-authority/southend,ED Children & Public Health,Adult Social Care,1035,Hays Specialist Recruitment Ltd Receipts Recruitment File Only,05/08/2022,12072091," 1,674.85 ",Agency Staff,Direct Employee Expenses
Southend-on-Sea Borough Council,http://www.opendatacommunities.org/id/unitary-authority/southend,ED Children & Public Health,Adult Social Care,1035,Hays Specialist Recruitment Ltd Receipts Recruitment File Only,05/08/2022,12072091," 2,199.60 ",Agency Staff,Direct Employee Expenses
Southend-on-Sea Borough Council,http://www.opendatacommunities.org/id/unitary-authority/southend,ED Children & Public Health,Adult Social Care,1035,Hays Specialist Recruitment Ltd Receipts Recruitment File Only,05/08/2022,12072091," 2,199.60 ",Agency Staff,Direct Employee Expenses
Southend-on-Sea Borough Council,http://www.opendatacommunities.org/id/unitary-authority/southend,ED Children & Public Health,Adult Social Care,1035,Hays Specialist Recruitment Ltd Receipts Recruitment File Only,05/08/2022,12072091," 2,199.60 ",Agency Staff,Direct Employee Expenses
Southend-on-Sea Borough Council,http://www.opendatacommunities.org/id/unitary-authority/southend,ED Children & Public Health,Adult Social Care,1035,Hays Specialist Recruitment Ltd Receipts Recruitment File Only,05/08/2022,12072091," 2,199.60 ",Agency Staff,Direct Employee Expenses
Southend-on-Sea Borough Council,http://www.opendatacommunities.org/id/unitary-authority/southend,ED Children & Public Health,Adult Social Care,1035,Hays Specialist Recruitment Ltd Receipts Recruitment File Only,05/08/2022,12072091, 704.20 ,Agency Staff,Direct Employee Expenses
Southend-on-Sea Borough Council,http://www.opendatacommunities.org/id/unitary-authority/southend,ED Children & Public Health,Adult Social Care,1035,Hays Specialist Recruitment Ltd Receipts Recruitment File Only,05/08/2022,12072091," 1,421.75 ",Agency Staff,Direct Employee Expenses
Southend-on-Sea Borough Council,http://www.opendatacommunities.org/id/unitary-authority/southend,ED Children & Public Health,Adult Social Care,1035,Hays Specialist Recruitment Ltd Receipts Recruitment File Only,05/08/2022,12072091," 1,421.75 ",Agency Staff,Direct Employee Expenses
Southend-on-Sea Borough Council,http://www.opendatacommunities.org/id/unitary-authority/southend,ED Children & Public Health,Adult Social Care,1035,Hays Specialist Recruitment Ltd Receipts Recruitment File Only,05/08/2022,12072091," 1,421.75 ",Agency Staff,Direct Employee Expenses
Southend-on-Sea Borough Council,http://www.opendatacommunities.org/id/unitary-authority/southend,ED Children & Public Health,Children And Education Services,3455,Hays Specialist Recruitment Ltd Receipts Recruitment File Only,05/08/2022,12072091," 1,387.60 ",Agency Staff,Direct Employee Expenses
Southend-on-Sea Borough Council,http://www.opendatacommunities.org/id/unitary-authority/southend,ED Children & Public Health,Children And Education Services,3200,Hays Specialist Recruitment Ltd Receipts Recruitment File Only,05/08/2022,12072091, 969.09 ,Agency Staff,Direct Employee Expenses
Southend-on-Sea Borough Council,http://www.opendatacommunities.org/id/unitary-authority/southend,ED Children & Public Health,Children And Education Services,3200,Hays Specialist Recruitment Ltd Receipts Recruitment File Only,05/08/2022,12072091, 969.10 ,Agency Staff,Direct Employee Expenses
Southend-on-Sea Borough Council,http://www.opendatacommunities.org/id/unitary-authority/southend,ED Children & Public Health,Children And Education Services,3590,Hays Specialist Recruitment Ltd Receipts Recruitment File Only,05/08/2022,12072091, 916.18 ,Agency Staff,Direct Employee Expenses
Southend-on-Sea Borough Council,http://www.opendatacommunities.org/id/unitary-authority/southend,ED Children & Public Health,Children And Education Services,3200,Hays Specialist Recruitment Ltd Receipts Recruitment File Only,05/08/2022,12072091," 1,162.91 ",Agency Staff,Direct Employee Expenses
Southend-on-Sea Borough Council,http://www.opendatacommunities.org/id/unitary-authority/southend,ED Children & Public Health,Children And Education Services,3200,Hays Specialist Recruitment Ltd Receipts Recruitment File Only,05/08/2022,12072091, 969.09 ,Agency Staff,Direct Employee Expenses
Southend-on-Sea Borough Council,http://www.opendatacommunities.org/id/unitary-authority/southend,ED Children & Public Health,Children And Education Services,3200,Hays Specialist Recruitment Ltd Receipts Recruitment File Only,05/08/2022,12072091, 775.27 ,Agency Staff,Direct Employee Expenses
Southend-on-Sea Borough Council,http://www.opendatacommunities.org/id/unitary-authority/southend,ED Children & Public Health,Children And Education Services,3590,Hays Specialist Recruitment Ltd Receipts Recruitment File Only,05/08/2022,12072091," 1,636.14 ",Agency Staff,Direct Employee Expenses
Southend-on-Sea Borough Council,http://www.opendatacommunities.org/id/unitary-authority/southend,ED Children & Public Health,Children And Education Services,3590,Hays Specialist Recruitment Ltd Receipts Recruitment File Only,05/08/2022,12072091," 1,804.86 ",Agency Staff,Direct Employee Expenses
Southend-on-Sea Borough Council,http://www.opendatacommunities.org/id/unitary-authority/southend,ED Children & Public Health,Children And Education Services,3265,Hays Specialist Recruitment Ltd Receipts Recruitment File Only,05/08/2022,12072091," 1,266.00 ",Agency Staff,Direct Employee Expenses
Southend-on-Sea Borough Council,http://www.opendatacommunities.org/id/unitary-authority/southend,ED Children & Public Health,Children And Education Services,3590,Hays Specialist Recruitment Ltd Receipts Recruitment File Only,05/08/2022,12072091," 1,636.14 ",Agency Staff,Direct Employee Expenses
Southend-on-Sea Borough Council,http://www.opendatacommunities.org/id/unitary-authority/southend,ED Children & Public Health,Children And Education Services,3590,Hays Specialist Recruitment Ltd Receipts Recruitment File Only,05/08/2022,12072091," 1,636.14 ",Agency Staff,Direct Employee Expenses
Southend-on-Sea Borough Council,http://www.opendatacommunities.org/id/unitary-authority/southend,ED Children & Public Health,Children And Education Services,3991,Hays Specialist Recruitment Ltd Receipts Recruitment File Only,05/08/2022,12072091," 1,097.55 ",Agency Staff,Direct Employee Expenses
Southend-on-Sea Borough Council,http://www.opendatacommunities.org/id/unitary-authority/southend,ED Children & Public Health,Children And Education Services,3991,Hays Specialist Recruitment Ltd Receipts Recruitment File Only,05/08/2022,12072091," 1,804.86 ",Agency Staff,Direct Employee Expenses
Southend-on-Sea Borough Council,http://www.opendatacommunities.org/id/unitary-authority/southend,ED Children & Public Health,Children And Education Services,3991,Hays Specialist Recruitment Ltd Receipts Recruitment File Only,05/08/2022,12072091," 1,804.86 ",Agency Staff,Direct Employee Expenses
Southend-on-Sea Borough Council,http://www.opendatacommunities.org/id/unitary-authority/southend,ED Children & Public Health,Children And Education Services,3890,Hays Specialist Recruitment Ltd Receipts Recruitment File Only,05/08/2022,12072091," 1,561.40 ",Agency Staff,Direct Employee Expenses
Southend-on-Sea Borough Council,http://www.opendatacommunities.org/id/unitary-authority/southend,ED Children & Public Health,Children And Education Services,3790,Hays Specialist Recruitment Ltd Receipts Recruitment File Only,05/08/2022,12072091," 1,336.44 ",Agency Staff,Direct Employee Expenses
Southend-on-Sea Borough Council,http://www.opendatacommunities.org/id/unitary-authority/southend,ED Children & Public Health,Children And Education Services,3890,Hays Specialist Recruitment Ltd Receipts Recruitment File Only,05/08/2022,12072091," 1,448.92 ",Agency Staff,Direct Employee Expenses
Southend-on-Sea Borough Council,http://www.opendatacommunities.org/id/unitary-authority/southend,ED Children & Public Health,Children And Education Services,3590,Hays Specialist Recruitment Ltd Receipts Recruitment File Only,05/08/2022,12072091," 1,636.14 ",Agency Staff,Direct Employee Expenses
Southend-on-Sea Borough Council,http://www.opendatacommunities.org/id/unitary-authority/southend,ED Children & Public Health,Children And Education Services,3231,Hays Specialist Recruitment Ltd Receipts Recruitment File Only,05/08/2022,12072091," 2,216.69 ",Agency Staff,Direct Employee Expenses
Southend-on-Sea Borough Council,http://www.opendatacommunities.org/id/unitary-authority/southend,ED Children & Public Health,Children And Education Services,3455,Hays Specialist Recruitment Ltd Receipts Recruitment File Only,05/08/2022,12072091," 2,406.10 ",Agency Staff,Direct Employee Expenses
Southend-on-Sea Borough Council,http://www.opendatacommunities.org/id/unitary-authority/southend,ED Children & Public Health,Children And Education Services,3590,Hays Specialist Recruitment Ltd Receipts Recruitment File Only,05/08/2022,12072091, 501.12 ,Agency Staff,Direct Employee Expenses
Southend-on-Sea Borough Council,http://www.opendatacommunities.org/id/unitary-authority/southend,ED Children & Public Health,Children And Education Services,3590,Hays Specialist Recruitment Ltd Receipts Recruitment File Only,05/08/2022,12072091, 772.56 ,Agency Staff,Direct Employee Expenses
Southend-on-Sea Borough Council,http://www.opendatacommunities.org/id/unitary-authority/southend,ED Children & Public Health,Children And Education Services,3790,Hays Specialist Recruitment Ltd Receipts Recruitment File Only,05/08/2022,12072091," 1,448.92 ",Agency Staff,Direct Employee Expenses
Southend-on-Sea Borough Council,http://www.opendatacommunities.org/id/unitary-authority/southend,ED Children & Public Health,Children And Education Services,3231,Hays Specialist Recruitment Ltd Receipts Recruitment File Only,05/08/2022,12072091," 3,470.85 ",Agency Staff,Direct Employee Expenses
Southend-on-Sea Borough Council,http://www.opendatacommunities.org/id/unitary-authority/southend,ED Children & Public Health,Children And Education Services,3590,Hays Specialist Recruitment Ltd Receipts Recruitment File Only,05/08/2022,12072091," 1,097.55 ",Agency Staff,Direct Employee Expenses
Southend-on-Sea Borough Council,http://www.opendatacommunities.org/id/unitary-authority/southend,ED Children & Public Health,Children And Education Services,3143,Hays Specialist Recruitment Ltd Receipts Recruitment File Only,05/08/2022,12072091, 752.40 ,Agency Staff,Direct Employee Expenses
Southend-on-Sea Borough Council,http://www.opendatacommunities.org/id/unitary-authority/southend,ED Children & Public Health,Children And Education Services,3220,Hays Specialist Recruitment Ltd Receipts Recruitment File Only,05/08/2022,12072091," 1,823.36 ",Agency Staff,Direct Employee Expenses
Southend-on-Sea Borough Council,http://www.opendatacommunities.org/id/unitary-authority/southend,ED Children & Public Health,Children And Education Services,3455,Hays Specialist Recruitment Ltd Receipts Recruitment File Only,05/08/2022,12072091," 1,387.60 ",Agency Staff,Direct Employee Expenses
Southend-on-Sea Borough Council,http://www.opendatacommunities.org/id/unitary-authority/southend,ED Children & Public Health,Children And Education Services,3590,Hays Specialist Recruitment Ltd Receipts Recruitment File Only,05/08/2022,12072091," 1,711.27 ",Agency Staff,Direct Employee Expenses
Southend-on-Sea Borough Council,http://www.opendatacommunities.org/id/unitary-authority/southend,ED Children & Public Health,Children And Education Services,3890,Hays Specialist Recruitment Ltd Receipts Recruitment File Only,05/08/2022,12072091," 1,711.27 ",Agency Staff,Direct Employee Expenses
Southend-on-Sea Borough Council,http://www.opendatacommunities.org/id/unitary-authority/southend,ED Children & Public Health,Children And Education Services,3890,Hays Specialist Recruitment Ltd Receipts Recruitment File Only,05/08/2022,12072091," 1,711.27 ",Agency Staff,Direct Employee Expenses
Southend-on-Sea Borough Council,http://www.opendatacommunities.org/id/unitary-authority/southend,ED Children & Public Health,Children And Education Services,3890,Hays Specialist Recruitment Ltd Receipts Recruitment File Only,05/08/2022,12072091," 1,711.27 ",Agency Staff,Direct Employee Expenses
Southend-on-Sea Borough Council,http://www.opendatacommunities.org/id/unitary-authority/southend,ED Children & Public Health,Children And Education Services,3890,Hays Specialist Recruitment Ltd Receipts Recruitment File Only,05/08/2022,12072091," 1,711.27 ",Agency Staff,Direct Employee Expenses
Southend-on-Sea Borough Council,http://www.opendatacommunities.org/id/unitary-authority/southend,ED Children & Public Health,Children And Education Services,3143,Hays Specialist Recruitment Ltd Receipts Recruitment File Only,05/08/2022,12072091, 800.01 ,Agency Staff,Direct Employee Expenses
Southend-on-Sea Borough Council,http://www.opendatacommunities.org/id/unitary-authority/southend,ED Children & Public Health,Children And Education Services,3590,Hays Specialist Recruitment Ltd Receipts Recruitment File Only,05/08/2022,12072091," 1,059.33 ",Agency Staff,Direct Employee Expenses
Southend-on-Sea Borough Council,http://www.opendatacommunities.org/id/unitary-authority/southend,ED Children & Public Health,Children And Education Services,3590,Hays Specialist Recruitment Ltd Receipts Recruitment File Only,05/08/2022,12072091, 772.56 ,Agency Staff,Direct Employee Expenses
Southend-on-Sea Borough Council,http://www.opendatacommunities.org/id/unitary-authority/southend,ED Children & Public Health,Children And Education Services,3200,Hays Specialist Recruitment Ltd Receipts Recruitment File Only,05/08/2022,12072091, 855.20 ,Agency Staff,Direct Employee Expenses
Southend-on-Sea Borough Council,http://www.opendatacommunities.org/id/unitary-authority/southend,ED Children & Public Health,Children And Education Services,3143,Hays Specialist Recruitment Ltd Receipts Recruitment File Only,05/08/2022,12072091, 970.39 ,Agency Staff,Direct Employee Expenses
Southend-on-Sea Borough Council,http://www.opendatacommunities.org/id/unitary-authority/southend,ED Children & Public Health,Children And Education Services,3590,Hays Specialist Recruitment Ltd Receipts Recruitment File Only,05/08/2022,12072091, 618.70 ,Agency Staff,Direct Employee Expenses
Southend-on-Sea Borough Council,http://www.opendatacommunities.org/id/unitary-authority/southend,ED Children & Public Health,Children And Education Services,3220,Hays Specialist Recruitment Ltd Receipts Recruitment File Only,05/08/2022,12072091, 689.92 ,Agency Staff,Direct Employee Expenses
Southend-on-Sea Borough Council,http://www.opendatacommunities.org/id/unitary-authority/southend,ED Children & Public Health,Children And Education Services,3220,Hays Specialist Recruitment Ltd Receipts Recruitment File Only,05/08/2022,12072091, 887.04 ,Agency Staff,Direct Employee Expenses
Southend-on-Sea Borough Council,http://www.opendatacommunities.org/id/unitary-authority/southend,ED Children & Public Health,Children And Education Services,3220,Hays Specialist Recruitment Ltd Receipts Recruitment File Only,05/08/2022,12072091, 887.04 ,Agency Staff,Direct Employee Expenses
Southend-on-Sea Borough Council,http://www.opendatacommunities.org/id/unitary-authority/southend,ED Children & Public Health,Children And Education Services,3265,Hays Specialist Recruitment Ltd Receipts Recruitment File Only,05/08/2022,12072091, 685.25 ,Agency Staff,Direct Employee Expenses
Southend-on-Sea Borough Council,http://www.opendatacommunities.org/id/unitary-authority/southend,ED Children & Public Health,Children And Education Services,3200,Hays Specialist Recruitment Ltd Receipts Recruitment File Only,05/08/2022,12072091, 775.26 ,Agency Staff,Direct Employee Expenses
Southend-on-Sea Borough Council,http://www.opendatacommunities.org/id/unitary-authority/southend,ED Finance & Resources,Central Services,7071,Hays Specialist Recruitment Ltd Receipts Recruitment File Only,05/08/2022,12072091," 2,137.60 ",Agency Staff,Direct Employee Expenses
Southend-on-Sea Borough Council,http://www.opendatacommunities.org/id/unitary-authority/southend,ED Finance & Resources,Central Services,7071,Hays Specialist Recruitment Ltd Receipts Recruitment File Only,05/08/2022,12072091," 2,137.60 ",Agency Staff,Direct Employee Expenses
Southend-on-Sea Borough Council,http://www.opendatacommunities.org/id/unitary-authority/southend,ED Finance & Resources,Central Services,7071,Hays Specialist Recruitment Ltd Receipts Recruitment File Only,05/08/2022,12072091," 2,137.60 ",Agency Staff,Direct Employee Expenses
Southend-on-Sea Borough Council,http://www.opendatacommunities.org/id/unitary-authority/southend,ED Finance & Resources,Central Services,7071,Hays Specialist Recruitment Ltd Receipts Recruitment File Only,05/08/2022,12072091," 2,137.60 ",Agency Staff,Direct Employee Expenses
Southend-on-Sea Borough Council,http://www.opendatacommunities.org/id/unitary-authority/southend,ED Finance & Resources,Central Services,7096,Hays Specialist Recruitment Ltd Receipts Recruitment File Only,05/08/2022,12072091, 546.94 ,Agency Staff,Direct Employee Expenses
Southend-on-Sea Borough Council,http://www.opendatacommunities.org/id/unitary-authority/southend,ED Finance & Resources,Central Services,2176,Hays Specialist Recruitment Ltd Receipts Recruitment File Only,05/08/2022,12072091, 950.77 ,Agency Staff,Direct Employee Expenses
Southend-on-Sea Borough Council,http://www.opendatacommunities.org/id/unitary-authority/southend,ED Finance & Resources,Central Services,7096,Hays Specialist Recruitment Ltd Receipts Recruitment File Only,05/08/2022,12072091, 555.60 ,Agency Staff,Direct Employee Expenses
Southend-on-Sea Borough Council,http://www.opendatacommunities.org/id/unitary-authority/southend,ED Finance & Resources,Central Services,7071,Hays Specialist Recruitment Ltd Receipts Recruitment File Only,05/08/2022,12072091," 2,598.84 ",Agency Staff,Direct Employee Expenses
Southend-on-Sea Borough Council,http://www.opendatacommunities.org/id/unitary-authority/southend,ED Finance & Resources,Central Services,7071,Hays Specialist Recruitment Ltd Receipts Recruitment File Only,05/08/2022,12072091," 2,598.84 ",Agency Staff,Direct Employee Expenses
Southend-on-Sea Borough Council,http://www.opendatacommunities.org/id/unitary-authority/southend,ED Finance & Resources,Central Services,7071,Hays Specialist Recruitment Ltd Receipts Recruitment File Only,05/08/2022,12072091," 2,310.08 ",Agency Staff,Direct Employee Expenses
Southend-on-Sea Borough Council,http://www.opendatacommunities.org/id/unitary-authority/southend,ED Finance & Resources,Central Services,7070,Hays Specialist Recruitment Ltd Receipts Recruitment File Only,05/08/2022,12072091," 3,887.60 ",Agency Staff,Direct Employee Expenses
Southend-on-Sea Borough Council,http://www.opendatacommunities.org/id/unitary-authority/southend,ED Finance & Resources,Central Services,7120,Hays Specialist Recruitment Ltd Receipts Recruitment File Only,05/08/2022,12072091, 811.25 ,Agency Staff,Direct Employee Expenses
Southend-on-Sea Borough Council,http://www.opendatacommunities.org/id/unitary-authority/southend,ED Finance & Resources,Central Services,7120,Hays Specialist Recruitment Ltd Receipts Recruitment File Only,05/08/2022,12072091, 513.05 ,Agency Staff,Direct Employee Expenses
Southend-on-Sea Borough Council,http://www.opendatacommunities.org/id/unitary-authority/southend,ED Finance & Resources,Central Services,7096,Hays Specialist Recruitment Ltd Receipts Recruitment File Only,05/08/2022,12072091, 641.24 ,Agency Staff,Direct Employee Expenses
Southend-on-Sea Borough Council,http://www.opendatacommunities.org/id/unitary-authority/southend,ED Finance & Resources,Central Services,2156,Hays Specialist Recruitment Ltd Receipts Recruitment File Only,05/08/2022,12072091, 983.48 ,Agency Staff,Direct Employee Expenses
Southend-on-Sea Borough Council,http://www.opendatacommunities.org/id/unitary-authority/southend,ED Finance & Resources,Central Services,2117,Hays Specialist Recruitment Ltd Receipts Recruitment File Only,05/08/2022,12072091, 565.75 ,Agency Staff,Direct Employee Expenses
Southend-on-Sea Borough Council,http://www.opendatacommunities.org/id/unitary-authority/southend,ED Finance & Resources,Central Services,2117,Hays Specialist Recruitment Ltd Receipts Recruitment File Only,05/08/2022,12072091," 1,305.92 ",Agency Staff,Direct Employee Expenses
Southend-on-Sea Borough Council,http://www.opendatacommunities.org/id/unitary-authority/southend,ED Finance & Resources,Central Services,2117,Hays Specialist Recruitment Ltd Receipts Recruitment File Only,05/08/2022,12072091, 565.75 ,Agency Staff,Direct Employee Expenses
Southend-on-Sea Borough Council,http://www.opendatacommunities.org/id/unitary-authority/southend,ED Finance & Resources,Central Services,2117,Hays Specialist Recruitment Ltd Receipts Recruitment File Only,05/08/2022,12072091, 565.75 ,Agency Staff,Direct Employee Expenses
Southend-on-Sea Borough Council,http://www.opendatacommunities.org/id/unitary-authority/southend,ED Finance & Resources,Central Services,2117,Hays Specialist Recruitment Ltd Receipts Recruitment File Only,05/08/2022,12072091," 1,732.00 ",Agency Staff,Direct Employee Expenses
Southend-on-Sea Borough Council,http://www.opendatacommunities.org/id/unitary-authority/southend,ED Finance & Resources,Central Services,2117,Hays Specialist Recruitment Ltd Receipts Recruitment File Only,05/08/2022,12072091," 1,732.00 ",Agency Staff,Direct Employee Expenses
Southend-on-Sea Borough Council,http://www.opendatacommunities.org/id/unitary-authority/southend,ED Finance & Resources,Central Services,2117,Hays Specialist Recruitment Ltd Receipts Recruitment File Only,05/08/2022,12072091," 1,732.00 ",Agency Staff,Direct Employee Expenses
Southend-on-Sea Borough Council,http://www.opendatacommunities.org/id/unitary-authority/southend,ED Finance & Resources,Central Services,2117,Hays Specialist Recruitment Ltd Receipts Recruitment File Only,05/08/2022,12072091," 1,732.00 ",Agency Staff,Direct Employee Expenses
Southend-on-Sea Borough Council,http://www.opendatacommunities.org/id/unitary-authority/southend,ED Finance & Resources,Central Services,2117,Hays Specialist Recruitment Ltd Receipts Recruitment File Only,05/08/2022,12072091," 1,732.00 ",Agency Staff,Direct Employee Expenses
Southend-on-Sea Borough Council,http://www.opendatacommunities.org/id/unitary-authority/southend,ED Finance & Resources,Central Services,2117,Hays Specialist Recruitment Ltd Receipts Recruitment File Only,05/08/2022,12072091, 565.75 ,Agency Staff,Direct Employee Expenses
Southend-on-Sea Borough Council,http://www.opendatacommunities.org/id/unitary-authority/southend,ED Finance & Resources,Central Services,2117,Hays Specialist Recruitment Ltd Receipts Recruitment File Only,05/08/2022,12072091, 565.75 ,Agency Staff,Direct Employee Expenses
Southend-on-Sea Borough Council,http://www.opendatacommunities.org/id/unitary-authority/southend,ED Finance & Resources,Environmental and Regulatory Services,7110,Hays Specialist Recruitment Ltd Receipts Recruitment File Only,05/08/2022,12072091," 1,010.96 ",Agency Staff,Direct Employee Expenses
Southend-on-Sea Borough Council,http://www.opendatacommunities.org/id/unitary-authority/southend,ED Finance & Resources,Environmental and Regulatory Services,7110,Hays Specialist Recruitment Ltd Receipts Recruitment File Only,05/08/2022,12072091," 1,010.96 ",Agency Staff,Direct Employee Expenses
Southend-on-Sea Borough Council,http://www.opendatacommunities.org/id/unitary-authority/southend,ED Finance & Resources,Environmental and Regulatory Services,7110,Hays Specialist Recruitment Ltd Receipts Recruitment File Only,05/08/2022,12072091," 1,010.96 ",Agency Staff,Direct Employee Expenses
Southend-on-Sea Borough Council,http://www.opendatacommunities.org/id/unitary-authority/southend,ED Finance & Resources,Environmental and Regulatory Services,7110,Hays Specialist Recruitment Ltd Receipts Recruitment File Only,05/08/2022,12072091," 1,010.96 ",Agency Staff,Direct Employee Expenses
Southend-on-Sea Borough Council,http://www.opendatacommunities.org/id/unitary-authority/southend,ED Finance & Resources,Housing Services,6165,Hays Specialist Recruitment Ltd Receipts Recruitment File Only,05/08/2022,12072091, 592.55 ,Agency Staff,Direct Employee Expenses
Southend-on-Sea Borough Council,http://www.opendatacommunities.org/id/unitary-authority/southend,ED Finance & Resources,Housing Services,7150,Hays Specialist Recruitment Ltd Receipts Recruitment File Only,05/08/2022,12072091," 2,491.80 ",Agency Staff,Direct Employee Expenses
Southend-on-Sea Borough Council,http://www.opendatacommunities.org/id/unitary-authority/southend,ED Growth & Housing,Adult Social Care,1006,Hays Specialist Recruitment Ltd Receipts Recruitment File Only,05/08/2022,12072091," 2,625.35 ",Agency Staff,Direct Employee Expenses
Southend-on-Sea Borough Council,http://www.opendatacommunities.org/id/unitary-authority/southend,ED Growth & Housing,Adult Social Care,1006,Hays Specialist Recruitment Ltd Receipts Recruitment File Only,05/08/2022,12072091," 2,625.35 ",Agency Staff,Direct Employee Expenses
Southend-on-Sea Borough Council,http://www.opendatacommunities.org/id/unitary-authority/southend,ED Growth & Housing,Adult Social Care,1006,Hays Specialist Recruitment Ltd Receipts Recruitment File Only,05/08/2022,12072091," 1,050.14 ",Agency Staff,Direct Employee Expenses
Southend-on-Sea Borough Council,http://www.opendatacommunities.org/id/unitary-authority/southend,ED Growth & Housing,Adult Social Care,6012,Hays Specialist Recruitment Ltd Receipts Recruitment File Only,05/08/2022,12072091, 772.56 ,Agency Staff,Direct Employee Expenses
Southend-on-Sea Borough Council,http://www.opendatacommunities.org/id/unitary-authority/southend,ED Growth & Housing,Adult Social Care,6012,Hays Specialist Recruitment Ltd Receipts Recruitment File Only,05/08/2022,12072091, 772.56 ,Agency Staff,Direct Employee Expenses
Southend-on-Sea Borough Council,http://www.opendatacommunities.org/id/unitary-authority/southend,ED Growth & Housing,Cultural and Related Services,2139,Hays Specialist Recruitment Ltd Receipts Recruitment File Only,05/08/2022,12072091, 505.48 ,Agency Staff,Direct Employee Expenses
Southend-on-Sea Borough Council,http://www.opendatacommunities.org/id/unitary-authority/southend,ED Growth & Housing,Cultural and Related Services,2139,Hays Specialist Recruitment Ltd Receipts Recruitment File Only,05/08/2022,12072091, 505.48 ,Agency Staff,Direct Employee Expenses
Southend-on-Sea Borough Council,http://www.opendatacommunities.org/id/unitary-authority/southend,ED Growth & Housing,Cultural and Related Services,2139,Hays Specialist Recruitment Ltd Receipts Recruitment File Only,05/08/2022,12072091," 1,010.96 ",Agency Staff,Direct Employee Expenses
Southend-on-Sea Borough Council,http://www.opendatacommunities.org/id/unitary-authority/southend,ED Growth & Housing,Cultural and Related Services,2139,Hays Specialist Recruitment Ltd Receipts Recruitment File Only,05/08/2022,12072091," 1,010.96 ",Agency Staff,Direct Employee Expenses
Southend-on-Sea Borough Council,http://www.opendatacommunities.org/id/unitary-authority/southend,ED Growth & Housing,Cultural and Related Services,2139,Hays Specialist Recruitment Ltd Receipts Recruitment File Only,05/08/2022,12072091," 1,010.96 ",Agency Staff,Direct Employee Expenses
Southend-on-Sea Borough Council,http://www.opendatacommunities.org/id/unitary-authority/southend,ED Growth & Housing,Cultural and Related Services,2139,Hays Specialist Recruitment Ltd Receipts Recruitment File Only,05/08/2022,12072091," 1,010.96 ",Agency Staff,Direct Employee Expenses
Southend-on-Sea Borough Council,http://www.opendatacommunities.org/id/unitary-authority/southend,ED Growth & Housing,Cultural and Related Services,2139,Hays Specialist Recruitment Ltd Receipts Recruitment File Only,05/08/2022,12072091," 2,912.85 ",Agency Staff,Direct Employee Expenses
Southend-on-Sea Borough Council,http://www.opendatacommunities.org/id/unitary-authority/southend,ED Growth & Housing,Housing Services,6011,Hays Specialist Recruitment Ltd Receipts Recruitment File Only,05/08/2022,12072091," 1,130.37 ",Agency Staff,Direct Employee Expenses
Southend-on-Sea Borough Council,http://www.opendatacommunities.org/id/unitary-authority/southend,ED Growth & Housing,Housing Services,6011,Hays Specialist Recruitment Ltd Receipts Recruitment File Only,05/08/2022,12072091," 1,130.35 ",Agency Staff,Direct Employee Expenses
Southend-on-Sea Borough Council,http://www.opendatacommunities.org/id/unitary-authority/southend,ED Growth & Housing,Housing Services,6501,Hays Specialist Recruitment Ltd Receipts Recruitment File Only,05/08/2022,12072091," 3,192.00 ",Agency Staff,Direct Employee Expenses
Southend-on-Sea Borough Council,http://www.opendatacommunities.org/id/unitary-authority/southend,ED Growth & Housing,Housing Services,6501,Hays Specialist Recruitment Ltd Receipts Recruitment File Only,05/08/2022,12072091," 2,394.00 ",Agency Staff,Direct Employee Expenses
Southend-on-Sea Borough Council,http://www.opendatacommunities.org/id/unitary-authority/southend,ED Growth & Housing,Housing Services,6501,Hays Specialist Recruitment Ltd Receipts Recruitment File Only,05/08/2022,12072091," 2,394.00 ",Agency Staff,Direct Employee Expenses
Southend-on-Sea Borough Council,http://www.opendatacommunities.org/id/unitary-authority/southend,ED Growth & Housing,Planning Services,5640,Hays Specialist Recruitment Ltd Receipts Recruitment File Only,05/08/2022,12072091, 811.19 ,Agency Staff,Direct Employee Expenses
Southend-on-Sea Borough Council,http://www.opendatacommunities.org/id/unitary-authority/southend,ED Growth & Housing,Planning Services,5505,Hays Specialist Recruitment Ltd Receipts Recruitment File Only,05/08/2022,12072091, 805.04 ,Agency Staff,Direct Employee Expenses
Southend-on-Sea Borough Council,http://www.opendatacommunities.org/id/unitary-authority/southend,ED Growth & Housing,Planning Services,5505,Hays Specialist Recruitment Ltd Receipts Recruitment File Only,05/08/2022,12072091," 2,012.60 ",Agency Staff,Direct Employee Expenses
Southend-on-Sea Borough Council,http://www.opendatacommunities.org/id/unitary-authority/southend,ED Growth & Housing,Planning Services,5505,Hays Specialist Recruitment Ltd Receipts Recruitment File Only,05/08/2022,12072091," 2,012.60 ",Agency Staff,Direct Employee Expenses
Southend-on-Sea Borough Council,http://www.opendatacommunities.org/id/unitary-authority/southend,ED Growth & Housing,Planning Services,5505,Hays Specialist Recruitment Ltd Receipts Recruitment File Only,05/08/2022,12072091," 1,207.56 ",Agency Staff,Direct Employee Expenses
Southend-on-Sea Borough Council,http://www.opendatacommunities.org/id/unitary-authority/southend,ED Growth & Housing,Planning Services,5505,Hays Specialist Recruitment Ltd Receipts Recruitment File Only,05/08/2022,12072091," 1,207.56 ",Agency Staff,Direct Employee Expenses
Southend-on-Sea Borough Council,http://www.opendatacommunities.org/id/unitary-authority/southend,ED Growth & Housing,Planning Services,5505,Hays Specialist Recruitment Ltd Receipts Recruitment File Only,05/08/2022,12072091," 1,207.56 ",Agency Staff,Direct Employee Expenses
Southend-on-Sea Borough Council,http://www.opendatacommunities.org/id/unitary-authority/southend,ED Growth & Housing,Planning Services,5505,Hays Specialist Recruitment Ltd Receipts Recruitment File Only,05/08/2022,12072091," 1,610.08 ",Agency Staff,Direct Employee Expenses
Southend-on-Sea Borough Council,http://www.opendatacommunities.org/id/unitary-authority/southend,ED Growth & Housing,Planning Services,5640,Hays Specialist Recruitment Ltd Receipts Recruitment File Only,05/08/2022,12072091, 664.10 ,Agency Staff,Direct Employee Expenses
Southend-on-Sea Borough Council,http://www.opendatacommunities.org/id/unitary-authority/southend,ED Growth & Housing,Planning Services,5506,Hays Specialist Recruitment Ltd Receipts Recruitment File Only,05/08/2022,12072091, 588.82 ,Agency Staff,Direct Employee Expenses
Southend-on-Sea Borough Council,http://www.opendatacommunities.org/id/unitary-authority/southend,ED Growth & Housing,Planning Services,5506,Hays Specialist Recruitment Ltd Receipts Recruitment File Only,05/08/2022,12072091, 706.94 ,Agency Staff,Direct Employee Expenses
Southend-on-Sea Borough Council,http://www.opendatacommunities.org/id/unitary-authority/southend,ED Growth & Housing,Planning Services,5506,Hays Specialist Recruitment Ltd Receipts Recruitment File Only,05/08/2022,12072091, 598.80 ,Agency Staff,Direct Employee Expenses
Southend-on-Sea Borough Council,http://www.opendatacommunities.org/id/unitary-authority/southend,ED Growth & Housing,Planning Services,5506,Hays Specialist Recruitment Ltd Receipts Recruitment File Only,05/08/2022,12072091, 598.80 ,Agency Staff,Direct Employee Expenses
Southend-on-Sea Borough Council,http://www.opendatacommunities.org/id/unitary-authority/southend,ED Growth & Housing,Planning Services,5640,Hays Specialist Recruitment Ltd Receipts Recruitment File Only,05/08/2022,12072091, 813.75 ,Agency Staff,Direct Employee Expenses
Southend-on-Sea Borough Council,http://www.opendatacommunities.org/id/unitary-authority/southend,ED Growth & Housing,Planning Services,5535,Hays Specialist Recruitment Ltd Receipts Recruitment File Only,05/08/2022,12072091," 1,433.16 ",Agency Staff,Direct Employee Expenses
Southend-on-Sea Borough Council,http://www.opendatacommunities.org/id/unitary-authority/southend,ED Growth & Housing,Planning Services,5535,Hays Specialist Recruitment Ltd Receipts Recruitment File Only,05/08/2022,12072091," 1,154.49 ",Agency Staff,Direct Employee Expenses
Southend-on-Sea Borough Council,http://www.opendatacommunities.org/id/unitary-authority/southend,ED Growth & Housing,Planning Services,5535,Hays Specialist Recruitment Ltd Receipts Recruitment File Only,05/08/2022,12072091," 1,433.16 ",Agency Staff,Direct Employee Expenses
Southend-on-Sea Borough Council,http://www.opendatacommunities.org/id/unitary-authority/southend,ED Growth & Housing,Planning Services,5640,Hays Specialist Recruitment Ltd Receipts Recruitment File Only,05/08/2022,12072091," 3,420.00 ",Agency Staff,Direct Employee Expenses
Southend-on-Sea Borough Council,http://www.opendatacommunities.org/id/unitary-authority/southend,ED Growth & Housing,Planning Services,5640,Hays Specialist Recruitment Ltd Receipts Recruitment File Only,05/08/2022,12072091," 1,368.00 ",Agency Staff,Direct Employee Expenses
Southend-on-Sea Borough Council,http://www.opendatacommunities.org/id/unitary-authority/southend,ED Growth & Housing,Planning Services,5640,Hays Specialist Recruitment Ltd Receipts Recruitment File Only,05/08/2022,12072091," 3,420.00 ",Agency Staff,Direct Employee Expenses
Southend-on-Sea Borough Council,http://www.opendatacommunities.org/id/unitary-authority/southend,ED Growth & Housing,Planning Services,5640,Hays Specialist Recruitment Ltd Receipts Recruitment File Only,05/08/2022,12072091," 3,420.00 ",Agency Staff,Direct Employee Expenses
Southend-on-Sea Borough Council,http://www.opendatacommunities.org/id/unitary-authority/southend,ED Growth & Housing,Planning Services,5640,Hays Specialist Recruitment Ltd Receipts Recruitment File Only,05/08/2022,12072091," 3,420.00 ",Agency Staff,Direct Employee Expenses
Southend-on-Sea Borough Council,http://www.opendatacommunities.org/id/unitary-authority/southend,ED Growth & Housing,Planning Services,5535,Hays Specialist Recruitment Ltd Receipts Recruitment File Only,05/08/2022,12072091," 1,457.15 ",Agency Staff,Direct Employee Expenses
Southend-on-Sea Borough Council,http://www.opendatacommunities.org/id/unitary-authority/southend,ED Growth & Housing,Planning Services,5535,Hays Specialist Recruitment Ltd Receipts Recruitment File Only,05/08/2022,12072091," 1,020.97 ",Agency Staff,Direct Employee Expenses
Southend-on-Sea Borough Council,http://www.opendatacommunities.org/id/unitary-authority/southend,ED Growth & Housing,Central Services,2137,Hays Specialist Recruitment Ltd Receipts Recruitment File Only,05/08/2022,12072091, 815.93 ,Agency Staff,Direct Employee Expenses
Southend-on-Sea Borough Council,http://www.opendatacommunities.org/id/unitary-authority/southend,ED Growth & Housing,Central Services,2137,Hays Specialist Recruitment Ltd Receipts Recruitment File Only,05/08/2022,12072091, 705.54 ,Agency Staff,Direct Employee Expenses
Southend-on-Sea Borough Council,http://www.opendatacommunities.org/id/unitary-authority/southend,ED Growth & Housing,Central Services,2137,Hays Specialist Recruitment Ltd Receipts Recruitment File Only,05/08/2022,12072091, 593.87 ,Agency Staff,Direct Employee Expenses
Southend-on-Sea Borough Council,http://www.opendatacommunities.org/id/unitary-authority/southend,ED Growth & Housing,Central Services,2137,Hays Specialist Recruitment Ltd Receipts Recruitment File Only,05/08/2022,12072091, 561.77 ,Agency Staff,Direct Employee Expenses
Southend-on-Sea Borough Council,http://www.opendatacommunities.org/id/unitary-authority/southend,ED Growth & Housing,Central Services,2137,Hays Specialist Recruitment Ltd Receipts Recruitment File Only,05/08/2022,12072091, 598.80 ,Agency Staff,Direct Employee Expenses
Southend-on-Sea Borough Council,http://www.opendatacommunities.org/id/unitary-authority/southend,ED Growth & Housing,Central Services,2137,Hays Specialist Recruitment Ltd Receipts Recruitment File Only,05/08/2022,12072091, 738.52 ,Agency Staff,Direct Employee Expenses
Southend-on-Sea Borough Council,http://www.opendatacommunities.org/id/unitary-authority/southend,ED Growth & Housing,Central Services,2137,Hays Specialist Recruitment Ltd Receipts Recruitment File Only,05/08/2022,12072091, 738.52 ,Agency Staff,Direct Employee Expenses
Southend-on-Sea Borough Council,http://www.opendatacommunities.org/id/unitary-authority/southend,ED Growth & Housing,Central Services,2137,Hays Specialist Recruitment Ltd Receipts Recruitment File Only,05/08/2022,12072091, 738.52 ,Agency Staff,Direct Employee Expenses
Southend-on-Sea Borough Council,http://www.opendatacommunities.org/id/unitary-authority/southend,ED Neighbourhoods & Environment,Cultural and Related Services,7505,Hays Specialist Recruitment Ltd Receipts Recruitment File Only,05/08/2022,12072091, 565.75 ,Agency Staff,Direct Employee Expenses
Southend-on-Sea Borough Council,http://www.opendatacommunities.org/id/unitary-authority/southend,ED Neighbourhoods & Environment,Cultural and Related Services,7505,Hays Specialist Recruitment Ltd Receipts Recruitment File Only,05/08/2022,12072091, 565.75 ,Agency Staff,Direct Employee Expenses
Southend-on-Sea Borough Council,http://www.opendatacommunities.org/id/unitary-authority/southend,ED Neighbourhoods & Environment,Cultural and Related Services,7505,Hays Specialist Recruitment Ltd Receipts Recruitment File Only,05/08/2022,12072091, 565.75 ,Agency Staff,Direct Employee Expenses
Southend-on-Sea Borough Council,http://www.opendatacommunities.org/id/unitary-authority/southend,ED Neighbourhoods & Environment,Cultural and Related Services,7505,Hays Specialist Recruitment Ltd Receipts Recruitment File Only,05/08/2022,12072091, 565.75 ,Agency Staff,Direct Employee Expenses
Southend-on-Sea Borough Council,http://www.opendatacommunities.org/id/unitary-authority/southend,ED Neighbourhoods & Environment,Cultural and Related Services,7505,Hays Specialist Recruitment Ltd Receipts Recruitment File Only,05/08/2022,12072091, 565.75 ,Agency Staff,Direct Employee Expenses
Southend-on-Sea Borough Council,http://www.opendatacommunities.org/id/unitary-authority/southend,ED Neighbourhoods & Environment,Cultural and Related Services,7505,Hays Specialist Recruitment Ltd Receipts Recruitment File Only,05/08/2022,12072091, 565.75 ,Agency Staff,Direct Employee Expenses
Southend-on-Sea Borough Council,http://www.opendatacommunities.org/id/unitary-authority/southend,ED Neighbourhoods & Environment,Cultural and Related Services,7505,Hays Specialist Recruitment Ltd Receipts Recruitment File Only,05/08/2022,12072091, 565.75 ,Agency Staff,Direct Employee Expenses
Southend-on-Sea Borough Council,http://www.opendatacommunities.org/id/unitary-authority/southend,ED Neighbourhoods & Environment,Cultural and Related Services,7505,Hays Specialist Recruitment Ltd Receipts Recruitment File Only,05/08/2022,12072091, 565.75 ,Agency Staff,Direct Employee Expenses
Southend-on-Sea Borough Council,http://www.opendatacommunities.org/id/unitary-authority/southend,ED Neighbourhoods & Environment,Cultural and Related Services,7505,Hays Specialist Recruitment Ltd Receipts Recruitment File Only,05/08/2022,12072091, 565.75 ,Agency Staff,Direct Employee Expenses
Southend-on-Sea Borough Council,http://www.opendatacommunities.org/id/unitary-authority/southend,ED Neighbourhoods & Environment,Cultural and Related Services,7505,Hays Specialist Recruitment Ltd Receipts Recruitment File Only,05/08/2022,12072091, 565.75 ,Agency Staff,Direct Employee Expenses
Southend-on-Sea Borough Council,http://www.opendatacommunities.org/id/unitary-authority/southend,ED Neighbourhoods & Environment,Cultural and Related Services,7505,Hays Specialist Recruitment Ltd Receipts Recruitment File Only,05/08/2022,12072091, 565.75 ,Agency Staff,Direct Employee Expenses
Southend-on-Sea Borough Council,http://www.opendatacommunities.org/id/unitary-authority/southend,ED Neighbourhoods & Environment,Cultural and Related Services,7505,Hays Specialist Recruitment Ltd Receipts Recruitment File Only,05/08/2022,12072091, 565.75 ,Agency Staff,Direct Employee Expenses
Southend-on-Sea Borough Council,http://www.opendatacommunities.org/id/unitary-authority/southend,ED Neighbourhoods & Environment,Cultural and Related Services,7505,Hays Specialist Recruitment Ltd Receipts Recruitment File Only,05/08/2022,12072091, 565.75 ,Agency Staff,Direct Employee Expenses
Southend-on-Sea Borough Council,http://www.opendatacommunities.org/id/unitary-authority/southend,ED Neighbourhoods & Environment,Cultural and Related Services,7520,Hays Specialist Recruitment Ltd Receipts Recruitment File Only,05/08/2022,12072091, 565.75 ,Agency Staff,Direct Employee Expenses
Southend-on-Sea Borough Council,http://www.opendatacommunities.org/id/unitary-authority/southend,ED Neighbourhoods & Environment,Cultural and Related Services,7510,Hays Specialist Recruitment Ltd Receipts Recruitment File Only,05/08/2022,12072091, 565.75 ,Agency Staff,Direct Employee Expenses
Southend-on-Sea Borough Council,http://www.opendatacommunities.org/id/unitary-authority/southend,ED Neighbourhoods & Environment,Cultural and Related Services,7505,Hays Specialist Recruitment Ltd Receipts Recruitment File Only,05/08/2022,12072091, 565.75 ,Agency Staff,Direct Employee Expenses
Southend-on-Sea Borough Council,http://www.opendatacommunities.org/id/unitary-authority/southend,ED Neighbourhoods & Environment,Cultural and Related Services,7505,Hays Specialist Recruitment Ltd Receipts Recruitment File Only,05/08/2022,12072091, 565.75 ,Agency Staff,Direct Employee Expenses
Southend-on-Sea Borough Council,http://www.opendatacommunities.org/id/unitary-authority/southend,ED Neighbourhoods & Environment,Cultural And Related Services,4201,Hays Specialist Recruitment Ltd Receipts Recruitment File Only,05/08/2022,12072091," 3,182.35 ",Agency Staff,Direct Employee Expenses
Southend-on-Sea Borough Council,http://www.opendatacommunities.org/id/unitary-authority/southend,ED Neighbourhoods & Environment,Cultural and Related Services,7505,Hays Specialist Recruitment Ltd Receipts Recruitment File Only,05/08/2022,12072091, 623.50 ,Agency Staff,Direct Employee Expenses
Southend-on-Sea Borough Council,http://www.opendatacommunities.org/id/unitary-authority/southend,ED Neighbourhoods & Environment,Cultural and Related Services,7505,Hays Specialist Recruitment Ltd Receipts Recruitment File Only,05/08/2022,12072091, 565.75 ,Agency Staff,Direct Employee Expenses
Southend-on-Sea Borough Council,http://www.opendatacommunities.org/id/unitary-authority/southend,ED Neighbourhoods & Environment,Cultural and Related Services,7505,Hays Specialist Recruitment Ltd Receipts Recruitment File Only,05/08/2022,12072091, 565.75 ,Agency Staff,Direct Employee Expenses
Southend-on-Sea Borough Council,http://www.opendatacommunities.org/id/unitary-authority/southend,ED Neighbourhoods & Environment,Cultural and Related Services,7505,Hays Specialist Recruitment Ltd Receipts Recruitment File Only,05/08/2022,12072091, 565.75 ,Agency Staff,Direct Employee Expenses
Southend-on-Sea Borough Council,http://www.opendatacommunities.org/id/unitary-authority/southend,ED Neighbourhoods & Environment,Cultural and Related Services,7520,Hays Specialist Recruitment Ltd Receipts Recruitment File Only,05/08/2022,12072091, 565.75 ,Agency Staff,Direct Employee Expenses
Southend-on-Sea Borough Council,http://www.opendatacommunities.org/id/unitary-authority/southend,ED Neighbourhoods & Environment,Cultural and Related Services,7505,Hays Specialist Recruitment Ltd Receipts Recruitment File Only,05/08/2022,12072091, 565.75 ,Agency Staff,Direct Employee Expenses
Southend-on-Sea Borough Council,http://www.opendatacommunities.org/id/unitary-authority/southend,ED Neighbourhoods & Environment,Cultural and Related Services,7505,Hays Specialist Recruitment Ltd Receipts Recruitment File Only,05/08/2022,12072091, 565.75 ,Agency Staff,Direct Employee Expenses
Southend-on-Sea Borough Council,http://www.opendatacommunities.org/id/unitary-authority/southend,ED Neighbourhoods & Environment,Cultural and Related Services,7505,Hays Specialist Recruitment Ltd Receipts Recruitment File Only,05/08/2022,12072091, 565.75 ,Agency Staff,Direct Employee Expenses
Southend-on-Sea Borough Council,http://www.opendatacommunities.org/id/unitary-authority/southend,ED Neighbourhoods & Environment,Cultural and Related Services,7505,Hays Specialist Recruitment Ltd Receipts Recruitment File Only,05/08/2022,12072091, 565.75 ,Agency Staff,Direct Employee Expenses
Southend-on-Sea Borough Council,http://www.opendatacommunities.org/id/unitary-authority/southend,ED Neighbourhoods & Environment,Cultural and Related Services,7505,Hays Specialist Recruitment Ltd Receipts Recruitment File Only,05/08/2022,12072091, 565.75 ,Agency Staff,Direct Employee Expenses
Southend-on-Sea Borough Council,http://www.opendatacommunities.org/id/unitary-authority/southend,ED Neighbourhoods & Environment,Cultural and Related Services,7510,Hays Specialist Recruitment Ltd Receipts Recruitment File Only,05/08/2022,12072091, 565.75 ,Agency Staff,Direct Employee Expenses
Southend-on-Sea Borough Council,http://www.opendatacommunities.org/id/unitary-authority/southend,ED Neighbourhoods & Environment,Environmental And Regulatory Services,4506,Hays Specialist Recruitment Ltd Receipts Recruitment File Only,05/08/2022,12072091, 565.75 ,Agency Staff,Direct Employee Expenses
Southend-on-Sea Borough Council,http://www.opendatacommunities.org/id/unitary-authority/southend,ED Neighbourhoods & Environment,Environmental And Regulatory Services,4526,Hays Specialist Recruitment Ltd Receipts Recruitment File Only,05/08/2022,12072091," 1,226.40 ",Agency Staff,Direct Employee Expenses
Southend-on-Sea Borough Council,http://www.opendatacommunities.org/id/unitary-authority/southend,ED Neighbourhoods & Environment,Environmental And Regulatory Services,4526,Hays Specialist Recruitment Ltd Receipts Recruitment File Only,05/08/2022,12072091," 1,244.43 ",Agency Staff,Direct Employee Expenses
Southend-on-Sea Borough Council,http://www.opendatacommunities.org/id/unitary-authority/southend,ED Neighbourhoods & Environment,Environmental And Regulatory Services,4535,Hays Specialist Recruitment Ltd Receipts Recruitment File Only,05/08/2022,12072091, 582.57 ,Agency Staff,Direct Employee Expenses
Southend-on-Sea Borough Council,http://www.opendatacommunities.org/id/unitary-authority/southend,ED Neighbourhoods & Environment,Environmental And Regulatory Services,4535,Hays Specialist Recruitment Ltd Receipts Recruitment File Only,05/08/2022,12072091, 582.57 ,Agency Staff,Direct Employee Expenses
Southend-on-Sea Borough Council,http://www.opendatacommunities.org/id/unitary-authority/southend,ED Neighbourhoods & Environment,Environmental And Regulatory Services,4535,Hays Specialist Recruitment Ltd Receipts Recruitment File Only,05/08/2022,12072091, 582.57 ,Agency Staff,Direct Employee Expenses
Southend-on-Sea Borough Council,http://www.opendatacommunities.org/id/unitary-authority/southend,ED Neighbourhoods & Environment,Environmental And Regulatory Services,4535,Hays Specialist Recruitment Ltd Receipts Recruitment File Only,05/08/2022,12072091, 582.57 ,Agency Staff,Direct Employee Expenses
Southend-on-Sea Borough Council,http://www.opendatacommunities.org/id/unitary-authority/southend,ED Neighbourhoods & Environment,Environmental And Regulatory Services,4535,Hays Specialist Recruitment Ltd Receipts Recruitment File Only,05/08/2022,12072091, 582.57 ,Agency Staff,Direct Employee Expenses
Southend-on-Sea Borough Council,http://www.opendatacommunities.org/id/unitary-authority/southend,ED Neighbourhoods & Environment,Environmental And Regulatory Services,4535,Hays Specialist Recruitment Ltd Receipts Recruitment File Only,05/08/2022,12072091, 582.57 ,Agency Staff,Direct Employee Expenses
Southend-on-Sea Borough Council,http://www.opendatacommunities.org/id/unitary-authority/southend,ED Neighbourhoods & Environment,Environmental And Regulatory Services,4535,Hays Specialist Recruitment Ltd Receipts Recruitment File Only,05/08/2022,12072091, 582.57 ,Agency Staff,Direct Employee Expenses
Southend-on-Sea Borough Council,http://www.opendatacommunities.org/id/unitary-authority/southend,ED Neighbourhoods & Environment,Environmental And Regulatory Services,4535,Hays Specialist Recruitment Ltd Receipts Recruitment File Only,05/08/2022,12072091, 582.57 ,Agency Staff,Direct Employee Expenses
Southend-on-Sea Borough Council,http://www.opendatacommunities.org/id/unitary-authority/southend,ED Neighbourhoods & Environment,Environmental And Regulatory Services,4506,Hays Specialist Recruitment Ltd Receipts Recruitment File Only,05/08/2022,12072091, 565.75 ,Agency Staff,Direct Employee Expenses
Southend-on-Sea Borough Council,http://www.opendatacommunities.org/id/unitary-authority/southend,ED Neighbourhoods & Environment,Cultural And Related Services,7540,Hays Specialist Recruitment Ltd Receipts Recruitment File Only,05/08/2022,12072091, 576.11 ,Agency Staff,Direct Employee Expenses
Southend-on-Sea Borough Council,http://www.opendatacommunities.org/id/unitary-authority/southend,ED Neighbourhoods & Environment,Highways And Transport Services,5181,Hays Specialist Recruitment Ltd Receipts Recruitment File Only,05/08/2022,12072091, 589.12 ,Agency Staff,Direct Employee Expenses
Southend-on-Sea Borough Council,http://www.opendatacommunities.org/id/unitary-authority/southend,ED Neighbourhoods & Environment,Highways And Transport Services,5181,Hays Specialist Recruitment Ltd Receipts Recruitment File Only,05/08/2022,12072091, 644.35 ,Agency Staff,Direct Employee Expenses
Southend-on-Sea Borough Council,http://www.opendatacommunities.org/id/unitary-authority/southend,ED Neighbourhoods & Environment,Highways And Transport Services,5181,Hays Specialist Recruitment Ltd Receipts Recruitment File Only,05/08/2022,12072091, 644.35 ,Agency Staff,Direct Employee Expenses
Southend-on-Sea Borough Council,http://www.opendatacommunities.org/id/unitary-authority/southend,ED Neighbourhoods & Environment,Highways And Transport Services,5181,Hays Specialist Recruitment Ltd Receipts Recruitment File Only,05/08/2022,12072091, 644.35 ,Agency Staff,Direct Employee Expenses
Southend-on-Sea Borough Council,http://www.opendatacommunities.org/id/unitary-authority/southend,ED Neighbourhoods & Environment,Highways And Transport Services,5180,Hays Specialist Recruitment Ltd Receipts Recruitment File Only,05/08/2022,12072091, 945.15 ,Agency Staff,Direct Employee Expenses
Southend-on-Sea Borough Council,http://www.opendatacommunities.org/id/unitary-authority/southend,ED Neighbourhoods & Environment,Highways And Transport Services,5055,Hays Specialist Recruitment Ltd Receipts Recruitment File Only,05/08/2022,12072091," 6,248.65 ",Agency Staff,Direct Employee Expenses
Southend-on-Sea Borough Council,http://www.opendatacommunities.org/id/unitary-authority/southend,ED Neighbourhoods & Environment,Highways And Transport Services,5015,Hays Specialist Recruitment Ltd Receipts Recruitment File Only,05/08/2022,12072091," 1,932.60 ",Agency Staff,Direct Employee Expenses
Southend-on-Sea Borough Council,http://www.opendatacommunities.org/id/unitary-authority/southend,ED Neighbourhoods & Environment,Highways And Transport Services,5015,Hays Specialist Recruitment Ltd Receipts Recruitment File Only,05/08/2022,12072091," 2,415.75 ",Agency Staff,Direct Employee Expenses
Southend-on-Sea Borough Council,http://www.opendatacommunities.org/id/unitary-authority/southend,ED Neighbourhoods & Environment,Highways And Transport Services,5180,Hays Specialist Recruitment Ltd Receipts Recruitment File Only,05/08/2022,12072091, 768.25 ,Agency Staff,Direct Employee Expenses
Southend-on-Sea Borough Council,http://www.opendatacommunities.org/id/unitary-authority/southend,ED Neighbourhoods & Environment,Highways And Transport Services,5005,Hays Specialist Recruitment Ltd Receipts Recruitment File Only,05/08/2022,12072091," 1,724.80 ",Agency Staff,Direct Employee Expenses
Southend-on-Sea Borough Council,http://www.opendatacommunities.org/id/unitary-authority/southend,ED Neighbourhoods & Environment,Highways And Transport Services,5055,Hays Specialist Recruitment Ltd Receipts Recruitment File Only,05/08/2022,12072091," 2,499.46 ",Agency Staff,Direct Employee Expenses
Southend-on-Sea Borough Council,http://www.opendatacommunities.org/id/unitary-authority/southend,ED Neighbourhoods & Environment,Highways And Transport Services,5180,Hays Specialist Recruitment Ltd Receipts Recruitment File Only,05/08/2022,12072091," 2,451.85 ",Agency Staff,Direct Employee Expenses
Southend-on-Sea Borough Council,http://www.opendatacommunities.org/id/unitary-authority/southend,ED Neighbourhoods & Environment,Highways And Transport Services,5180,Hays Specialist Recruitment Ltd Receipts Recruitment File Only,05/08/2022,12072091," 2,451.85 ",Agency Staff,Direct Employee Expenses
Southend-on-Sea Borough Council,http://www.opendatacommunities.org/id/unitary-authority/southend,ED Neighbourhoods & Environment,Highways And Transport Services,5180,Hays Specialist Recruitment Ltd Receipts Recruitment File Only,05/08/2022,12072091," 2,451.85 ",Agency Staff,Direct Employee Expenses
Southend-on-Sea Borough Council,http://www.opendatacommunities.org/id/unitary-authority/southend,ED Neighbourhoods & Environment,Highways And Transport Services,5180,Hays Specialist Recruitment Ltd Receipts Recruitment File Only,05/08/2022,12072091," 2,451.85 ",Agency Staff,Direct Employee Expenses
Southend-on-Sea Borough Council,http://www.opendatacommunities.org/id/unitary-authority/southend,ED Neighbourhoods & Environment,Highways And Transport Services,5180,Hays Specialist Recruitment Ltd Receipts Recruitment File Only,05/08/2022,12072091," 1,555.10 ",Agency Staff,Direct Employee Expenses
Southend-on-Sea Borough Council,http://www.opendatacommunities.org/id/unitary-authority/southend,ED Neighbourhoods & Environment,Highways And Transport Services,5180,Hays Specialist Recruitment Ltd Receipts Recruitment File Only,05/08/2022,12072091, 768.26 ,Agency Staff,Direct Employee Expenses
Southend-on-Sea Borough Council,http://www.opendatacommunities.org/id/unitary-authority/southend,ED Neighbourhoods & Environment,Highways And Transport Services,5180,Hays Specialist Recruitment Ltd Receipts Recruitment File Only,05/08/2022,12072091," 1,701.35 ",Agency Staff,Direct Employee Expenses
Southend-on-Sea Borough Council,http://www.opendatacommunities.org/id/unitary-authority/southend,ED Neighbourhoods & Environment,Highways And Transport Services,5055,Hays Specialist Recruitment Ltd Receipts Recruitment File Only,05/08/2022,12072091," 5,528.00 ",Agency Staff,Direct Employee Expenses
Southend-on-Sea Borough Council,http://www.opendatacommunities.org/id/unitary-authority/southend,ED Neighbourhoods & Environment,Housing Services,6047,Hays Specialist Recruitment Ltd Receipts Recruitment File Only,05/08/2022,12072091, 682.50 ,Agency Staff,Direct Employee Expenses
Southend-on-Sea Borough Council,http://www.opendatacommunities.org/id/unitary-authority/southend,"ED Strategy, Change & Governance",Central Services,7130,Hays Specialist Recruitment Ltd Receipts Recruitment File Only,05/08/2022,12072091," 1,913.96 ",Agency Staff,Direct Employee Expenses
Southend-on-Sea Borough Council,http://www.opendatacommunities.org/id/unitary-authority/southend,"ED Strategy, Change & Governance",Central Services,7130,Hays Specialist Recruitment Ltd Receipts Recruitment File Only,05/08/2022,12072091," 1,901.84 ",Agency Staff,Direct Employee Expenses
Southend-on-Sea Borough Council,http://www.opendatacommunities.org/id/unitary-authority/southend,"ED Strategy, Change & Governance",Central Services,2005,Hays Specialist Recruitment Ltd Receipts Recruitment File Only,05/08/2022,12072091, 558.69 ,Agency Staff,Direct Employee Expenses
Southend-on-Sea Borough Council,http://www.opendatacommunities.org/id/unitary-authority/southend,"ED Strategy, Change & Governance",Central Services,2005,Hays Specialist Recruitment Ltd Receipts Recruitment File Only,05/08/2022,12072091, 575.62 ,Agency Staff,Direct Employee Expenses
Southend-on-Sea Borough Council,http://www.opendatacommunities.org/id/unitary-authority/southend,"ED Strategy, Change & Governance",Central Services,7137,Hays Specialist Recruitment Ltd Receipts Recruitment File Only,05/08/2022,12072091," 1,584.95 ",Agency Staff,Direct Employee Expenses
Southend-on-Sea Borough Council,http://www.opendatacommunities.org/id/unitary-authority/southend,"ED Strategy, Change & Governance",Central Services,7129,Hays Specialist Recruitment Ltd Receipts Recruitment File Only,05/08/2022,12072091," 2,730.28 ",Agency Staff,Direct Employee Expenses
Southend-on-Sea Borough Council,http://www.opendatacommunities.org/id/unitary-authority/southend,"ED Strategy, Change & Governance",Central Services,7129,Hays Specialist Recruitment Ltd Receipts Recruitment File Only,05/08/2022,12072091," 3,412.85 ",Agency Staff,Direct Employee Expenses
Southend-on-Sea Borough Council,http://www.opendatacommunities.org/id/unitary-authority/southend,"ED Strategy, Change & Governance",Central Services,7129,Hays Specialist Recruitment Ltd Receipts Recruitment File Only,05/08/2022,12072091," 2,047.71 ",Agency Staff,Direct Employee Expenses
Southend-on-Sea Borough Council,http://www.opendatacommunities.org/id/unitary-authority/southend,"ED Strategy, Change & Governance",Central Services,7129,Hays Specialist Recruitment Ltd Receipts Recruitment File Only,05/08/2022,12072091," 3,412.85 ",Agency Staff,Direct Employee Expenses
Southend-on-Sea Borough Council,http://www.opendatacommunities.org/id/unitary-authority/southend,"ED Strategy, Change & Governance",Central Services,7137,Hays Specialist Recruitment Ltd Receipts Recruitment File Only,05/08/2022,12072091," 2,100.35 ",Agency Staff,Direct Employee Expenses
Southend-on-Sea Borough Council,http://www.opendatacommunities.org/id/unitary-authority/southend,"ED Strategy, Change & Governance",Central Services,7137,Hays Specialist Recruitment Ltd Receipts Recruitment File Only,05/08/2022,12072091," 2,641.35 ",Agency Staff,Direct Employee Expenses
Southend-on-Sea Borough Council,http://www.opendatacommunities.org/id/unitary-authority/southend,"ED Strategy, Change & Governance",Central Services,7137,Hays Specialist Recruitment Ltd Receipts Recruitment File Only,05/08/2022,12072091," 1,584.95 ",Agency Staff,Direct Employee Expenses
Southend-on-Sea Borough Council,http://www.opendatacommunities.org/id/unitary-authority/southend,"ED Strategy, Change & Governance",Central Services,7139,Hays Specialist Recruitment Ltd Receipts Recruitment File Only,05/08/2022,12072091," 2,315.35 ",Agency Staff,Direct Employee Expenses
Southend-on-Sea Borough Council,http://www.opendatacommunities.org/id/unitary-authority/southend,"ED Strategy, Change & Governance",Central Services,7139,Hays Specialist Recruitment Ltd Receipts Recruitment File Only,05/08/2022,12072091," 2,315.35 ",Agency Staff,Direct Employee Expenses
Southend-on-Sea Borough Council,http://www.opendatacommunities.org/id/unitary-authority/southend,"ED Strategy, Change & Governance",Central Services,7139,Hays Specialist Recruitment Ltd Receipts Recruitment File Only,05/08/2022,12072091," 2,315.35 ",Agency Staff,Direct Employee Expenses
Southend-on-Sea Borough Council,http://www.opendatacommunities.org/id/unitary-authority/southend,"ED Strategy, Change & Governance",Central Services,7139,Hays Specialist Recruitment Ltd Receipts Recruitment File Only,05/08/2022,12072091," 2,315.35 ",Agency Staff,Direct Employee Expenses
Southend-on-Sea Borough Council,http://www.opendatacommunities.org/id/unitary-authority/southend,"ED Strategy, Change & Governance",Central Services,7134,Hays Specialist Recruitment Ltd Receipts Recruitment File Only,05/08/2022,12072091," 1,260.21 ",Agency Staff,Direct Employee Expenses
Southend-on-Sea Borough Council,http://www.opendatacommunities.org/id/unitary-authority/southend,"ED Strategy, Change & Governance",Central Services,7134,Hays Specialist Recruitment Ltd Receipts Recruitment File Only,05/08/2022,12072091, 840.14 ,Agency Staff,Direct Employee Expenses
Southend-on-Sea Borough Council,http://www.opendatacommunities.org/id/unitary-authority/southend,ED Finance & Resources,Central Services,7140,Instakil Pest Control Services,05/08/2022,12072091, 880.00 ,Pest Control,Cleaning And Domestic Supplies
Southend-on-Sea Borough Council,http://www.opendatacommunities.org/id/unitary-authority/southend,ED Children & Public Health,Children And Education Services,3250,Integrated Services Programme,05/08/2022,12072091," 3,144.12 ",Private Contractors,Other Agencies
Southend-on-Sea Borough Council,http://www.opendatacommunities.org/id/unitary-authority/southend,ED Children & Public Health,Children And Education Services,3250,Integrated Services Programme,05/08/2022,12072091," 4,055.52 ",Private Contractors,Other Agencies
Southend-on-Sea Borough Council,http://www.opendatacommunities.org/id/unitary-authority/southend,ED Children & Public Health,Children And Education Services,3250,Integrated Services Programme,05/08/2022,12072091," 5,432.00 ",Private Contractors,Other Agencies
Southend-on-Sea Borough Council,http://www.opendatacommunities.org/id/unitary-authority/southend,ED Neighbourhoods & Environment,Highways And Transport Services,5225,International Parking Systems (Uk) Limited,05/08/2022,12072091," 2,611.64 ",Services,Services
Southend-on-Sea Borough Council,http://www.opendatacommunities.org/id/unitary-authority/southend,ED Children & Public Health,Children And Education Services,3090,Jenx Limited,05/08/2022,12072091," 1,078.00 ",Tools And Equipment Purchase,Equipment Furniture And Materials
Southend-on-Sea Borough Council,http://www.opendatacommunities.org/id/unitary-authority/southend,ED Neighbourhoods & Environment,Cultural And Related Services,7540,Landscape Supply Company,05/08/2022,12072091," 2,099.80 ",Tools And Equipment Repair And Maintenance,Equipment Furniture And Materials
Southend-on-Sea Borough Council,http://www.opendatacommunities.org/id/unitary-authority/southend,"ED Strategy, Change & Governance",Central Services,7105,Ms Akta Chipalkatty,05/08/2022,12072091," 4,600.00 ",Barristers fees,Services
Southend-on-Sea Borough Council,http://www.opendatacommunities.org/id/unitary-authority/southend,"ED Strategy, Change & Governance",Central Services,7105,Ms Akta Chipalkatty,05/08/2022,12072091, 800.00 ,Barristers fees,Services
Southend-on-Sea Borough Council,http://www.opendatacommunities.org/id/unitary-authority/southend,"ED Strategy, Change & Governance",Central Services,7105,Ms Akta Chipalkatty,05/08/2022,12072091, 700.00 ,Barristers fees,Services
Southend-on-Sea Borough Council,http://www.opendatacommunities.org/id/unitary-authority/southend,"ED Strategy, Change & Governance",Central Services,7105,Ms Akta Chipalkatty,05/08/2022,12072091, 750.00 ,Barristers fees,Services
Southend-on-Sea Borough Council,http://www.opendatacommunities.org/id/unitary-authority/southend,"ED Strategy, Change & Governance",Central Services,7105,Ms Akta Chipalkatty,05/08/2022,12072091, 600.00 ,Barristers fees,Services
Southend-on-Sea Borough Council,http://www.opendatacommunities.org/id/unitary-authority/southend,ED Children & Public Health,Children And Education Services,3250,Oak House Childrens Home Limited,05/08/2022,12072091," 71,211.43 ",Private Contractors,Other Agencies
Southend-on-Sea Borough Council,http://www.opendatacommunities.org/id/unitary-authority/southend,ED Children & Public Health,Children And Education Services,3250,Oak House Childrens Home Limited,05/08/2022,12072091,"-6,642.86 ",Private Contractors,Other Agencies
Southend-on-Sea Borough Council,http://www.opendatacommunities.org/id/unitary-authority/southend,ED Growth & Housing,Planning Services,5641,Octagon Pier T/A Park Inn Palace,05/08/2022,12072091, 583.33 ,Room Hire,Rents
Southend-on-Sea Borough Council,http://www.opendatacommunities.org/id/unitary-authority/southend,ED Neighbourhoods & Environment,Cultural And Related Services,7540,P Tuckwell Ltd,05/08/2022,12072091," 20,228.00 ",Private Contractors,Other Agencies
Southend-on-Sea Borough Council,http://www.opendatacommunities.org/id/unitary-authority/southend,ED Growth & Housing,Planning Services,5637,Pain Free Movement Ltd,05/08/2022,12072091," 1,982.80 ",Grants,Grants And Subscriptions
Southend-on-Sea Borough Council,http://www.opendatacommunities.org/id/unitary-authority/southend,ED Finance & Resources,Central Services,8605,Plexus Legal Llp Office Account,05/08/2022,12072091," 3,016.00 ",Court Costs And Legal Fees,Services
Southend-on-Sea Borough Council,http://www.opendatacommunities.org/id/unitary-authority/southend,ED Finance & Resources,Central Services,8605,Plexus Legal Llp Office Account,05/08/2022,12072091," 1,606.45 ",Court Costs And Legal Fees,Services
Southend-on-Sea Borough Council,http://www.opendatacommunities.org/id/unitary-authority/southend,ED Neighbourhoods & Environment,Cultural and Related Services,7505,Prime Irrigation Ltd,05/08/2022,12072091, 733.66 ,Private Contractors,Other Agencies
Southend-on-Sea Borough Council,http://www.opendatacommunities.org/id/unitary-authority/southend,ED Neighbourhoods & Environment,Cultural and Related Services,7510,Prime Irrigation Ltd,05/08/2022,12072091," 1,095.89 ",Contractor - Programmed Works,Other Agencies
Southend-on-Sea Borough Council,http://www.opendatacommunities.org/id/unitary-authority/southend,ED Children & Public Health,Children And Education Services,3385,Queensway House,05/08/2022,12072091," 4,229.88 ",Conveyance of Clients,Contract Hire And Operating Leases
Southend-on-Sea Borough Council,http://www.opendatacommunities.org/id/unitary-authority/southend,ED Children & Public Health,Children And Education Services,3290,REDACTED PERSONAL DATA,05/08/2022,12072091," 1,500.00 ",Grants,Grants And Subscriptions
Southend-on-Sea Borough Council,http://www.opendatacommunities.org/id/unitary-authority/southend,ED Children & Public Health,Children And Education Services,3290,REDACTED PERSONAL DATA,05/08/2022,12072091," 1,153.05 ",Grants,Grants And Subscriptions
Southend-on-Sea Borough Council,http://www.opendatacommunities.org/id/unitary-authority/southend,ED Finance & Resources,Housing Services,6165,Sale Appliances,05/08/2022,12072091, 641.44 ,Materials,Equipment Furniture And Materials
Southend-on-Sea Borough Council,http://www.opendatacommunities.org/id/unitary-authority/southend,ED Adults & Communities,Adult Social Care,1260,Saturn Healthcare Holdings Ltd T/A Brett Vale Residential Home,05/08/2022,12072091," 10,095.60 ",Private Contractors,Other Agencies
Southend-on-Sea Borough Council,http://www.opendatacommunities.org/id/unitary-authority/southend,ED Children & Public Health,Children And Education Services,3250,Savannah Lodge Limited,05/08/2022,12072091," 18,214.26 ",Private Contractors,Other Agencies
Southend-on-Sea Borough Council,http://www.opendatacommunities.org/id/unitary-authority/southend,ED Adults & Communities,Adult Social Care,1105,Secaplus Limited T/A Seccare+,05/08/2022,12072091," 10,103.56 ",Private Contractors,Other Agencies
Southend-on-Sea Borough Council,http://www.opendatacommunities.org/id/unitary-authority/southend,ED Adults & Communities,Adult Social Care,1205,Secaplus Limited T/A Seccare+,05/08/2022,12072091, 745.75 ,Private Contractors,Other Agencies
Southend-on-Sea Borough Council,http://www.opendatacommunities.org/id/unitary-authority/southend,ED Adults & Communities,Adult Social Care,1105,Secaplus Limited T/A Seccare+,05/08/2022,12072091," 10,442.08 ",Private Contractors,Other Agencies
Southend-on-Sea Borough Council,http://www.opendatacommunities.org/id/unitary-authority/southend,ED Adults & Communities,Adult Social Care,1205,Secaplus Limited T/A Seccare+,05/08/2022,12072091, 760.00 ,Private Contractors,Other Agencies
Southend-on-Sea Borough Council,http://www.opendatacommunities.org/id/unitary-authority/southend,ED Adults & Communities,Adult Social Care,1209,Simplymed Ltd,05/08/2022,12072091, 603.75 ,Tools And Equipment Purchase,Equipment Furniture And Materials
Southend-on-Sea Borough Council,http://www.opendatacommunities.org/id/unitary-authority/southend,ED Children & Public Health,Children And Education Services,3091,South Essex Alliance Multi-Academy Trust T/A Wyburns Primary School,05/08/2022,12072091," 1,624.62 ",Private Contractors,Other Agencies
Southend-on-Sea Borough Council,http://www.opendatacommunities.org/id/unitary-authority/southend,ED Children & Public Health,Children And Education Services,3411,Southend Carers Forum,05/08/2022,12072091," 10,000.00 ",Grants,Grants And Subscriptions
Southend-on-Sea Borough Council,http://www.opendatacommunities.org/id/unitary-authority/southend,ED Adults & Communities,Adult Social Care,1350,Southend Central Hotel Ltd,05/08/2022,12072091," 1,860.00 ",Social Care Services,Services
Southend-on-Sea Borough Council,http://www.opendatacommunities.org/id/unitary-authority/southend,ED Growth & Housing,Housing Services,6130,Southend Central Hotel Ltd,05/08/2022,12072091," 2,370.00 ",Accommodation Costs,Expenses
Southend-on-Sea Borough Council,http://www.opendatacommunities.org/id/unitary-authority/southend,ED Growth & Housing,Housing Services,6011,Southend Guest House,05/08/2022,12072091," 3,237.50 ",Accommodation Costs,Expenses
Southend-on-Sea Borough Council,http://www.opendatacommunities.org/id/unitary-authority/southend,ED Growth & Housing,Housing Services,6130,Southend Guest House,05/08/2022,12072091," 3,640.00 ",Accommodation Costs,Expenses
Southend-on-Sea Borough Council,http://www.opendatacommunities.org/id/unitary-authority/southend,ED Growth & Housing,Housing Services,6011,Southend Inn Hotel Ltd,05/08/2022,12072091," 1,665.00 ",Accommodation Costs,Expenses
Southend-on-Sea Borough Council,http://www.opendatacommunities.org/id/unitary-authority/southend,ED Adults & Communities,Adult Social Care,1105,Spdns Nurse Care Cic.,05/08/2022,12072091," 10,675.69 ",Private Contractors,Other Agencies
Southend-on-Sea Borough Council,http://www.opendatacommunities.org/id/unitary-authority/southend,ED Adults & Communities,Adult Social Care,1108,Spdns Nurse Care Cic.,05/08/2022,12072091, 593.77 ,Private Contractors,Other Agencies
Southend-on-Sea Borough Council,http://www.opendatacommunities.org/id/unitary-authority/southend,ED Adults & Communities,Adult Social Care,1205,Spdns Nurse Care Cic.,05/08/2022,12072091," 1,149.53 ",Private Contractors,Other Agencies
Southend-on-Sea Borough Council,http://www.opendatacommunities.org/id/unitary-authority/southend,ED Adults & Communities,Adult Social Care,1643,Spdns Nurse Care Cic.,05/08/2022,12072091, 653.94 ,Private Contractors,Other Agencies
Southend-on-Sea Borough Council,http://www.opendatacommunities.org/id/unitary-authority/southend,ED Adults & Communities,Adult Social Care,1105,Spdns Nurse Care Cic.,05/08/2022,12072091," 9,461.60 ",Private Contractors,Other Agencies
Southend-on-Sea Borough Council,http://www.opendatacommunities.org/id/unitary-authority/southend,ED Adults & Communities,Adult Social Care,1108,Spdns Nurse Care Cic.,05/08/2022,12072091, 603.27 ,Private Contractors,Other Agencies
Southend-on-Sea Borough Council,http://www.opendatacommunities.org/id/unitary-authority/southend,ED Adults & Communities,Adult Social Care,1205,Spdns Nurse Care Cic.,05/08/2022,12072091," 1,111.54 ",Private Contractors,Other Agencies
Southend-on-Sea Borough Council,http://www.opendatacommunities.org/id/unitary-authority/southend,ED Adults & Communities,Adult Social Care,1643,Spdns Nurse Care Cic.,05/08/2022,12072091, 617.52 ,Private Contractors,Other Agencies
Southend-on-Sea Borough Council,http://www.opendatacommunities.org/id/unitary-authority/southend,ED Neighbourhoods & Environment,Highways And Transport Services,5130,Swarco Uk & Ireland Ltd,05/08/2022,12072091," 16,080.60 ",Private Contractors,Other Agencies
Southend-on-Sea Borough Council,http://www.opendatacommunities.org/id/unitary-authority/southend,ED Children & Public Health,Children And Education Services,3250,Symbol Family Support Services Ltd,05/08/2022,12072091," 16,134.04 ",Private Contractors,Other Agencies
Southend-on-Sea Borough Council,http://www.opendatacommunities.org/id/unitary-authority/southend,ED Growth & Housing,Planning Services,5615,Thames Gateway Airport Ltd T/As Holiday Inn Southend,05/08/2022,12072091, 995.00 ,Room Hire,Rents
Southend-on-Sea Borough Council,http://www.opendatacommunities.org/id/unitary-authority/southend,ED Children & Public Health,Children And Education Services,3307,The Adolescent And Childrens Trust T/A Tact Fostering,05/08/2022,12072091," 3,660.00 ",Private Contractors,Other Agencies
Southend-on-Sea Borough Council,http://www.opendatacommunities.org/id/unitary-authority/southend,ED Adults & Communities,Adult Social Care,1145,The Harbour Club (Care) Ltd,05/08/2022,12072091," 1,360.00 ",Private Contractors,Other Agencies
Southend-on-Sea Borough Council,http://www.opendatacommunities.org/id/unitary-authority/southend,ED Adults & Communities,Adult Social Care,1145,The Harbour Club (Care) Ltd,05/08/2022,12072091," 1,280.00 ",Private Contractors,Other Agencies
Southend-on-Sea Borough Council,http://www.opendatacommunities.org/id/unitary-authority/southend,ED Growth & Housing,Planning Services,5637,The Pantiles Finance Hub Ltd,05/08/2022,12072091," 5,160.00 ",Grants,Grants And Subscriptions
Southend-on-Sea Borough Council,http://www.opendatacommunities.org/id/unitary-authority/southend,ED Children & Public Health,Children And Education Services,3411,The St. Christopher School Academy Trust,05/08/2022,12072091," 10,000.00 ",Grants,Grants And Subscriptions
Southend-on-Sea Borough Council,http://www.opendatacommunities.org/id/unitary-authority/southend,ED Children & Public Health,Children And Education Services,3411,The White Bus Limited,05/08/2022,12072091," 1,590.00 ",Grants,Grants And Subscriptions
Southend-on-Sea Borough Council,http://www.opendatacommunities.org/id/unitary-authority/southend,ED Adults & Communities,Cultural And Related Services,4230,This Is Loop Ltd,05/08/2022,12072091," 5,520.00 ",Cultural And Entertainment Services,Services
Southend-on-Sea Borough Council,http://www.opendatacommunities.org/id/unitary-authority/southend,ED Adults & Communities,Adult Social Care,1105,Thorough Care Corporation Ltd,05/08/2022,12072091," 1,026.00 ",Private Contractors,Other Agencies
Southend-on-Sea Borough Council,http://www.opendatacommunities.org/id/unitary-authority/southend,"ED Strategy, Change & Governance",Central Services,7130,Thurrock Borough Council,05/08/2022,12072091," 5,000.00 ",IT Contracts,Communications And Computing
Southend-on-Sea Borough Council,http://www.opendatacommunities.org/id/unitary-authority/southend,ED Finance & Resources,Central Services,8600,Toomey Motor Group Ltd,05/08/2022,12072091," 25,926.70 ",Finance Leasing Charges,Communications And Computing
Southend-on-Sea Borough Council,http://www.opendatacommunities.org/id/unitary-authority/southend,ED Finance & Resources,Central Services,8600,Toomey Motor Group Ltd,05/08/2022,12072091," 29,313.45 ",Finance Leasing Charges,Communications And Computing
Southend-on-Sea Borough Council,http://www.opendatacommunities.org/id/unitary-authority/southend,ED Growth & Housing,Housing Services,9007,Trafalgar Uk Theatres Limited T/A Southend Cliffs Pavilion,05/08/2022,12072091," 271,706.00 ",S278 Bond expend,S278 Bond expend
Southend-on-Sea Borough Council,http://www.opendatacommunities.org/id/unitary-authority/southend,ED Growth & Housing,Housing Services,9007,Trafalgar Uk Theatres Limited T/A Southend Cliffs Pavilion,05/08/2022,12072091," 51,284.00 ",S278 Bond expend,S278 Bond expend
Southend-on-Sea Borough Council,http://www.opendatacommunities.org/id/unitary-authority/southend,ED Adults & Communities,Cultural And Related Services,4055,Trinity College London - Arts Award Training Courses Or Moderations,05/08/2022,12072091, 655.00 ,Professional Fees,Services
Southend-on-Sea Borough Council,http://www.opendatacommunities.org/id/unitary-authority/southend,ED Adults & Communities,Adult Social Care,1510,Welbeck Hotel,05/08/2022,12072091," 1,240.00 ",Additional Allowances (non employee),Services
Southend-on-Sea Borough Council,http://www.opendatacommunities.org/id/unitary-authority/southend,ED Adults & Communities,Adult Social Care,1510,Welbeck Hotel,05/08/2022,12072091," 1,240.00 ",Additional Allowances (non employee),Services
Southend-on-Sea Borough Council,http://www.opendatacommunities.org/id/unitary-authority/southend,ED Growth & Housing,Housing Services,6011,Welbeck Hotel,05/08/2022,12072091," 3,845.00 ",Accommodation Costs,Expenses
Southend-on-Sea Borough Council,http://www.opendatacommunities.org/id/unitary-authority/southend,ED Neighbourhoods & Environment,Environmental And Regulatory Services,4525,Westminster International Limited,05/08/2022,12072091," 12,605.00 ",Tools And Equipment Purchase,Equipment Furniture And Materials
Southend-on-Sea Borough Council,http://www.opendatacommunities.org/id/unitary-authority/southend,ED Neighbourhoods & Environment,Highways And Transport Services,9008,(G) Marlborough Surfacing Limited,08/08/2022,12072092," 13,695.00 ",Contractors General,Contractors General
Southend-on-Sea Borough Council,http://www.opendatacommunities.org/id/unitary-authority/southend,ED Neighbourhoods & Environment,Highways And Transport Services,9008,(G) Marlborough Surfacing Limited,08/08/2022,12072092," 14,008.00 ",Contractors General,Contractors General
Southend-on-Sea Borough Council,http://www.opendatacommunities.org/id/unitary-authority/southend,ED Neighbourhoods & Environment,Highways And Transport Services,9008,(G) Marlborough Surfacing Limited,08/08/2022,12072092," 95,048.45 ",Contractors General,Contractors General
Southend-on-Sea Borough Council,http://www.opendatacommunities.org/id/unitary-authority/southend,ED Neighbourhoods & Environment,Highways And Transport Services,9008,(G) Marlborough Surfacing Limited,08/08/2022,12072092," 59,031.10 ",Contractors General,Contractors General
Southend-on-Sea Borough Council,http://www.opendatacommunities.org/id/unitary-authority/southend,ED Neighbourhoods & Environment,Highways And Transport Services,9008,(G) Marlborough Surfacing Limited,08/08/2022,12072092," 4,263.40 ",Contractors General,Contractors General
Southend-on-Sea Borough Council,http://www.opendatacommunities.org/id/unitary-authority/southend,ED Neighbourhoods & Environment,Highways And Transport Services,9008,(G) Marlborough Surfacing Limited,08/08/2022,12072092," 5,484.70 ",Contractors General,Contractors General
Southend-on-Sea Borough Council,http://www.opendatacommunities.org/id/unitary-authority/southend,ED Neighbourhoods & Environment,Highways And Transport Services,9008,(G) Marlborough Surfacing Limited,08/08/2022,12072092," 13,695.00 ",Contractors General,Contractors General
Southend-on-Sea Borough Council,http://www.opendatacommunities.org/id/unitary-authority/southend,ED Neighbourhoods & Environment,Highways And Transport Services,9008,(G) Marlborough Surfacing Limited,08/08/2022,12072092," 8,981.40 ",Contractors General,Contractors General
Southend-on-Sea Borough Council,http://www.opendatacommunities.org/id/unitary-authority/southend,ED Neighbourhoods & Environment,Highways And Transport Services,9008,(G) Marlborough Surfacing Limited,08/08/2022,12072092," 9,787.00 ",Contractors General,Contractors General
Southend-on-Sea Borough Council,http://www.opendatacommunities.org/id/unitary-authority/southend,ED Growth & Housing,Planning Services,5637,Ableform Limited T/A Premier Metals,08/08/2022,12072092," 8,818.00 ",Grants,Grants And Subscriptions
Southend-on-Sea Borough Council,http://www.opendatacommunities.org/id/unitary-authority/southend,ED Adults & Communities,Adult Social Care,1205,Alpha Health And Care Services Ltd,08/08/2022,12072092," 1,197.00 ",Private Contractors,Other Agencies
Southend-on-Sea Borough Council,http://www.opendatacommunities.org/id/unitary-authority/southend,ED Adults & Communities,Adult Social Care,1105,Alpha Health And Care Services Ltd,08/08/2022,12072092, 931.00 ,Private Contractors,Other Agencies
Southend-on-Sea Borough Council,http://www.opendatacommunities.org/id/unitary-authority/southend,ED Adults & Communities,Adult Social Care,1105,Alpha Health And Care Services Ltd,08/08/2022,12072092," 1,197.00 ",Private Contractors,Other Agencies
Southend-on-Sea Borough Council,http://www.opendatacommunities.org/id/unitary-authority/southend,ED Adults & Communities,Adult Social Care,1108,Alpha Health And Care Services Ltd,08/08/2022,12072092," 1,045.00 ",Private Contractors,Other Agencies
Southend-on-Sea Borough Council,http://www.opendatacommunities.org/id/unitary-authority/southend,ED Adults & Communities,Adult Social Care,1105,Alpha Health And Care Services Ltd,08/08/2022,12072092, 665.00 ,Private Contractors,Other Agencies
Southend-on-Sea Borough Council,http://www.opendatacommunities.org/id/unitary-authority/southend,ED Adults & Communities,Adult Social Care,1205,Alpha Health And Care Services Ltd,08/08/2022,12072092, 665.00 ,Private Contractors,Other Agencies
Southend-on-Sea Borough Council,http://www.opendatacommunities.org/id/unitary-authority/southend,ED Adults & Communities,Adult Social Care,1105,Alpha Health And Care Services Ltd,08/08/2022,12072092," 1,197.00 ",Private Contractors,Other Agencies
Southend-on-Sea Borough Council,http://www.opendatacommunities.org/id/unitary-authority/southend,ED Adults & Communities,Adult Social Care,1205,Alpha Health And Care Services Ltd,08/08/2022,12072092, 817.00 ,Private Contractors,Other Agencies
Southend-on-Sea Borough Council,http://www.opendatacommunities.org/id/unitary-authority/southend,ED Adults & Communities,Adult Social Care,1105,Alpha Health And Care Services Ltd,08/08/2022,12072092," 1,064.00 ",Private Contractors,Other Agencies
Southend-on-Sea Borough Council,http://www.opendatacommunities.org/id/unitary-authority/southend,ED Adults & Communities,Adult Social Care,1105,Alpha Health And Care Services Ltd,08/08/2022,12072092," 1,064.00 ",Private Contractors,Other Agencies
Southend-on-Sea Borough Council,http://www.opendatacommunities.org/id/unitary-authority/southend,ED Adults & Communities,Adult Social Care,1105,Alpha Health And Care Services Ltd,08/08/2022,12072092, 931.00 ,Private Contractors,Other Agencies
Southend-on-Sea Borough Council,http://www.opendatacommunities.org/id/unitary-authority/southend,ED Adults & Communities,Adult Social Care,1205,Alpha Health And Care Services Ltd,08/08/2022,12072092, 731.50 ,Private Contractors,Other Agencies
Southend-on-Sea Borough Council,http://www.opendatacommunities.org/id/unitary-authority/southend,ED Adults & Communities,Adult Social Care,1105,Alpha Health And Care Services Ltd,08/08/2022,12072092, 798.00 ,Private Contractors,Other Agencies
Southend-on-Sea Borough Council,http://www.opendatacommunities.org/id/unitary-authority/southend,ED Adults & Communities,Adult Social Care,1105,Alpha Health And Care Services Ltd,08/08/2022,12072092, 627.00 ,Private Contractors,Other Agencies
Southend-on-Sea Borough Council,http://www.opendatacommunities.org/id/unitary-authority/southend,ED Adults & Communities,Adult Social Care,1205,Alpha Health And Care Services Ltd,08/08/2022,12072092, 988.00 ,Private Contractors,Other Agencies
Southend-on-Sea Borough Council,http://www.opendatacommunities.org/id/unitary-authority/southend,ED Growth & Housing,Planning Services,5643,Dedman Gray Property Consultants Ltd T/A Dedman Gray Commercial,08/08/2022,12072092," 2,000.00 ",Professional Fees,Services
Southend-on-Sea Borough Council,http://www.opendatacommunities.org/id/unitary-authority/southend,ED Children & Public Health,Children And Education Services,3250,Foster Care Uk,08/08/2022,12072092," 5,115.00 ",Private Contractors,Other Agencies
Southend-on-Sea Borough Council,http://www.opendatacommunities.org/id/unitary-authority/southend,ED Children & Public Health,Children And Education Services,3250,Fusion Fostering Ltd,08/08/2022,12072092," 3,981.29 ",Private Contractors,Other Agencies
Southend-on-Sea Borough Council,http://www.opendatacommunities.org/id/unitary-authority/southend,ED Adults & Communities,Adult Social Care,1205,Golden Keys Care Agency Limited,08/08/2022,12072092, 798.00 ,Private Contractors,Other Agencies
Southend-on-Sea Borough Council,http://www.opendatacommunities.org/id/unitary-authority/southend,ED Adults & Communities,Adult Social Care,1105,Golden Keys Care Agency Limited,08/08/2022,12072092," 1,026.00 ",Private Contractors,Other Agencies
Southend-on-Sea Borough Council,http://www.opendatacommunities.org/id/unitary-authority/southend,ED Adults & Communities,Adult Social Care,1205,Golden Keys Care Agency Limited,08/08/2022,12072092, 665.00 ,Private Contractors,Other Agencies
Southend-on-Sea Borough Council,http://www.opendatacommunities.org/id/unitary-authority/southend,ED Adults & Communities,Adult Social Care,1105,Golden Keys Care Agency Limited,08/08/2022,12072092, 665.00 ,Private Contractors,Other Agencies
Southend-on-Sea Borough Council,http://www.opendatacommunities.org/id/unitary-authority/southend,ED Adults & Communities,Adult Social Care,1105,Golden Keys Care Agency Limited,08/08/2022,12072092," 2,926.00 ",Private Contractors,Other Agencies
Southend-on-Sea Borough Council,http://www.opendatacommunities.org/id/unitary-authority/southend,ED Adults & Communities,Adult Social Care,1105,Golden Keys Care Agency Limited,08/08/2022,12072092," 2,128.00 ",Private Contractors,Other Agencies
Southend-on-Sea Borough Council,http://www.opendatacommunities.org/id/unitary-authority/southend,ED Adults & Communities,Adult Social Care,1105,Golden Keys Care Agency Limited,08/08/2022,12072092," 2,137.50 ",Private Contractors,Other Agencies
Southend-on-Sea Borough Council,http://www.opendatacommunities.org/id/unitary-authority/southend,ED Adults & Communities,Adult Social Care,1105,Golden Keys Care Agency Limited,08/08/2022,12072092," 1,605.50 ",Private Contractors,Other Agencies
Southend-on-Sea Borough Council,http://www.opendatacommunities.org/id/unitary-authority/southend,ED Adults & Communities,Adult Social Care,1105,Golden Keys Care Agency Limited,08/08/2022,12072092," 1,871.50 ",Private Contractors,Other Agencies
Southend-on-Sea Borough Council,http://www.opendatacommunities.org/id/unitary-authority/southend,ED Children & Public Health,Children And Education Services,3890,Hays Specialist Recruitment Ltd Receipts Recruitment File Only,08/08/2022,12072092," 4,883.84 ",Recruitment,Indirect Employee Expenses
Southend-on-Sea Borough Council,http://www.opendatacommunities.org/id/unitary-authority/southend,ED Adults & Communities,Adult Social Care,1105,Homecare Professionals (Essex) Ltd,08/08/2022,12072092," 1,064.00 ",Private Contractors,Other Agencies
Southend-on-Sea Borough Council,http://www.opendatacommunities.org/id/unitary-authority/southend,ED Adults & Communities,Adult Social Care,1105,Homecare Professionals (Essex) Ltd,08/08/2022,12072092, 798.00 ,Private Contractors,Other Agencies
Southend-on-Sea Borough Council,http://www.opendatacommunities.org/id/unitary-authority/southend,ED Adults & Communities,Adult Social Care,1105,Homecare Professionals (Essex) Ltd,08/08/2022,12072092," 1,197.00 ",Private Contractors,Other Agencies
Southend-on-Sea Borough Council,http://www.opendatacommunities.org/id/unitary-authority/southend,ED Adults & Communities,Adult Social Care,1105,Homecare Professionals (Essex) Ltd,08/08/2022,12072092," 1,064.00 ",Private Contractors,Other Agencies
Southend-on-Sea Borough Council,http://www.opendatacommunities.org/id/unitary-authority/southend,ED Adults & Communities,Adult Social Care,1105,Homecare Professionals (Essex) Ltd,08/08/2022,12072092, 893.00 ,Private Contractors,Other Agencies
Southend-on-Sea Borough Council,http://www.opendatacommunities.org/id/unitary-authority/southend,ED Adults & Communities,Adult Social Care,1105,Homecare Professionals (Essex) Ltd,08/08/2022,12072092," 1,064.00 ",Private Contractors,Other Agencies
Southend-on-Sea Borough Council,http://www.opendatacommunities.org/id/unitary-authority/southend,ED Adults & Communities,Adult Social Care,1105,Homecare Professionals (Essex) Ltd,08/08/2022,12072092," 1,197.00 ",Private Contractors,Other Agencies
Southend-on-Sea Borough Council,http://www.opendatacommunities.org/id/unitary-authority/southend,ED Adults & Communities,Adult Social Care,1205,Homecare Professionals (Essex) Ltd,08/08/2022,12072092, 532.00 ,Private Contractors,Other Agencies
Southend-on-Sea Borough Council,http://www.opendatacommunities.org/id/unitary-authority/southend,ED Adults & Communities,Adult Social Care,1105,Homecare Professionals (Essex) Ltd,08/08/2022,12072092," 1,064.00 ",Private Contractors,Other Agencies
Southend-on-Sea Borough Council,http://www.opendatacommunities.org/id/unitary-authority/southend,ED Children & Public Health,Children And Education Services,3250,I.M.P.A.C.T Childrens Residential Care,08/08/2022,12072092," 26,558.01 ",Private Contractors,Other Agencies
Southend-on-Sea Borough Council,http://www.opendatacommunities.org/id/unitary-authority/southend,ED Neighbourhoods & Environment,Cultural And Related Services,7540,Landscape Supply Company,08/08/2022,12072092," 2,276.00 ",Tools And Equipment Repair And Maintenance,Equipment Furniture And Materials
Southend-on-Sea Borough Council,http://www.opendatacommunities.org/id/unitary-authority/southend,ED Adults & Communities,Adult Social Care,1083,Manor Rest Home,08/08/2022,12072092," 1,980.28 ",Private Contractors,Other Agencies
Southend-on-Sea Borough Council,http://www.opendatacommunities.org/id/unitary-authority/southend,ED Adults & Communities,Adult Social Care,1115,Manor Rest Home,08/08/2022,12072092," 1,482.30 ",Contractor - Programmed Works,Other Agencies
Southend-on-Sea Borough Council,http://www.opendatacommunities.org/id/unitary-authority/southend,ED Adults & Communities,Adult Social Care,1083,Meteor Rest Home Ltd,08/08/2022,12072092," 6,778.57 ",Private Contractors,Other Agencies
Southend-on-Sea Borough Council,http://www.opendatacommunities.org/id/unitary-authority/southend,ED Growth & Housing,Planning Services,5637,Newton Lang Childcare Limited,08/08/2022,12072092," 1,002.34 ",Grants,Grants And Subscriptions
Southend-on-Sea Borough Council,http://www.opendatacommunities.org/id/unitary-authority/southend,ED Adults & Communities,Housing Services,1011,Nhs Southend Ccg,08/08/2022,12072092," 22,750.00 ",Social Care Services,Services
Southend-on-Sea Borough Council,http://www.opendatacommunities.org/id/unitary-authority/southend,ED Adults & Communities,Adult Social Care,1294,Pathways Care Services,08/08/2022,12072092," 2,953.41 ",Private Contractors,Other Agencies
Southend-on-Sea Borough Council,http://www.opendatacommunities.org/id/unitary-authority/southend,"ED Strategy, Change & Governance",Central Services,2005,REDACTED PERSONAL DATA,08/08/2022,12072092, 655.00 ,Mail Services� Couriers,Communications And Computing
Southend-on-Sea Borough Council,http://www.opendatacommunities.org/id/unitary-authority/southend,ED Finance & Resources,Central Services,8605,Ropewalk Chambers T/A Alexandra Denton,08/08/2022,12072092," 2,300.00 ",Court Costs And Legal Fees,Services
Southend-on-Sea Borough Council,http://www.opendatacommunities.org/id/unitary-authority/southend,ED Finance & Resources,Central Services,7111,Royal Mail,08/08/2022,12072092," 2,899.78 ",Mail Services� Postage,Communications And Computing
Southend-on-Sea Borough Council,http://www.opendatacommunities.org/id/unitary-authority/southend,ED Finance & Resources,Central Services,7111,Royal Mail,08/08/2022,12072092," 1,741.78 ",Mail Services� Postage,Communications And Computing
Southend-on-Sea Borough Council,http://www.opendatacommunities.org/id/unitary-authority/southend,ED Children & Public Health,Children And Education Services,3250,Shining Stars Fostering Agency Ltd,08/08/2022,12072092," 4,068.00 ",Private Contractors,Other Agencies
Southend-on-Sea Borough Council,http://www.opendatacommunities.org/id/unitary-authority/southend,ED Children & Public Health,Children And Education Services,3250,Sunbeam Fostering Agency Ltd,08/08/2022,12072092," 3,178.61 ",Private Contractors,Other Agencies
Southend-on-Sea Borough Council,http://www.opendatacommunities.org/id/unitary-authority/southend,ED Children & Public Health,Children And Education Services,3250,Sunbeam Fostering Agency Ltd,08/08/2022,12072092," 3,288.21 ",Private Contractors,Other Agencies
Southend-on-Sea Borough Council,http://www.opendatacommunities.org/id/unitary-authority/southend,ED Children & Public Health,Children And Education Services,3250,Swaay Child And Adolescent Services Ltd,08/08/2022,12072092," 19,419.40 ",Private Contractors,Other Agencies
Southend-on-Sea Borough Council,http://www.opendatacommunities.org/id/unitary-authority/southend,ED Children & Public Health,Public Health,8700,The Aim Project,08/08/2022,12072092," 6,793.00 ",Grants,Grants And Subscriptions
Southend-on-Sea Borough Council,http://www.opendatacommunities.org/id/unitary-authority/southend,ED Children & Public Health,Children And Education Services,3250,The Loddon Foundation Ltd,08/08/2022,12072092," 22,458.48 ",Private Contractors,Other Agencies
Southend-on-Sea Borough Council,http://www.opendatacommunities.org/id/unitary-authority/southend,ED Growth & Housing,Housing Services,9005,(G) Gracelands Cms Ltd,09/08/2022,12072095," 7,294.54 ",Contractors General,Contractors General
Southend-on-Sea Borough Council,http://www.opendatacommunities.org/id/unitary-authority/southend,ED Neighbourhoods & Environment,Highways And Transport Services,9008,(G) Marlborough Surfacing Limited,09/08/2022,12072095," 1,166.01 ",Contractors General,Contractors General
Southend-on-Sea Borough Council,http://www.opendatacommunities.org/id/unitary-authority/southend,ED Neighbourhoods & Environment,Highways And Transport Services,9008,(G) Marlborough Surfacing Limited,09/08/2022,12072095," 692,997.88 ",Main Contractor,Main Contractor
Southend-on-Sea Borough Council,http://www.opendatacommunities.org/id/unitary-authority/southend,ED Neighbourhoods & Environment,Environmental And Regulatory Services,4545,(G) Marlborough Surfacing Limited,09/08/2022,12072095, 620.00 ,Private Contractors,Other Agencies
Southend-on-Sea Borough Council,http://www.opendatacommunities.org/id/unitary-authority/southend,ED Neighbourhoods & Environment,Highways And Transport Services,5122,(G) Marlborough Surfacing Limited,09/08/2022,12072095," 8,247.05 ",Private Contractors,Other Agencies
Southend-on-Sea Borough Council,http://www.opendatacommunities.org/id/unitary-authority/southend,ED Neighbourhoods & Environment,Highways And Transport Services,5170,(G) Marlborough Surfacing Limited,09/08/2022,12072095," 1,340.47 ",Private Contractors,Other Agencies
Southend-on-Sea Borough Council,http://www.opendatacommunities.org/id/unitary-authority/southend,ED Finance & Resources,Central Services,8605,(G) R & A Mechanical Services Ltd,09/08/2022,12072095," 7,800.00 ",Private Contractors,Other Agencies
Southend-on-Sea Borough Council,http://www.opendatacommunities.org/id/unitary-authority/southend,ED Finance & Resources,Central Services,7120,(G) R & A Mechanical Services Ltd,09/08/2022,12072095," 3,100.00 ",Repairs And Maintenance Contracts,"Repairs, alterations and maintenance of buildings"
Southend-on-Sea Borough Council,http://www.opendatacommunities.org/id/unitary-authority/southend,ED Growth & Housing,Housing Services,6011,1St Call Property,09/08/2022,12072095," 2,191.00 ",Accomodation Payment,Services
Southend-on-Sea Borough Council,http://www.opendatacommunities.org/id/unitary-authority/southend,ED Children & Public Health,Children And Education Services,3091,"Academies Enterprise Trust, Plumberow Primary Academy",09/08/2022,12072095," 2,746.15 ",Private Contractors,Other Agencies
Southend-on-Sea Borough Council,http://www.opendatacommunities.org/id/unitary-authority/southend,ED Growth & Housing,Planning Services,5637,Alexander Construction Services Ltd,09/08/2022,12072095," 5,325.00 ",Grants,Grants And Subscriptions
Southend-on-Sea Borough Council,http://www.opendatacommunities.org/id/unitary-authority/southend,ED Adults & Communities,Adult Social Care,1105,Alpha Health And Care Services Ltd,09/08/2022,12072095," 1,197.00 ",Private Contractors,Other Agencies
Southend-on-Sea Borough Council,http://www.opendatacommunities.org/id/unitary-authority/southend,ED Adults & Communities,Adult Social Care,1205,Alpha Health And Care Services Ltd,09/08/2022,12072095," 1,197.00 ",Private Contractors,Other Agencies
Southend-on-Sea Borough Council,http://www.opendatacommunities.org/id/unitary-authority/southend,ED Adults & Communities,Adult Social Care,1105,Alpha Health And Care Services Ltd,09/08/2022,12072095," 1,197.00 ",Private Contractors,Other Agencies
Southend-on-Sea Borough Council,http://www.opendatacommunities.org/id/unitary-authority/southend,ED Adults & Communities,Adult Social Care,1105,Alpha Health And Care Services Ltd,09/08/2022,12072095, 712.50 ,Private Contractors,Other Agencies
Southend-on-Sea Borough Council,http://www.opendatacommunities.org/id/unitary-authority/southend,ED Adults & Communities,Adult Social Care,1105,Alpha Health And Care Services Ltd,09/08/2022,12072095, 598.50 ,Private Contractors,Other Agencies
Southend-on-Sea Borough Council,http://www.opendatacommunities.org/id/unitary-authority/southend,ED Adults & Communities,Adult Social Care,1105,Alpha Health And Care Services Ltd,09/08/2022,12072095, 532.00 ,Private Contractors,Other Agencies
